Payment Date,Transaction Number,Net Amount,Supplier (Beneficiary) Name,Local Supplier Internal Reference,Directorate / Service Where Expenditure Incurred,Service Category Label,Service Category URI,SeRCOP Expenditure Category,SeRCOP Expenditure Code,Purpose of Spend,SeRCOP Detailed Expenditure Code,Capital/Revenue,Procurement Classification
28-Apr-2017,220,-385.00,PARTNERSHIP MEDIA GROUP LTD,389594,"Health, Education, Care and Safeguarding",Children's & Education Services,103,Employees,501,Indirect Employee Expenses,5002,Revenue,18.CONFERENCING
28-Apr-2017,7003349,53.17,THE GRAND HOTEL,002977,"Environment, Housing & Leisure",Cultural & Related Services,104,Supplies and Services,504,Miscellaneous Expenses,5034,Revenue,18.CONFERENCING
28-Apr-2017,7003350,481.73,NISBETS PLC,102732,"Environment, Housing & Leisure",Cultural & Related Services,104,Supplies and Services,504,Equipment,5023,Revenue,03.CROCKERY
28-Apr-2017,7003351,48.50,TV LICENSING,014515,"Health, Education, Care and Safeguarding",Children's & Education Services,103,Third Party Payments,505,Other Establishments,5041,Revenue,SUBSTV
28-Apr-2017,7003352,490.00,NORTH MUSIC TRUST,341829,"Health, Education, Care and Safeguarding",Children's & Education Services,103,Third Party Payments,505,Other Establishments,5041,Revenue,18.CONFERENCING
28-Apr-2017,7003353,163.61,MARK TONEY & CO LTD,013184,"Environment, Housing & Leisure",Adult Social Care,101,Supplies and Services,504,Equipment,5023,Revenue,16.EVENTS & PROMOTIONS
28-Apr-2017,7003353,147.66,MARK TONEY & CO LTD,013184,"Environment, Housing & Leisure",Adult Social Care,101,Supplies and Services,504,Equipment,5023,Revenue,16.EVENTS & PROMOTIONS
28-Apr-2017,7003353,102.68,MARK TONEY & CO LTD,013184,"Environment, Housing & Leisure",Cultural & Related Services,104,Supplies and Services,504,Equipment,5023,Revenue,16.EVENTS & PROMOTIONS
28-Apr-2017,7003353,73.48,MARK TONEY & CO LTD,013184,"Environment, Housing & Leisure",Cultural & Related Services,104,Supplies and Services,504,Equipment,5023,Revenue,16.EVENTS & PROMOTIONS
28-Apr-2017,7003353,208.75,MARK TONEY & CO LTD,013184,"Environment, Housing & Leisure",Cultural & Related Services,104,Supplies and Services,504,Equipment,5023,Revenue,16.EVENTS & PROMOTIONS
28-Apr-2017,7003354,112.02,C/GAS KENDAL,385638,"Health, Education, Care and Safeguarding",Children's & Education Services,103,Premises-Related Expenditure,502,Energy Costs,5006,Revenue,27.GAS
28-Apr-2017,7003355,7.32,CHICKEN JOES LTD T/A LOVE JOES,375810,Commissioning & Investment,Children's & Education Services,103,Supplies and Services,504,Equipment,5023,Revenue,03.GROCERIES & PROVISIONS
28-Apr-2017,7003355,4.16,CHICKEN JOES LTD T/A LOVE JOES,375810,Commissioning & Investment,Children's & Education Services,103,Supplies and Services,504,Equipment,5023,Revenue,03.GROCERIES & PROVISIONS
28-Apr-2017,7003355,7.37,CHICKEN JOES LTD T/A LOVE JOES,375810,Commissioning & Investment,Children's & Education Services,103,Supplies and Services,504,Equipment,5023,Revenue,03.GROCERIES & PROVISIONS
28-Apr-2017,7003355,17.00,CHICKEN JOES LTD T/A LOVE JOES,375810,Commissioning & Investment,Children's & Education Services,103,Supplies and Services,504,Equipment,5023,Revenue,03.GROCERIES & PROVISIONS
28-Apr-2017,7003355,11.84,CHICKEN JOES LTD T/A LOVE JOES,375810,Commissioning & Investment,Children's & Education Services,103,Supplies and Services,504,Equipment,5023,Revenue,03.GROCERIES & PROVISIONS
28-Apr-2017,7003355,25.50,CHICKEN JOES LTD T/A LOVE JOES,375810,Commissioning & Investment,Children's & Education Services,103,Supplies and Services,504,Equipment,5023,Revenue,03.GROCERIES & PROVISIONS
28-Apr-2017,7003355,36.40,CHICKEN JOES LTD T/A LOVE JOES,375810,Commissioning & Investment,Children's & Education Services,103,Supplies and Services,504,Equipment,5023,Revenue,03.GROCERIES & PROVISIONS
28-Apr-2017,7003355,6.00,CHICKEN JOES LTD T/A LOVE JOES,375810,Commissioning & Investment,Children's & Education Services,103,Supplies and Services,504,Equipment,5023,Revenue,03.GROCERIES & PROVISIONS
28-Apr-2017,7003355,12.48,CHICKEN JOES LTD T/A LOVE JOES,375810,Commissioning & Investment,Children's & Education Services,103,Supplies and Services,504,Equipment,5023,Revenue,03.GROCERIES & PROVISIONS
28-Apr-2017,7003355,14.40,CHICKEN JOES LTD T/A LOVE JOES,375810,Commissioning & Investment,Children's & Education Services,103,Supplies and Services,504,Equipment,5023,Revenue,03.GROCERIES & PROVISIONS
28-Apr-2017,7003355,11.84,CHICKEN JOES LTD T/A LOVE JOES,375810,Commissioning & Investment,Children's & Education Services,103,Supplies and Services,504,Equipment,5023,Revenue,03.GROCERIES & PROVISIONS
28-Apr-2017,7003355,120.00,CHICKEN JOES LTD T/A LOVE JOES,375810,Commissioning & Investment,Children's & Education Services,103,Supplies and Services,504,Equipment,5023,Revenue,03.GROCERIES & PROVISIONS
28-Apr-2017,7003355,20.80,CHICKEN JOES LTD T/A LOVE JOES,375810,Commissioning & Investment,Children's & Education Services,103,Supplies and Services,504,Equipment,5023,Revenue,03.GROCERIES & PROVISIONS
28-Apr-2017,7003355,15.00,CHICKEN JOES LTD T/A LOVE JOES,375810,Commissioning & Investment,Children's & Education Services,103,Supplies and Services,504,Equipment,5023,Revenue,03.GROCERIES & PROVISIONS
28-Apr-2017,7003355,44.22,CHICKEN JOES LTD T/A LOVE JOES,375810,Commissioning & Investment,Children's & Education Services,103,Supplies and Services,504,Equipment,5023,Revenue,03.GROCERIES & PROVISIONS
28-Apr-2017,7003355,12.48,CHICKEN JOES LTD T/A LOVE JOES,375810,Commissioning & Investment,Children's & Education Services,103,Supplies and Services,504,Equipment,5023,Revenue,03.GROCERIES & PROVISIONS
28-Apr-2017,7003355,11.84,CHICKEN JOES LTD T/A LOVE JOES,375810,Commissioning & Investment,Children's & Education Services,103,Supplies and Services,504,Equipment,5023,Revenue,03.GROCERIES & PROVISIONS
28-Apr-2017,7003355,16.89,CHICKEN JOES LTD T/A LOVE JOES,375810,Commissioning & Investment,Children's & Education Services,103,Supplies and Services,504,Equipment,5023,Revenue,03.GROCERIES & PROVISIONS
28-Apr-2017,7003355,20.80,CHICKEN JOES LTD T/A LOVE JOES,375810,Commissioning & Investment,Children's & Education Services,103,Supplies and Services,504,Equipment,5023,Revenue,03.GROCERIES & PROVISIONS
28-Apr-2017,7003355,4.16,CHICKEN JOES LTD T/A LOVE JOES,375810,Commissioning & Investment,Children's & Education Services,103,Supplies and Services,504,Equipment,5023,Revenue,03.GROCERIES & PROVISIONS
28-Apr-2017,7003355,11.84,CHICKEN JOES LTD T/A LOVE JOES,375810,Commissioning & Investment,Children's & Education Services,103,Supplies and Services,504,Equipment,5023,Revenue,03.GROCERIES & PROVISIONS
28-Apr-2017,7003355,11.84,CHICKEN JOES LTD T/A LOVE JOES,375810,Commissioning & Investment,Children's & Education Services,103,Supplies and Services,504,Equipment,5023,Revenue,03.GROCERIES & PROVISIONS
28-Apr-2017,7003355,8.32,CHICKEN JOES LTD T/A LOVE JOES,375810,Commissioning & Investment,Children's & Education Services,103,Supplies and Services,504,Equipment,5023,Revenue,03.GROCERIES & PROVISIONS
28-Apr-2017,7003355,17.00,CHICKEN JOES LTD T/A LOVE JOES,375810,Commissioning & Investment,Children's & Education Services,103,Supplies and Services,504,Equipment,5023,Revenue,03.GROCERIES & PROVISIONS
28-Apr-2017,7003355,19.46,CHICKEN JOES LTD T/A LOVE JOES,375810,Commissioning & Investment,Children's & Education Services,103,Supplies and Services,504,Equipment,5023,Revenue,03.GROCERIES & PROVISIONS
28-Apr-2017,7003355,59.20,CHICKEN JOES LTD T/A LOVE JOES,375810,Commissioning & Investment,Children's & Education Services,103,Supplies and Services,504,Equipment,5023,Revenue,03.GROCERIES & PROVISIONS
28-Apr-2017,7003355,13.73,CHICKEN JOES LTD T/A LOVE JOES,375810,Commissioning & Investment,Children's & Education Services,103,Supplies and Services,504,Equipment,5023,Revenue,03.GROCERIES & PROVISIONS
28-Apr-2017,7003355,12.42,CHICKEN JOES LTD T/A LOVE JOES,375810,Commissioning & Investment,Children's & Education Services,103,Supplies and Services,504,Equipment,5023,Revenue,03.GROCERIES & PROVISIONS
28-Apr-2017,7003355,38.58,CHICKEN JOES LTD T/A LOVE JOES,375810,Commissioning & Investment,Children's & Education Services,103,Supplies and Services,504,Equipment,5023,Revenue,03.GROCERIES & PROVISIONS
28-Apr-2017,7003355,4.16,CHICKEN JOES LTD T/A LOVE JOES,375810,Commissioning & Investment,Children's & Education Services,103,Supplies and Services,504,Equipment,5023,Revenue,03.GROCERIES & PROVISIONS
28-Apr-2017,7003355,24.00,CHICKEN JOES LTD T/A LOVE JOES,375810,Commissioning & Investment,Children's & Education Services,103,Supplies and Services,504,Equipment,5023,Revenue,03.GROCERIES & PROVISIONS
28-Apr-2017,7003355,11.84,CHICKEN JOES LTD T/A LOVE JOES,375810,Commissioning & Investment,Children's & Education Services,103,Supplies and Services,504,Equipment,5023,Revenue,03.GROCERIES & PROVISIONS
28-Apr-2017,7003355,11.84,CHICKEN JOES LTD T/A LOVE JOES,375810,Commissioning & Investment,Children's & Education Services,103,Supplies and Services,504,Equipment,5023,Revenue,03.GROCERIES & PROVISIONS
28-Apr-2017,7003355,15.00,CHICKEN JOES LTD T/A LOVE JOES,375810,Commissioning & Investment,Children's & Education Services,103,Supplies and Services,504,Equipment,5023,Revenue,03.GROCERIES & PROVISIONS
28-Apr-2017,7003355,7.37,CHICKEN JOES LTD T/A LOVE JOES,375810,Commissioning & Investment,Children's & Education Services,103,Supplies and Services,504,Equipment,5023,Revenue,03.GROCERIES & PROVISIONS
28-Apr-2017,7003355,14.00,CHICKEN JOES LTD T/A LOVE JOES,375810,Commissioning & Investment,Children's & Education Services,103,Supplies and Services,504,Equipment,5023,Revenue,03.GROCERIES & PROVISIONS
28-Apr-2017,7003355,14.74,CHICKEN JOES LTD T/A LOVE JOES,375810,Commissioning & Investment,Children's & Education Services,103,Supplies and Services,504,Equipment,5023,Revenue,03.GROCERIES & PROVISIONS
28-Apr-2017,7003355,11.84,CHICKEN JOES LTD T/A LOVE JOES,375810,Commissioning & Investment,Children's & Education Services,103,Supplies and Services,504,Equipment,5023,Revenue,03.GROCERIES & PROVISIONS
28-Apr-2017,7003355,11.84,CHICKEN JOES LTD T/A LOVE JOES,375810,Commissioning & Investment,Children's & Education Services,103,Supplies and Services,504,Equipment,5023,Revenue,03.GROCERIES & PROVISIONS
28-Apr-2017,7003355,7.50,CHICKEN JOES LTD T/A LOVE JOES,375810,Commissioning & Investment,Children's & Education Services,103,Supplies and Services,504,Equipment,5023,Revenue,03.GROCERIES & PROVISIONS
28-Apr-2017,7003355,11.84,CHICKEN JOES LTD T/A LOVE JOES,375810,Commissioning & Investment,Children's & Education Services,103,Supplies and Services,504,Equipment,5023,Revenue,03.GROCERIES & PROVISIONS
28-Apr-2017,7003355,20.80,CHICKEN JOES LTD T/A LOVE JOES,375810,Commissioning & Investment,Children's & Education Services,103,Supplies and Services,504,Equipment,5023,Revenue,03.GROCERIES & PROVISIONS
28-Apr-2017,7003355,11.84,CHICKEN JOES LTD T/A LOVE JOES,375810,Commissioning & Investment,Children's & Education Services,103,Supplies and Services,504,Equipment,5023,Revenue,03.GROCERIES & PROVISIONS
28-Apr-2017,7003355,60.00,CHICKEN JOES LTD T/A LOVE JOES,375810,Commissioning & Investment,Children's & Education Services,103,Supplies and Services,504,Equipment,5023,Revenue,03.GROCERIES & PROVISIONS
28-Apr-2017,7003355,23.68,CHICKEN JOES LTD T/A LOVE JOES,375810,Commissioning & Investment,Children's & Education Services,103,Supplies and Services,504,Equipment,5023,Revenue,03.GROCERIES & PROVISIONS
28-Apr-2017,7003355,11.84,CHICKEN JOES LTD T/A LOVE JOES,375810,Commissioning & Investment,Children's & Education Services,103,Supplies and Services,504,Equipment,5023,Revenue,03.GROCERIES & PROVISIONS
28-Apr-2017,7003355,7.56,CHICKEN JOES LTD T/A LOVE JOES,375810,Commissioning & Investment,Children's & Education Services,103,Supplies and Services,504,Equipment,5023,Revenue,03.GROCERIES & PROVISIONS
28-Apr-2017,7003355,28.00,CHICKEN JOES LTD T/A LOVE JOES,375810,Commissioning & Investment,Children's & Education Services,103,Supplies and Services,504,Equipment,5023,Revenue,03.GROCERIES & PROVISIONS
28-Apr-2017,7003355,14.74,CHICKEN JOES LTD T/A LOVE JOES,375810,Commissioning & Investment,Children's & Education Services,103,Supplies and Services,504,Equipment,5023,Revenue,03.GROCERIES & PROVISIONS
28-Apr-2017,7003355,14.74,CHICKEN JOES LTD T/A LOVE JOES,375810,Commissioning & Investment,Children's & Education Services,103,Supplies and Services,504,Equipment,5023,Revenue,03.GROCERIES & PROVISIONS
28-Apr-2017,7003355,18.37,CHICKEN JOES LTD T/A LOVE JOES,375810,Commissioning & Investment,Children's & Education Services,103,Supplies and Services,504,Equipment,5023,Revenue,03.GROCERIES & PROVISIONS
28-Apr-2017,7003355,180.00,CHICKEN JOES LTD T/A LOVE JOES,375810,Commissioning & Investment,Children's & Education Services,103,Supplies and Services,504,Equipment,5023,Revenue,03.GROCERIES & PROVISIONS
28-Apr-2017,7003355,24.00,CHICKEN JOES LTD T/A LOVE JOES,375810,Commissioning & Investment,Children's & Education Services,103,Supplies and Services,504,Equipment,5023,Revenue,03.GROCERIES & PROVISIONS
28-Apr-2017,7003355,18.37,CHICKEN JOES LTD T/A LOVE JOES,375810,Commissioning & Investment,Children's & Education Services,103,Supplies and Services,504,Equipment,5023,Revenue,03.GROCERIES & PROVISIONS
28-Apr-2017,7003355,4.16,CHICKEN JOES LTD T/A LOVE JOES,375810,Commissioning & Investment,Children's & Education Services,103,Supplies and Services,504,Equipment,5023,Revenue,03.GROCERIES & PROVISIONS
28-Apr-2017,7003355,6.24,CHICKEN JOES LTD T/A LOVE JOES,375810,Commissioning & Investment,Children's & Education Services,103,Supplies and Services,504,Equipment,5023,Revenue,03.GROCERIES & PROVISIONS
28-Apr-2017,7003355,8.15,CHICKEN JOES LTD T/A LOVE JOES,375810,Commissioning & Investment,Children's & Education Services,103,Supplies and Services,504,Equipment,5023,Revenue,03.GROCERIES & PROVISIONS
28-Apr-2017,7003355,14.95,CHICKEN JOES LTD T/A LOVE JOES,375810,Commissioning & Investment,Children's & Education Services,103,Supplies and Services,504,Equipment,5023,Revenue,03.GROCERIES & PROVISIONS
28-Apr-2017,7003355,17.88,CHICKEN JOES LTD T/A LOVE JOES,375810,Commissioning & Investment,Children's & Education Services,103,Supplies and Services,504,Equipment,5023,Revenue,03.GROCERIES & PROVISIONS
28-Apr-2017,7003355,4.16,CHICKEN JOES LTD T/A LOVE JOES,375810,Commissioning & Investment,Children's & Education Services,103,Supplies and Services,504,Equipment,5023,Revenue,03.GROCERIES & PROVISIONS
28-Apr-2017,7003355,2.40,CHICKEN JOES LTD T/A LOVE JOES,375810,Commissioning & Investment,Children's & Education Services,103,Supplies and Services,504,Equipment,5023,Revenue,03.GROCERIES & PROVISIONS
28-Apr-2017,7003355,19.46,CHICKEN JOES LTD T/A LOVE JOES,375810,Commissioning & Investment,Children's & Education Services,103,Supplies and Services,504,Equipment,5023,Revenue,03.GROCERIES & PROVISIONS
28-Apr-2017,7003355,2.08,CHICKEN JOES LTD T/A LOVE JOES,375810,Commissioning & Investment,Children's & Education Services,103,Supplies and Services,504,Equipment,5023,Revenue,03.GROCERIES & PROVISIONS
28-Apr-2017,7003355,14.95,CHICKEN JOES LTD T/A LOVE JOES,375810,Commissioning & Investment,Children's & Education Services,103,Supplies and Services,504,Equipment,5023,Revenue,03.GROCERIES & PROVISIONS
28-Apr-2017,7003355,15.00,CHICKEN JOES LTD T/A LOVE JOES,375810,Commissioning & Investment,Children's & Education Services,103,Supplies and Services,504,Equipment,5023,Revenue,03.GROCERIES & PROVISIONS
28-Apr-2017,7003355,20.80,CHICKEN JOES LTD T/A LOVE JOES,375810,Commissioning & Investment,Children's & Education Services,103,Supplies and Services,504,Equipment,5023,Revenue,03.GROCERIES & PROVISIONS
28-Apr-2017,7003355,20.80,CHICKEN JOES LTD T/A LOVE JOES,375810,Commissioning & Investment,Children's & Education Services,103,Supplies and Services,504,Equipment,5023,Revenue,03.GROCERIES & PROVISIONS
28-Apr-2017,7003355,4.16,CHICKEN JOES LTD T/A LOVE JOES,375810,Commissioning & Investment,Children's & Education Services,103,Supplies and Services,504,Equipment,5023,Revenue,03.GROCERIES & PROVISIONS
28-Apr-2017,7003355,26.92,CHICKEN JOES LTD T/A LOVE JOES,375810,Commissioning & Investment,Children's & Education Services,103,Supplies and Services,504,Equipment,5023,Revenue,03.GROCERIES & PROVISIONS
28-Apr-2017,7003355,14.95,CHICKEN JOES LTD T/A LOVE JOES,375810,Commissioning & Investment,Children's & Education Services,103,Supplies and Services,504,Equipment,5023,Revenue,03.GROCERIES & PROVISIONS
28-Apr-2017,7003355,4.16,CHICKEN JOES LTD T/A LOVE JOES,375810,Commissioning & Investment,Children's & Education Services,103,Supplies and Services,504,Equipment,5023,Revenue,03.GROCERIES & PROVISIONS
28-Apr-2017,7003355,7.56,CHICKEN JOES LTD T/A LOVE JOES,375810,Commissioning & Investment,Children's & Education Services,103,Supplies and Services,504,Equipment,5023,Revenue,03.GROCERIES & PROVISIONS
28-Apr-2017,7003355,8.32,CHICKEN JOES LTD T/A LOVE JOES,375810,Commissioning & Investment,Children's & Education Services,103,Supplies and Services,504,Equipment,5023,Revenue,03.GROCERIES & PROVISIONS
28-Apr-2017,7003355,12.55,CHICKEN JOES LTD T/A LOVE JOES,375810,Commissioning & Investment,Children's & Education Services,103,Supplies and Services,504,Equipment,5023,Revenue,03.GROCERIES & PROVISIONS
28-Apr-2017,7003355,17.00,CHICKEN JOES LTD T/A LOVE JOES,375810,Commissioning & Investment,Children's & Education Services,103,Supplies and Services,504,Equipment,5023,Revenue,03.GROCERIES & PROVISIONS
28-Apr-2017,7003355,2.13,CHICKEN JOES LTD T/A LOVE JOES,375810,Commissioning & Investment,Children's & Education Services,103,Supplies and Services,504,Equipment,5023,Revenue,03.GROCERIES & PROVISIONS
28-Apr-2017,7003355,20.80,CHICKEN JOES LTD T/A LOVE JOES,375810,Commissioning & Investment,Children's & Education Services,103,Supplies and Services,504,Equipment,5023,Revenue,03.GROCERIES & PROVISIONS
28-Apr-2017,7003355,16.89,CHICKEN JOES LTD T/A LOVE JOES,375810,Commissioning & Investment,Children's & Education Services,103,Supplies and Services,504,Equipment,5023,Revenue,03.GROCERIES & PROVISIONS
28-Apr-2017,7003355,11.84,CHICKEN JOES LTD T/A LOVE JOES,375810,Commissioning & Investment,Children's & Education Services,103,Supplies and Services,504,Equipment,5023,Revenue,03.GROCERIES & PROVISIONS
28-Apr-2017,7003355,7.28,CHICKEN JOES LTD T/A LOVE JOES,375810,Commissioning & Investment,Children's & Education Services,103,Supplies and Services,504,Equipment,5023,Revenue,03.GROCERIES & PROVISIONS
28-Apr-2017,7003355,12.42,CHICKEN JOES LTD T/A LOVE JOES,375810,Commissioning & Investment,Children's & Education Services,103,Supplies and Services,504,Equipment,5023,Revenue,03.GROCERIES & PROVISIONS
28-Apr-2017,7003355,12.42,CHICKEN JOES LTD T/A LOVE JOES,375810,Commissioning & Investment,Children's & Education Services,103,Supplies and Services,504,Equipment,5023,Revenue,03.GROCERIES & PROVISIONS
28-Apr-2017,7003355,35.52,CHICKEN JOES LTD T/A LOVE JOES,375810,Commissioning & Investment,Children's & Education Services,103,Supplies and Services,504,Equipment,5023,Revenue,03.GROCERIES & PROVISIONS
28-Apr-2017,7003355,7.50,CHICKEN JOES LTD T/A LOVE JOES,375810,Commissioning & Investment,Children's & Education Services,103,Supplies and Services,504,Equipment,5023,Revenue,03.GROCERIES & PROVISIONS
28-Apr-2017,7003355,5.28,CHICKEN JOES LTD T/A LOVE JOES,375810,Commissioning & Investment,Children's & Education Services,103,Supplies and Services,504,Equipment,5023,Revenue,03.GROCERIES & PROVISIONS
28-Apr-2017,7003355,19.29,CHICKEN JOES LTD T/A LOVE JOES,375810,Commissioning & Investment,Children's & Education Services,103,Supplies and Services,504,Equipment,5023,Revenue,03.GROCERIES & PROVISIONS
28-Apr-2017,7003355,6.24,CHICKEN JOES LTD T/A LOVE JOES,375810,Commissioning & Investment,Children's & Education Services,103,Supplies and Services,504,Equipment,5023,Revenue,03.GROCERIES & PROVISIONS
28-Apr-2017,7003355,9.19,CHICKEN JOES LTD T/A LOVE JOES,375810,Commissioning & Investment,Children's & Education Services,103,Supplies and Services,504,Equipment,5023,Revenue,03.GROCERIES & PROVISIONS
28-Apr-2017,7003355,55.11,CHICKEN JOES LTD T/A LOVE JOES,375810,Commissioning & Investment,Children's & Education Services,103,Supplies and Services,504,Equipment,5023,Revenue,03.GROCERIES & PROVISIONS
28-Apr-2017,7003355,14.95,CHICKEN JOES LTD T/A LOVE JOES,375810,Commissioning & Investment,Children's & Education Services,103,Supplies and Services,504,Equipment,5023,Revenue,03.GROCERIES & PROVISIONS
28-Apr-2017,7003355,20.80,CHICKEN JOES LTD T/A LOVE JOES,375810,Commissioning & Investment,Children's & Education Services,103,Supplies and Services,504,Equipment,5023,Revenue,03.GROCERIES & PROVISIONS
28-Apr-2017,7003355,11.84,CHICKEN JOES LTD T/A LOVE JOES,375810,Commissioning & Investment,Children's & Education Services,103,Supplies and Services,504,Equipment,5023,Revenue,03.GROCERIES & PROVISIONS
28-Apr-2017,7003355,19.29,CHICKEN JOES LTD T/A LOVE JOES,375810,Commissioning & Investment,Children's & Education Services,103,Supplies and Services,504,Equipment,5023,Revenue,03.GROCERIES & PROVISIONS
28-Apr-2017,7003355,21.12,CHICKEN JOES LTD T/A LOVE JOES,375810,Commissioning & Investment,Children's & Education Services,103,Supplies and Services,504,Equipment,5023,Revenue,03.GROCERIES & PROVISIONS
28-Apr-2017,7003355,23.68,CHICKEN JOES LTD T/A LOVE JOES,375810,Commissioning & Investment,Children's & Education Services,103,Supplies and Services,504,Equipment,5023,Revenue,03.GROCERIES & PROVISIONS
28-Apr-2017,7003355,20.80,CHICKEN JOES LTD T/A LOVE JOES,375810,Commissioning & Investment,Children's & Education Services,103,Supplies and Services,504,Equipment,5023,Revenue,03.GROCERIES & PROVISIONS
28-Apr-2017,7003355,20.80,CHICKEN JOES LTD T/A LOVE JOES,375810,Commissioning & Investment,Children's & Education Services,103,Supplies and Services,504,Equipment,5023,Revenue,03.GROCERIES & PROVISIONS
28-Apr-2017,7003355,2.08,CHICKEN JOES LTD T/A LOVE JOES,375810,Commissioning & Investment,Children's & Education Services,103,Supplies and Services,504,Equipment,5023,Revenue,03.GROCERIES & PROVISIONS
28-Apr-2017,7003355,12.42,CHICKEN JOES LTD T/A LOVE JOES,375810,Commissioning & Investment,Children's & Education Services,103,Supplies and Services,504,Equipment,5023,Revenue,03.GROCERIES & PROVISIONS
28-Apr-2017,7003355,24.00,CHICKEN JOES LTD T/A LOVE JOES,375810,Commissioning & Investment,Children's & Education Services,103,Supplies and Services,504,Equipment,5023,Revenue,03.GROCERIES & PROVISIONS
28-Apr-2017,7003355,14.80,CHICKEN JOES LTD T/A LOVE JOES,375810,Commissioning & Investment,Children's & Education Services,103,Supplies and Services,504,Equipment,5023,Revenue,03.GROCERIES & PROVISIONS
28-Apr-2017,7003355,11.84,CHICKEN JOES LTD T/A LOVE JOES,375810,Commissioning & Investment,Children's & Education Services,103,Supplies and Services,504,Equipment,5023,Revenue,03.GROCERIES & PROVISIONS
28-Apr-2017,7003355,19.46,CHICKEN JOES LTD T/A LOVE JOES,375810,Commissioning & Investment,Children's & Education Services,103,Supplies and Services,504,Equipment,5023,Revenue,03.GROCERIES & PROVISIONS
28-Apr-2017,7003355,2.08,CHICKEN JOES LTD T/A LOVE JOES,375810,Commissioning & Investment,Children's & Education Services,103,Supplies and Services,504,Equipment,5023,Revenue,03.GROCERIES & PROVISIONS
28-Apr-2017,7003355,24.00,CHICKEN JOES LTD T/A LOVE JOES,375810,Commissioning & Investment,Children's & Education Services,103,Supplies and Services,504,Equipment,5023,Revenue,03.GROCERIES & PROVISIONS
28-Apr-2017,7003355,12.42,CHICKEN JOES LTD T/A LOVE JOES,375810,Commissioning & Investment,Children's & Education Services,103,Supplies and Services,504,Equipment,5023,Revenue,03.GROCERIES & PROVISIONS
28-Apr-2017,7003355,24.00,CHICKEN JOES LTD T/A LOVE JOES,375810,Commissioning & Investment,Children's & Education Services,103,Supplies and Services,504,Equipment,5023,Revenue,03.GROCERIES & PROVISIONS
28-Apr-2017,7003355,35.52,CHICKEN JOES LTD T/A LOVE JOES,375810,Commissioning & Investment,Children's & Education Services,103,Supplies and Services,504,Equipment,5023,Revenue,03.GROCERIES & PROVISIONS
28-Apr-2017,7003355,4.58,CHICKEN JOES LTD T/A LOVE JOES,375810,Commissioning & Investment,Children's & Education Services,103,Supplies and Services,504,Equipment,5023,Revenue,03.GROCERIES & PROVISIONS
28-Apr-2017,7003355,11.84,CHICKEN JOES LTD T/A LOVE JOES,375810,Commissioning & Investment,Children's & Education Services,103,Supplies and Services,504,Equipment,5023,Revenue,03.GROCERIES & PROVISIONS
28-Apr-2017,7003355,9.47,CHICKEN JOES LTD T/A LOVE JOES,375810,Commissioning & Investment,Children's & Education Services,103,Supplies and Services,504,Equipment,5023,Revenue,03.GROCERIES & PROVISIONS
28-Apr-2017,7003355,11.84,CHICKEN JOES LTD T/A LOVE JOES,375810,Commissioning & Investment,Children's & Education Services,103,Supplies and Services,504,Equipment,5023,Revenue,03.GROCERIES & PROVISIONS
28-Apr-2017,7003355,20.80,CHICKEN JOES LTD T/A LOVE JOES,375810,Commissioning & Investment,Children's & Education Services,103,Supplies and Services,504,Equipment,5023,Revenue,03.GROCERIES & PROVISIONS
28-Apr-2017,7003355,11.84,CHICKEN JOES LTD T/A LOVE JOES,375810,Commissioning & Investment,Children's & Education Services,103,Supplies and Services,504,Equipment,5023,Revenue,03.GROCERIES & PROVISIONS
28-Apr-2017,7003355,11.84,CHICKEN JOES LTD T/A LOVE JOES,375810,Commissioning & Investment,Children's & Education Services,103,Supplies and Services,504,Equipment,5023,Revenue,03.GROCERIES & PROVISIONS
28-Apr-2017,7003355,12.42,CHICKEN JOES LTD T/A LOVE JOES,375810,Commissioning & Investment,Children's & Education Services,103,Supplies and Services,504,Equipment,5023,Revenue,03.GROCERIES & PROVISIONS
28-Apr-2017,7003355,11.84,CHICKEN JOES LTD T/A LOVE JOES,375810,Commissioning & Investment,Children's & Education Services,103,Supplies and Services,504,Equipment,5023,Revenue,03.GROCERIES & PROVISIONS
28-Apr-2017,7003355,6.24,CHICKEN JOES LTD T/A LOVE JOES,375810,Commissioning & Investment,Children's & Education Services,103,Supplies and Services,504,Equipment,5023,Revenue,03.GROCERIES & PROVISIONS
28-Apr-2017,7003355,27.46,CHICKEN JOES LTD T/A LOVE JOES,375810,Commissioning & Investment,Children's & Education Services,103,Supplies and Services,504,Equipment,5023,Revenue,03.GROCERIES & PROVISIONS
28-Apr-2017,7003355,13.62,CHICKEN JOES LTD T/A LOVE JOES,375810,Commissioning & Investment,Children's & Education Services,103,Supplies and Services,504,Equipment,5023,Revenue,03.GROCERIES & PROVISIONS
28-Apr-2017,7003355,11.84,CHICKEN JOES LTD T/A LOVE JOES,375810,Commissioning & Investment,Children's & Education Services,103,Supplies and Services,504,Equipment,5023,Revenue,03.GROCERIES & PROVISIONS
28-Apr-2017,7003355,23.68,CHICKEN JOES LTD T/A LOVE JOES,375810,Commissioning & Investment,Children's & Education Services,103,Supplies and Services,504,Equipment,5023,Revenue,03.GROCERIES & PROVISIONS
28-Apr-2017,7003355,120.00,CHICKEN JOES LTD T/A LOVE JOES,375810,Commissioning & Investment,Children's & Education Services,103,Supplies and Services,504,Equipment,5023,Revenue,03.GROCERIES & PROVISIONS
28-Apr-2017,7003355,11.84,CHICKEN JOES LTD T/A LOVE JOES,375810,Commissioning & Investment,Children's & Education Services,103,Supplies and Services,504,Equipment,5023,Revenue,03.GROCERIES & PROVISIONS
28-Apr-2017,7003355,60.00,CHICKEN JOES LTD T/A LOVE JOES,375810,Commissioning & Investment,Children's & Education Services,103,Supplies and Services,504,Equipment,5023,Revenue,03.GROCERIES & PROVISIONS
28-Apr-2017,7003355,11.84,CHICKEN JOES LTD T/A LOVE JOES,375810,Commissioning & Investment,Children's & Education Services,103,Supplies and Services,504,Equipment,5023,Revenue,03.GROCERIES & PROVISIONS
28-Apr-2017,7003355,7.75,CHICKEN JOES LTD T/A LOVE JOES,375810,Commissioning & Investment,Children's & Education Services,103,Supplies and Services,504,Equipment,5023,Revenue,03.GROCERIES & PROVISIONS
28-Apr-2017,7003355,38.92,CHICKEN JOES LTD T/A LOVE JOES,375810,Commissioning & Investment,Children's & Education Services,103,Supplies and Services,504,Equipment,5023,Revenue,03.GROCERIES & PROVISIONS
28-Apr-2017,7003355,11.84,CHICKEN JOES LTD T/A LOVE JOES,375810,Commissioning & Investment,Children's & Education Services,103,Supplies and Services,504,Equipment,5023,Revenue,03.GROCERIES & PROVISIONS
28-Apr-2017,7003355,14.74,CHICKEN JOES LTD T/A LOVE JOES,375810,Commissioning & Investment,Children's & Education Services,103,Supplies and Services,504,Equipment,5023,Revenue,03.GROCERIES & PROVISIONS
28-Apr-2017,7003355,2.08,CHICKEN JOES LTD T/A LOVE JOES,375810,Commissioning & Investment,Children's & Education Services,103,Supplies and Services,504,Equipment,5023,Revenue,03.GROCERIES & PROVISIONS
28-Apr-2017,7003355,47.36,CHICKEN JOES LTD T/A LOVE JOES,375810,Commissioning & Investment,Children's & Education Services,103,Supplies and Services,504,Equipment,5023,Revenue,03.GROCERIES & PROVISIONS
28-Apr-2017,7003355,28.91,CHICKEN JOES LTD T/A LOVE JOES,375810,Commissioning & Investment,Children's & Education Services,103,Supplies and Services,504,Equipment,5023,Revenue,03.GROCERIES & PROVISIONS
28-Apr-2017,7003355,36.74,CHICKEN JOES LTD T/A LOVE JOES,375810,Commissioning & Investment,Children's & Education Services,103,Supplies and Services,504,Equipment,5023,Revenue,03.GROCERIES & PROVISIONS
28-Apr-2017,7003355,11.84,CHICKEN JOES LTD T/A LOVE JOES,375810,Commissioning & Investment,Children's & Education Services,103,Supplies and Services,504,Equipment,5023,Revenue,03.GROCERIES & PROVISIONS
28-Apr-2017,7003355,11.84,CHICKEN JOES LTD T/A LOVE JOES,375810,Commissioning & Investment,Children's & Education Services,103,Supplies and Services,504,Equipment,5023,Revenue,03.GROCERIES & PROVISIONS
28-Apr-2017,7003355,13.74,CHICKEN JOES LTD T/A LOVE JOES,375810,Commissioning & Investment,Children's & Education Services,103,Supplies and Services,504,Equipment,5023,Revenue,03.GROCERIES & PROVISIONS
28-Apr-2017,7003355,11.84,CHICKEN JOES LTD T/A LOVE JOES,375810,Commissioning & Investment,Children's & Education Services,103,Supplies and Services,504,Equipment,5023,Revenue,03.GROCERIES & PROVISIONS
28-Apr-2017,7003355,11.84,CHICKEN JOES LTD T/A LOVE JOES,375810,Commissioning & Investment,Children's & Education Services,103,Supplies and Services,504,Equipment,5023,Revenue,03.GROCERIES & PROVISIONS
28-Apr-2017,7003355,11.84,CHICKEN JOES LTD T/A LOVE JOES,375810,Commissioning & Investment,Children's & Education Services,103,Supplies and Services,504,Equipment,5023,Revenue,03.GROCERIES & PROVISIONS
28-Apr-2017,7003355,18.37,CHICKEN JOES LTD T/A LOVE JOES,375810,Commissioning & Investment,Children's & Education Services,103,Supplies and Services,504,Equipment,5023,Revenue,03.GROCERIES & PROVISIONS
28-Apr-2017,7003355,47.36,CHICKEN JOES LTD T/A LOVE JOES,375810,Commissioning & Investment,Children's & Education Services,103,Supplies and Services,504,Equipment,5023,Revenue,03.GROCERIES & PROVISIONS
28-Apr-2017,7003355,47.36,CHICKEN JOES LTD T/A LOVE JOES,375810,Commissioning & Investment,Children's & Education Services,103,Supplies and Services,504,Equipment,5023,Revenue,03.GROCERIES & PROVISIONS
28-Apr-2017,7003355,47.36,CHICKEN JOES LTD T/A LOVE JOES,375810,Commissioning & Investment,Children's & Education Services,103,Supplies and Services,504,Equipment,5023,Revenue,03.GROCERIES & PROVISIONS
28-Apr-2017,7003355,9.84,CHICKEN JOES LTD T/A LOVE JOES,375810,Commissioning & Investment,Children's & Education Services,103,Supplies and Services,504,Equipment,5023,Revenue,03.GROCERIES & PROVISIONS
28-Apr-2017,7003355,11.84,CHICKEN JOES LTD T/A LOVE JOES,375810,Commissioning & Investment,Children's & Education Services,103,Supplies and Services,504,Equipment,5023,Revenue,03.GROCERIES & PROVISIONS
28-Apr-2017,7003355,12.42,CHICKEN JOES LTD T/A LOVE JOES,375810,Commissioning & Investment,Children's & Education Services,103,Supplies and Services,504,Equipment,5023,Revenue,03.GROCERIES & PROVISIONS
28-Apr-2017,7003355,11.84,CHICKEN JOES LTD T/A LOVE JOES,375810,Commissioning & Investment,Children's & Education Services,103,Supplies and Services,504,Equipment,5023,Revenue,03.GROCERIES & PROVISIONS
28-Apr-2017,7003355,11.84,CHICKEN JOES LTD T/A LOVE JOES,375810,Commissioning & Investment,Children's & Education Services,103,Supplies and Services,504,Equipment,5023,Revenue,03.GROCERIES & PROVISIONS
28-Apr-2017,7003355,4.16,CHICKEN JOES LTD T/A LOVE JOES,375810,Commissioning & Investment,Children's & Education Services,103,Supplies and Services,504,Equipment,5023,Revenue,03.GROCERIES & PROVISIONS
28-Apr-2017,7003355,16.64,CHICKEN JOES LTD T/A LOVE JOES,375810,Commissioning & Investment,Children's & Education Services,103,Supplies and Services,504,Equipment,5023,Revenue,03.GROCERIES & PROVISIONS
28-Apr-2017,7003355,12.45,CHICKEN JOES LTD T/A LOVE JOES,375810,Commissioning & Investment,Children's & Education Services,103,Supplies and Services,504,Equipment,5023,Revenue,03.GROCERIES & PROVISIONS
28-Apr-2017,7003355,11.84,CHICKEN JOES LTD T/A LOVE JOES,375810,Commissioning & Investment,Children's & Education Services,103,Supplies and Services,504,Equipment,5023,Revenue,03.GROCERIES & PROVISIONS
28-Apr-2017,7003355,16.30,CHICKEN JOES LTD T/A LOVE JOES,375810,Commissioning & Investment,Children's & Education Services,103,Supplies and Services,504,Equipment,5023,Revenue,03.GROCERIES & PROVISIONS
28-Apr-2017,7003355,120.00,CHICKEN JOES LTD T/A LOVE JOES,375810,Commissioning & Investment,Children's & Education Services,103,Supplies and Services,504,Equipment,5023,Revenue,03.GROCERIES & PROVISIONS
28-Apr-2017,7003355,10.68,CHICKEN JOES LTD T/A LOVE JOES,375810,Commissioning & Investment,Children's & Education Services,103,Supplies and Services,504,Equipment,5023,Revenue,03.GROCERIES & PROVISIONS
28-Apr-2017,7003355,68.65,CHICKEN JOES LTD T/A LOVE JOES,375810,Commissioning & Investment,Children's & Education Services,103,Supplies and Services,504,Equipment,5023,Revenue,03.GROCERIES & PROVISIONS
28-Apr-2017,7003355,13.73,CHICKEN JOES LTD T/A LOVE JOES,375810,Commissioning & Investment,Children's & Education Services,103,Supplies and Services,504,Equipment,5023,Revenue,03.GROCERIES & PROVISIONS
28-Apr-2017,7003355,360.00,CHICKEN JOES LTD T/A LOVE JOES,375810,Commissioning & Investment,Children's & Education Services,103,Supplies and Services,504,Equipment,5023,Revenue,03.GROCERIES & PROVISIONS
28-Apr-2017,7003355,7.28,CHICKEN JOES LTD T/A LOVE JOES,375810,Commissioning & Investment,Children's & Education Services,103,Supplies and Services,504,Equipment,5023,Revenue,03.GROCERIES & PROVISIONS
28-Apr-2017,7003355,300.00,CHICKEN JOES LTD T/A LOVE JOES,375810,Commissioning & Investment,Children's & Education Services,103,Supplies and Services,504,Equipment,5023,Revenue,03.GROCERIES & PROVISIONS
28-Apr-2017,7003355,29.48,CHICKEN JOES LTD T/A LOVE JOES,375810,Commissioning & Investment,Children's & Education Services,103,Supplies and Services,504,Equipment,5023,Revenue,03.GROCERIES & PROVISIONS
28-Apr-2017,7003355,6.21,CHICKEN JOES LTD T/A LOVE JOES,375810,Commissioning & Investment,Children's & Education Services,103,Supplies and Services,504,Equipment,5023,Revenue,03.GROCERIES & PROVISIONS
28-Apr-2017,7003355,120.00,CHICKEN JOES LTD T/A LOVE JOES,375810,Commissioning & Investment,Children's & Education Services,103,Supplies and Services,504,Equipment,5023,Revenue,03.GROCERIES & PROVISIONS
28-Apr-2017,7003355,11.84,CHICKEN JOES LTD T/A LOVE JOES,375810,Commissioning & Investment,Children's & Education Services,103,Supplies and Services,504,Equipment,5023,Revenue,03.GROCERIES & PROVISIONS
28-Apr-2017,7003355,12.42,CHICKEN JOES LTD T/A LOVE JOES,375810,Commissioning & Investment,Children's & Education Services,103,Supplies and Services,504,Equipment,5023,Revenue,03.GROCERIES & PROVISIONS
28-Apr-2017,7003355,11.84,CHICKEN JOES LTD T/A LOVE JOES,375810,Commissioning & Investment,Children's & Education Services,103,Supplies and Services,504,Equipment,5023,Revenue,03.GROCERIES & PROVISIONS
28-Apr-2017,7003355,12.42,CHICKEN JOES LTD T/A LOVE JOES,375810,Commissioning & Investment,Children's & Education Services,103,Supplies and Services,504,Equipment,5023,Revenue,03.GROCERIES & PROVISIONS
28-Apr-2017,7003355,15.12,CHICKEN JOES LTD T/A LOVE JOES,375810,Commissioning & Investment,Children's & Education Services,103,Supplies and Services,504,Equipment,5023,Revenue,03.GROCERIES & PROVISIONS
28-Apr-2017,7003355,20.80,CHICKEN JOES LTD T/A LOVE JOES,375810,Commissioning & Investment,Children's & Education Services,103,Supplies and Services,504,Equipment,5023,Revenue,03.GROCERIES & PROVISIONS
28-Apr-2017,7003355,29.05,CHICKEN JOES LTD T/A LOVE JOES,375810,Commissioning & Investment,Children's & Education Services,103,Supplies and Services,504,Equipment,5023,Revenue,03.GROCERIES & PROVISIONS
28-Apr-2017,7003355,7.28,CHICKEN JOES LTD T/A LOVE JOES,375810,Commissioning & Investment,Children's & Education Services,103,Supplies and Services,504,Equipment,5023,Revenue,03.GROCERIES & PROVISIONS
28-Apr-2017,7003355,25.50,CHICKEN JOES LTD T/A LOVE JOES,375810,Commissioning & Investment,Children's & Education Services,103,Supplies and Services,504,Equipment,5023,Revenue,03.GROCERIES & PROVISIONS
28-Apr-2017,7003355,13.73,CHICKEN JOES LTD T/A LOVE JOES,375810,Commissioning & Investment,Children's & Education Services,103,Supplies and Services,504,Equipment,5023,Revenue,03.GROCERIES & PROVISIONS
28-Apr-2017,7003355,11.36,CHICKEN JOES LTD T/A LOVE JOES,375810,Commissioning & Investment,Children's & Education Services,103,Supplies and Services,504,Equipment,5023,Revenue,03.GROCERIES & PROVISIONS
28-Apr-2017,7003355,8.32,CHICKEN JOES LTD T/A LOVE JOES,375810,Commissioning & Investment,Children's & Education Services,103,Supplies and Services,504,Equipment,5023,Revenue,03.GROCERIES & PROVISIONS
28-Apr-2017,7003355,8.32,CHICKEN JOES LTD T/A LOVE JOES,375810,Commissioning & Investment,Children's & Education Services,103,Supplies and Services,504,Equipment,5023,Revenue,03.GROCERIES & PROVISIONS
28-Apr-2017,7003355,35.52,CHICKEN JOES LTD T/A LOVE JOES,375810,Commissioning & Investment,Children's & Education Services,103,Supplies and Services,504,Equipment,5023,Revenue,03.GROCERIES & PROVISIONS
28-Apr-2017,7003355,11.84,CHICKEN JOES LTD T/A LOVE JOES,375810,Commissioning & Investment,Children's & Education Services,103,Supplies and Services,504,Equipment,5023,Revenue,03.GROCERIES & PROVISIONS
28-Apr-2017,7003355,10.40,CHICKEN JOES LTD T/A LOVE JOES,375810,Commissioning & Investment,Children's & Education Services,103,Supplies and Services,504,Equipment,5023,Revenue,03.GROCERIES & PROVISIONS
28-Apr-2017,7003355,7.66,CHICKEN JOES LTD T/A LOVE JOES,375810,Commissioning & Investment,Children's & Education Services,103,Supplies and Services,504,Equipment,5023,Revenue,03.GROCERIES & PROVISIONS
28-Apr-2017,7003355,4.16,CHICKEN JOES LTD T/A LOVE JOES,375810,Commissioning & Investment,Children's & Education Services,103,Supplies and Services,504,Equipment,5023,Revenue,03.GROCERIES & PROVISIONS
28-Apr-2017,7003355,7.56,CHICKEN JOES LTD T/A LOVE JOES,375810,Commissioning & Investment,Children's & Education Services,103,Supplies and Services,504,Equipment,5023,Revenue,03.GROCERIES & PROVISIONS
28-Apr-2017,7003355,11.84,CHICKEN JOES LTD T/A LOVE JOES,375810,Commissioning & Investment,Children's & Education Services,103,Supplies and Services,504,Equipment,5023,Revenue,03.GROCERIES & PROVISIONS
28-Apr-2017,7003355,11.84,CHICKEN JOES LTD T/A LOVE JOES,375810,Commissioning & Investment,Children's & Education Services,103,Supplies and Services,504,Equipment,5023,Revenue,03.GROCERIES & PROVISIONS
28-Apr-2017,7003355,11.84,CHICKEN JOES LTD T/A LOVE JOES,375810,Commissioning & Investment,Children's & Education Services,103,Supplies and Services,504,Equipment,5023,Revenue,03.GROCERIES & PROVISIONS
28-Apr-2017,7003355,35.52,CHICKEN JOES LTD T/A LOVE JOES,375810,Commissioning & Investment,Children's & Education Services,103,Supplies and Services,504,Equipment,5023,Revenue,03.GROCERIES & PROVISIONS
28-Apr-2017,7003355,10.56,CHICKEN JOES LTD T/A LOVE JOES,375810,Commissioning & Investment,Children's & Education Services,103,Supplies and Services,504,Equipment,5023,Revenue,03.GROCERIES & PROVISIONS
28-Apr-2017,7003355,120.00,CHICKEN JOES LTD T/A LOVE JOES,375810,Commissioning & Investment,Children's & Education Services,103,Supplies and Services,504,Equipment,5023,Revenue,03.GROCERIES & PROVISIONS
28-Apr-2017,7003355,10.40,CHICKEN JOES LTD T/A LOVE JOES,375810,Commissioning & Investment,Children's & Education Services,103,Supplies and Services,504,Equipment,5023,Revenue,03.GROCERIES & PROVISIONS
28-Apr-2017,7003355,29.05,CHICKEN JOES LTD T/A LOVE JOES,375810,Commissioning & Investment,Children's & Education Services,103,Supplies and Services,504,Equipment,5023,Revenue,03.GROCERIES & PROVISIONS
28-Apr-2017,7003355,16.89,CHICKEN JOES LTD T/A LOVE JOES,375810,Commissioning & Investment,Children's & Education Services,103,Supplies and Services,504,Equipment,5023,Revenue,03.GROCERIES & PROVISIONS
28-Apr-2017,7003355,4.16,CHICKEN JOES LTD T/A LOVE JOES,375810,Commissioning & Investment,Children's & Education Services,103,Supplies and Services,504,Equipment,5023,Revenue,03.GROCERIES & PROVISIONS
28-Apr-2017,7003355,14.53,CHICKEN JOES LTD T/A LOVE JOES,375810,Commissioning & Investment,Children's & Education Services,103,Supplies and Services,504,Equipment,5023,Revenue,03.GROCERIES & PROVISIONS
28-Apr-2017,7003355,4.16,CHICKEN JOES LTD T/A LOVE JOES,375810,Commissioning & Investment,Children's & Education Services,103,Supplies and Services,504,Equipment,5023,Revenue,03.GROCERIES & PROVISIONS
28-Apr-2017,7003355,2.40,CHICKEN JOES LTD T/A LOVE JOES,375810,Commissioning & Investment,Children's & Education Services,103,Supplies and Services,504,Equipment,5023,Revenue,03.GROCERIES & PROVISIONS
28-Apr-2017,7003355,7.17,CHICKEN JOES LTD T/A LOVE JOES,375810,Commissioning & Investment,Children's & Education Services,103,Supplies and Services,504,Equipment,5023,Revenue,03.GROCERIES & PROVISIONS
28-Apr-2017,7003355,14.95,CHICKEN JOES LTD T/A LOVE JOES,375810,Commissioning & Investment,Children's & Education Services,103,Supplies and Services,504,Equipment,5023,Revenue,03.GROCERIES & PROVISIONS
28-Apr-2017,7003355,11.84,CHICKEN JOES LTD T/A LOVE JOES,375810,Commissioning & Investment,Children's & Education Services,103,Supplies and Services,504,Equipment,5023,Revenue,03.GROCERIES & PROVISIONS
28-Apr-2017,7003355,24.84,CHICKEN JOES LTD T/A LOVE JOES,375810,Commissioning & Investment,Children's & Education Services,103,Supplies and Services,504,Equipment,5023,Revenue,03.GROCERIES & PROVISIONS
28-Apr-2017,7003355,16.64,CHICKEN JOES LTD T/A LOVE JOES,375810,Commissioning & Investment,Children's & Education Services,103,Supplies and Services,504,Equipment,5023,Revenue,03.GROCERIES & PROVISIONS
28-Apr-2017,7003355,11.84,CHICKEN JOES LTD T/A LOVE JOES,375810,Commissioning & Investment,Children's & Education Services,103,Supplies and Services,504,Equipment,5023,Revenue,03.GROCERIES & PROVISIONS
28-Apr-2017,7003355,16.30,CHICKEN JOES LTD T/A LOVE JOES,375810,Commissioning & Investment,Children's & Education Services,103,Supplies and Services,504,Equipment,5023,Revenue,03.GROCERIES & PROVISIONS
28-Apr-2017,7003355,11.84,CHICKEN JOES LTD T/A LOVE JOES,375810,Commissioning & Investment,Children's & Education Services,103,Supplies and Services,504,Equipment,5023,Revenue,03.GROCERIES & PROVISIONS
28-Apr-2017,7003355,13.73,CHICKEN JOES LTD T/A LOVE JOES,375810,Commissioning & Investment,Children's & Education Services,103,Supplies and Services,504,Equipment,5023,Revenue,03.GROCERIES & PROVISIONS
28-Apr-2017,7003355,4.16,CHICKEN JOES LTD T/A LOVE JOES,375810,Commissioning & Investment,Children's & Education Services,103,Supplies and Services,504,Equipment,5023,Revenue,03.GROCERIES & PROVISIONS
28-Apr-2017,7003355,4.16,CHICKEN JOES LTD T/A LOVE JOES,375810,Commissioning & Investment,Children's & Education Services,103,Supplies and Services,504,Equipment,5023,Revenue,03.GROCERIES & PROVISIONS
28-Apr-2017,7003355,120.00,CHICKEN JOES LTD T/A LOVE JOES,375810,Commissioning & Investment,Children's & Education Services,103,Supplies and Services,504,Equipment,5023,Revenue,03.GROCERIES & PROVISIONS
28-Apr-2017,7003355,13.73,CHICKEN JOES LTD T/A LOVE JOES,375810,Commissioning & Investment,Children's & Education Services,103,Supplies and Services,504,Equipment,5023,Revenue,03.GROCERIES & PROVISIONS
28-Apr-2017,7003355,22.10,CHICKEN JOES LTD T/A LOVE JOES,375810,Commissioning & Investment,Children's & Education Services,103,Supplies and Services,504,Equipment,5023,Revenue,03.GROCERIES & PROVISIONS
28-Apr-2017,7003355,24.96,CHICKEN JOES LTD T/A LOVE JOES,375810,Commissioning & Investment,Children's & Education Services,103,Supplies and Services,504,Equipment,5023,Revenue,03.GROCERIES & PROVISIONS
28-Apr-2017,7003355,11.84,CHICKEN JOES LTD T/A LOVE JOES,375810,Commissioning & Investment,Children's & Education Services,103,Supplies and Services,504,Equipment,5023,Revenue,03.GROCERIES & PROVISIONS
28-Apr-2017,7003355,2.30,CHICKEN JOES LTD T/A LOVE JOES,375810,Commissioning & Investment,Children's & Education Services,103,Supplies and Services,504,Equipment,5023,Revenue,03.GROCERIES & PROVISIONS
28-Apr-2017,7003355,73.48,CHICKEN JOES LTD T/A LOVE JOES,375810,Commissioning & Investment,Children's & Education Services,103,Supplies and Services,504,Equipment,5023,Revenue,03.GROCERIES & PROVISIONS
28-Apr-2017,7003355,120.00,CHICKEN JOES LTD T/A LOVE JOES,375810,Commissioning & Investment,Children's & Education Services,103,Supplies and Services,504,Equipment,5023,Revenue,03.GROCERIES & PROVISIONS
28-Apr-2017,7003355,24.00,CHICKEN JOES LTD T/A LOVE JOES,375810,Commissioning & Investment,Children's & Education Services,103,Supplies and Services,504,Equipment,5023,Revenue,03.GROCERIES & PROVISIONS
28-Apr-2017,7003355,11.84,CHICKEN JOES LTD T/A LOVE JOES,375810,Commissioning & Investment,Children's & Education Services,103,Supplies and Services,504,Equipment,5023,Revenue,03.GROCERIES & PROVISIONS
28-Apr-2017,7003355,23.68,CHICKEN JOES LTD T/A LOVE JOES,375810,Commissioning & Investment,Children's & Education Services,103,Supplies and Services,504,Equipment,5023,Revenue,03.GROCERIES & PROVISIONS
28-Apr-2017,7003355,11.84,CHICKEN JOES LTD T/A LOVE JOES,375810,Commissioning & Investment,Children's & Education Services,103,Supplies and Services,504,Equipment,5023,Revenue,03.GROCERIES & PROVISIONS
28-Apr-2017,7003355,11.84,CHICKEN JOES LTD T/A LOVE JOES,375810,Commissioning & Investment,Children's & Education Services,103,Supplies and Services,504,Equipment,5023,Revenue,03.GROCERIES & PROVISIONS
28-Apr-2017,7003355,19.14,CHICKEN JOES LTD T/A LOVE JOES,375810,Commissioning & Investment,Children's & Education Services,103,Supplies and Services,504,Equipment,5023,Revenue,03.GROCERIES & PROVISIONS
28-Apr-2017,7003355,12.42,CHICKEN JOES LTD T/A LOVE JOES,375810,Commissioning & Investment,Children's & Education Services,103,Supplies and Services,504,Equipment,5023,Revenue,03.GROCERIES & PROVISIONS
28-Apr-2017,7003355,33.78,CHICKEN JOES LTD T/A LOVE JOES,375810,Commissioning & Investment,Children's & Education Services,103,Supplies and Services,504,Equipment,5023,Revenue,03.GROCERIES & PROVISIONS
28-Apr-2017,7003355,12.42,CHICKEN JOES LTD T/A LOVE JOES,375810,Commissioning & Investment,Children's & Education Services,103,Supplies and Services,504,Equipment,5023,Revenue,03.GROCERIES & PROVISIONS
28-Apr-2017,7003355,55.11,CHICKEN JOES LTD T/A LOVE JOES,375810,Commissioning & Investment,Children's & Education Services,103,Supplies and Services,504,Equipment,5023,Revenue,03.GROCERIES & PROVISIONS
28-Apr-2017,7003355,7.56,CHICKEN JOES LTD T/A LOVE JOES,375810,Commissioning & Investment,Children's & Education Services,103,Supplies and Services,504,Equipment,5023,Revenue,03.GROCERIES & PROVISIONS
28-Apr-2017,7003355,18.37,CHICKEN JOES LTD T/A LOVE JOES,375810,Commissioning & Investment,Children's & Education Services,103,Supplies and Services,504,Equipment,5023,Revenue,03.GROCERIES & PROVISIONS
28-Apr-2017,7003355,11.84,CHICKEN JOES LTD T/A LOVE JOES,375810,Commissioning & Investment,Children's & Education Services,103,Supplies and Services,504,Equipment,5023,Revenue,03.GROCERIES & PROVISIONS
28-Apr-2017,7003355,7.75,CHICKEN JOES LTD T/A LOVE JOES,375810,Commissioning & Investment,Children's & Education Services,103,Supplies and Services,504,Equipment,5023,Revenue,03.GROCERIES & PROVISIONS
28-Apr-2017,7003355,23.68,CHICKEN JOES LTD T/A LOVE JOES,375810,Commissioning & Investment,Children's & Education Services,103,Supplies and Services,504,Equipment,5023,Revenue,03.GROCERIES & PROVISIONS
28-Apr-2017,7003355,19.46,CHICKEN JOES LTD T/A LOVE JOES,375810,Commissioning & Investment,Children's & Education Services,103,Supplies and Services,504,Equipment,5023,Revenue,03.GROCERIES & PROVISIONS
28-Apr-2017,7003355,11.84,CHICKEN JOES LTD T/A LOVE JOES,375810,Commissioning & Investment,Children's & Education Services,103,Supplies and Services,504,Equipment,5023,Revenue,03.GROCERIES & PROVISIONS
28-Apr-2017,7003355,29.90,CHICKEN JOES LTD T/A LOVE JOES,375810,Commissioning & Investment,Children's & Education Services,103,Supplies and Services,504,Equipment,5023,Revenue,03.GROCERIES & PROVISIONS
28-Apr-2017,7003355,2.08,CHICKEN JOES LTD T/A LOVE JOES,375810,Commissioning & Investment,Children's & Education Services,103,Supplies and Services,504,Equipment,5023,Revenue,03.GROCERIES & PROVISIONS
28-Apr-2017,7003355,11.84,CHICKEN JOES LTD T/A LOVE JOES,375810,Commissioning & Investment,Children's & Education Services,103,Supplies and Services,504,Equipment,5023,Revenue,03.GROCERIES & PROVISIONS
28-Apr-2017,7003355,14.74,CHICKEN JOES LTD T/A LOVE JOES,375810,Commissioning & Investment,Children's & Education Services,103,Supplies and Services,504,Equipment,5023,Revenue,03.GROCERIES & PROVISIONS
28-Apr-2017,7003355,60.00,CHICKEN JOES LTD T/A LOVE JOES,375810,Commissioning & Investment,Children's & Education Services,103,Supplies and Services,504,Equipment,5023,Revenue,03.GROCERIES & PROVISIONS
28-Apr-2017,7003355,11.84,CHICKEN JOES LTD T/A LOVE JOES,375810,Commissioning & Investment,Children's & Education Services,103,Supplies and Services,504,Equipment,5023,Revenue,03.GROCERIES & PROVISIONS
28-Apr-2017,7003355,9.57,CHICKEN JOES LTD T/A LOVE JOES,375810,Commissioning & Investment,Children's & Education Services,103,Supplies and Services,504,Equipment,5023,Revenue,03.GROCERIES & PROVISIONS
28-Apr-2017,7003355,8.40,CHICKEN JOES LTD T/A LOVE JOES,375810,Commissioning & Investment,Children's & Education Services,103,Supplies and Services,504,Equipment,5023,Revenue,03.GROCERIES & PROVISIONS
28-Apr-2017,7003355,23.68,CHICKEN JOES LTD T/A LOVE JOES,375810,Commissioning & Investment,Children's & Education Services,103,Supplies and Services,504,Equipment,5023,Revenue,03.GROCERIES & PROVISIONS
28-Apr-2017,7003355,120.00,CHICKEN JOES LTD T/A LOVE JOES,375810,Commissioning & Investment,Children's & Education Services,103,Supplies and Services,504,Equipment,5023,Revenue,03.GROCERIES & PROVISIONS
28-Apr-2017,7003355,120.00,CHICKEN JOES LTD T/A LOVE JOES,375810,Commissioning & Investment,Children's & Education Services,103,Supplies and Services,504,Equipment,5023,Revenue,03.GROCERIES & PROVISIONS
28-Apr-2017,7003355,27.46,CHICKEN JOES LTD T/A LOVE JOES,375810,Commissioning & Investment,Children's & Education Services,103,Supplies and Services,504,Equipment,5023,Revenue,03.GROCERIES & PROVISIONS
28-Apr-2017,7003355,14.00,CHICKEN JOES LTD T/A LOVE JOES,375810,Commissioning & Investment,Children's & Education Services,103,Supplies and Services,504,Equipment,5023,Revenue,03.GROCERIES & PROVISIONS
28-Apr-2017,7003355,-14.80,CHICKEN JOES LTD T/A LOVE JOES,375810,Commissioning & Investment,Children's & Education Services,103,Supplies and Services,504,Equipment,5023,Revenue,03.GROCERIES & PROVISIONS
28-Apr-2017,7003355,11.84,CHICKEN JOES LTD T/A LOVE JOES,375810,Commissioning & Investment,Children's & Education Services,103,Supplies and Services,504,Equipment,5023,Revenue,03.GROCERIES & PROVISIONS
28-Apr-2017,7003355,17.00,CHICKEN JOES LTD T/A LOVE JOES,375810,Commissioning & Investment,Children's & Education Services,103,Supplies and Services,504,Equipment,5023,Revenue,03.GROCERIES & PROVISIONS
28-Apr-2017,7003355,7.66,CHICKEN JOES LTD T/A LOVE JOES,375810,Commissioning & Investment,Children's & Education Services,103,Supplies and Services,504,Equipment,5023,Revenue,03.GROCERIES & PROVISIONS
28-Apr-2017,7003355,6.23,CHICKEN JOES LTD T/A LOVE JOES,375810,Commissioning & Investment,Children's & Education Services,103,Supplies and Services,504,Equipment,5023,Revenue,03.GROCERIES & PROVISIONS
28-Apr-2017,7003355,11.84,CHICKEN JOES LTD T/A LOVE JOES,375810,Commissioning & Investment,Children's & Education Services,103,Supplies and Services,504,Equipment,5023,Revenue,03.GROCERIES & PROVISIONS
28-Apr-2017,7003355,23.68,CHICKEN JOES LTD T/A LOVE JOES,375810,Commissioning & Investment,Children's & Education Services,103,Supplies and Services,504,Equipment,5023,Revenue,03.GROCERIES & PROVISIONS
28-Apr-2017,7003355,2.08,CHICKEN JOES LTD T/A LOVE JOES,375810,Commissioning & Investment,Children's & Education Services,103,Supplies and Services,504,Equipment,5023,Revenue,03.GROCERIES & PROVISIONS
28-Apr-2017,7003355,17.00,CHICKEN JOES LTD T/A LOVE JOES,375810,Commissioning & Investment,Children's & Education Services,103,Supplies and Services,504,Equipment,5023,Revenue,03.GROCERIES & PROVISIONS
28-Apr-2017,7003355,3.19,CHICKEN JOES LTD T/A LOVE JOES,375810,Commissioning & Investment,Children's & Education Services,103,Supplies and Services,504,Equipment,5023,Revenue,03.GROCERIES & PROVISIONS
28-Apr-2017,7003355,7.66,CHICKEN JOES LTD T/A LOVE JOES,375810,Commissioning & Investment,Children's & Education Services,103,Supplies and Services,504,Equipment,5023,Revenue,03.GROCERIES & PROVISIONS
28-Apr-2017,7003355,4.16,CHICKEN JOES LTD T/A LOVE JOES,375810,Commissioning & Investment,Children's & Education Services,103,Supplies and Services,504,Equipment,5023,Revenue,03.GROCERIES & PROVISIONS
28-Apr-2017,7003355,6.03,CHICKEN JOES LTD T/A LOVE JOES,375810,Commissioning & Investment,Children's & Education Services,103,Supplies and Services,504,Equipment,5023,Revenue,03.GROCERIES & PROVISIONS
28-Apr-2017,7003355,8.50,CHICKEN JOES LTD T/A LOVE JOES,375810,Commissioning & Investment,Children's & Education Services,103,Supplies and Services,504,Equipment,5023,Revenue,03.GROCERIES & PROVISIONS
28-Apr-2017,7003355,18.38,CHICKEN JOES LTD T/A LOVE JOES,375810,Commissioning & Investment,Children's & Education Services,103,Supplies and Services,504,Equipment,5023,Revenue,03.GROCERIES & PROVISIONS
28-Apr-2017,7003355,4.20,CHICKEN JOES LTD T/A LOVE JOES,375810,Commissioning & Investment,Children's & Education Services,103,Supplies and Services,504,Equipment,5023,Revenue,03.GROCERIES & PROVISIONS
28-Apr-2017,7003355,11.84,CHICKEN JOES LTD T/A LOVE JOES,375810,Commissioning & Investment,Children's & Education Services,103,Supplies and Services,504,Equipment,5023,Revenue,03.GROCERIES & PROVISIONS
28-Apr-2017,7003355,14.04,CHICKEN JOES LTD T/A LOVE JOES,375810,Commissioning & Investment,Children's & Education Services,103,Supplies and Services,504,Equipment,5023,Revenue,03.GROCERIES & PROVISIONS
28-Apr-2017,7003355,4.16,CHICKEN JOES LTD T/A LOVE JOES,375810,Commissioning & Investment,Children's & Education Services,103,Supplies and Services,504,Equipment,5023,Revenue,03.GROCERIES & PROVISIONS
28-Apr-2017,7003355,18.37,CHICKEN JOES LTD T/A LOVE JOES,375810,Commissioning & Investment,Children's & Education Services,103,Supplies and Services,504,Equipment,5023,Revenue,03.GROCERIES & PROVISIONS
28-Apr-2017,7003355,68.65,CHICKEN JOES LTD T/A LOVE JOES,375810,Commissioning & Investment,Children's & Education Services,103,Supplies and Services,504,Equipment,5023,Revenue,03.GROCERIES & PROVISIONS
28-Apr-2017,7003355,4.16,CHICKEN JOES LTD T/A LOVE JOES,375810,Commissioning & Investment,Children's & Education Services,103,Supplies and Services,504,Equipment,5023,Revenue,03.GROCERIES & PROVISIONS
28-Apr-2017,7003355,9.19,CHICKEN JOES LTD T/A LOVE JOES,375810,Commissioning & Investment,Children's & Education Services,103,Supplies and Services,504,Equipment,5023,Revenue,03.GROCERIES & PROVISIONS
28-Apr-2017,7003355,11.84,CHICKEN JOES LTD T/A LOVE JOES,375810,Commissioning & Investment,Children's & Education Services,103,Supplies and Services,504,Equipment,5023,Revenue,03.GROCERIES & PROVISIONS
28-Apr-2017,7003355,72.00,CHICKEN JOES LTD T/A LOVE JOES,375810,Commissioning & Investment,Children's & Education Services,103,Supplies and Services,504,Equipment,5023,Revenue,03.GROCERIES & PROVISIONS
28-Apr-2017,7003355,12.48,CHICKEN JOES LTD T/A LOVE JOES,375810,Commissioning & Investment,Children's & Education Services,103,Supplies and Services,504,Equipment,5023,Revenue,03.GROCERIES & PROVISIONS
28-Apr-2017,7003355,4.58,CHICKEN JOES LTD T/A LOVE JOES,375810,Commissioning & Investment,Children's & Education Services,103,Supplies and Services,504,Equipment,5023,Revenue,03.GROCERIES & PROVISIONS
28-Apr-2017,7003355,19.46,CHICKEN JOES LTD T/A LOVE JOES,375810,Commissioning & Investment,Children's & Education Services,103,Supplies and Services,504,Equipment,5023,Revenue,03.GROCERIES & PROVISIONS
28-Apr-2017,7003355,19.29,CHICKEN JOES LTD T/A LOVE JOES,375810,Commissioning & Investment,Children's & Education Services,103,Supplies and Services,504,Equipment,5023,Revenue,03.GROCERIES & PROVISIONS
28-Apr-2017,7003355,35.52,CHICKEN JOES LTD T/A LOVE JOES,375810,Commissioning & Investment,Children's & Education Services,103,Supplies and Services,504,Equipment,5023,Revenue,03.GROCERIES & PROVISIONS
28-Apr-2017,7003355,180.00,CHICKEN JOES LTD T/A LOVE JOES,375810,Commissioning & Investment,Children's & Education Services,103,Supplies and Services,504,Equipment,5023,Revenue,03.GROCERIES & PROVISIONS
28-Apr-2017,7003355,28.00,CHICKEN JOES LTD T/A LOVE JOES,375810,Commissioning & Investment,Children's & Education Services,103,Supplies and Services,504,Equipment,5023,Revenue,03.GROCERIES & PROVISIONS
28-Apr-2017,7003355,11.84,CHICKEN JOES LTD T/A LOVE JOES,375810,Commissioning & Investment,Children's & Education Services,103,Supplies and Services,504,Equipment,5023,Revenue,03.GROCERIES & PROVISIONS
28-Apr-2017,7003355,11.84,CHICKEN JOES LTD T/A LOVE JOES,375810,Commissioning & Investment,Children's & Education Services,103,Supplies and Services,504,Equipment,5023,Revenue,03.GROCERIES & PROVISIONS
28-Apr-2017,7003355,13.73,CHICKEN JOES LTD T/A LOVE JOES,375810,Commissioning & Investment,Children's & Education Services,103,Supplies and Services,504,Equipment,5023,Revenue,03.GROCERIES & PROVISIONS
28-Apr-2017,7003355,11.84,CHICKEN JOES LTD T/A LOVE JOES,375810,Commissioning & Investment,Children's & Education Services,103,Supplies and Services,504,Equipment,5023,Revenue,03.GROCERIES & PROVISIONS
28-Apr-2017,7003355,11.84,CHICKEN JOES LTD T/A LOVE JOES,375810,Commissioning & Investment,Children's & Education Services,103,Supplies and Services,504,Equipment,5023,Revenue,03.GROCERIES & PROVISIONS
28-Apr-2017,7003355,14.95,CHICKEN JOES LTD T/A LOVE JOES,375810,Commissioning & Investment,Children's & Education Services,103,Supplies and Services,504,Equipment,5023,Revenue,03.GROCERIES & PROVISIONS
28-Apr-2017,7003355,25.50,CHICKEN JOES LTD T/A LOVE JOES,375810,Commissioning & Investment,Children's & Education Services,103,Supplies and Services,504,Equipment,5023,Revenue,03.GROCERIES & PROVISIONS
28-Apr-2017,7003355,7.37,CHICKEN JOES LTD T/A LOVE JOES,375810,Commissioning & Investment,Children's & Education Services,103,Supplies and Services,504,Equipment,5023,Revenue,03.GROCERIES & PROVISIONS
28-Apr-2017,7003355,36.40,CHICKEN JOES LTD T/A LOVE JOES,375810,Commissioning & Investment,Children's & Education Services,103,Supplies and Services,504,Equipment,5023,Revenue,03.GROCERIES & PROVISIONS
28-Apr-2017,7003355,4.16,CHICKEN JOES LTD T/A LOVE JOES,375810,Commissioning & Investment,Children's & Education Services,103,Supplies and Services,504,Equipment,5023,Revenue,03.GROCERIES & PROVISIONS
28-Apr-2017,7003355,6.24,CHICKEN JOES LTD T/A LOVE JOES,375810,Commissioning & Investment,Children's & Education Services,103,Supplies and Services,504,Equipment,5023,Revenue,03.GROCERIES & PROVISIONS
28-Apr-2017,7003355,11.84,CHICKEN JOES LTD T/A LOVE JOES,375810,Commissioning & Investment,Children's & Education Services,103,Supplies and Services,504,Equipment,5023,Revenue,03.GROCERIES & PROVISIONS
28-Apr-2017,7003355,13.73,CHICKEN JOES LTD T/A LOVE JOES,375810,Commissioning & Investment,Children's & Education Services,103,Supplies and Services,504,Equipment,5023,Revenue,03.GROCERIES & PROVISIONS
28-Apr-2017,7003355,59.20,CHICKEN JOES LTD T/A LOVE JOES,375810,Commissioning & Investment,Children's & Education Services,103,Supplies and Services,504,Equipment,5023,Revenue,03.GROCERIES & PROVISIONS
28-Apr-2017,7003355,7.56,CHICKEN JOES LTD T/A LOVE JOES,375810,Commissioning & Investment,Children's & Education Services,103,Supplies and Services,504,Equipment,5023,Revenue,03.GROCERIES & PROVISIONS
28-Apr-2017,7003355,10.40,CHICKEN JOES LTD T/A LOVE JOES,375810,Commissioning & Investment,Children's & Education Services,103,Supplies and Services,504,Equipment,5023,Revenue,03.GROCERIES & PROVISIONS
28-Apr-2017,7003355,11.05,CHICKEN JOES LTD T/A LOVE JOES,375810,Commissioning & Investment,Children's & Education Services,103,Supplies and Services,504,Equipment,5023,Revenue,03.GROCERIES & PROVISIONS
28-Apr-2017,7003355,47.36,CHICKEN JOES LTD T/A LOVE JOES,375810,Commissioning & Investment,Children's & Education Services,103,Supplies and Services,504,Equipment,5023,Revenue,03.GROCERIES & PROVISIONS
28-Apr-2017,7003355,120.00,CHICKEN JOES LTD T/A LOVE JOES,375810,Commissioning & Investment,Children's & Education Services,103,Supplies and Services,504,Equipment,5023,Revenue,03.GROCERIES & PROVISIONS
28-Apr-2017,7003355,7.75,CHICKEN JOES LTD T/A LOVE JOES,375810,Commissioning & Investment,Children's & Education Services,103,Supplies and Services,504,Equipment,5023,Revenue,03.GROCERIES & PROVISIONS
28-Apr-2017,7003355,118.40,CHICKEN JOES LTD T/A LOVE JOES,375810,Commissioning & Investment,Children's & Education Services,103,Supplies and Services,504,Equipment,5023,Revenue,03.GROCERIES & PROVISIONS
28-Apr-2017,7003355,11.84,CHICKEN JOES LTD T/A LOVE JOES,375810,Commissioning & Investment,Children's & Education Services,103,Supplies and Services,504,Equipment,5023,Revenue,03.GROCERIES & PROVISIONS
28-Apr-2017,7003355,8.40,CHICKEN JOES LTD T/A LOVE JOES,375810,Commissioning & Investment,Children's & Education Services,103,Supplies and Services,504,Equipment,5023,Revenue,03.GROCERIES & PROVISIONS
28-Apr-2017,7003355,6.03,CHICKEN JOES LTD T/A LOVE JOES,375810,Commissioning & Investment,Children's & Education Services,103,Supplies and Services,504,Equipment,5023,Revenue,03.GROCERIES & PROVISIONS
28-Apr-2017,7003355,23.68,CHICKEN JOES LTD T/A LOVE JOES,375810,Commissioning & Investment,Children's & Education Services,103,Supplies and Services,504,Equipment,5023,Revenue,03.GROCERIES & PROVISIONS
28-Apr-2017,7003355,-2.67,CHICKEN JOES LTD T/A LOVE JOES,375810,Commissioning & Investment,Children's & Education Services,103,Supplies and Services,504,Equipment,5023,Revenue,03.GROCERIES & PROVISIONS
28-Apr-2017,7003355,60.00,CHICKEN JOES LTD T/A LOVE JOES,375810,Commissioning & Investment,Children's & Education Services,103,Supplies and Services,504,Equipment,5023,Revenue,03.GROCERIES & PROVISIONS
28-Apr-2017,7003355,47.36,CHICKEN JOES LTD T/A LOVE JOES,375810,Commissioning & Investment,Children's & Education Services,103,Supplies and Services,504,Equipment,5023,Revenue,03.GROCERIES & PROVISIONS
28-Apr-2017,7003355,35.52,CHICKEN JOES LTD T/A LOVE JOES,375810,Commissioning & Investment,Children's & Education Services,103,Supplies and Services,504,Equipment,5023,Revenue,03.GROCERIES & PROVISIONS
28-Apr-2017,7003355,11.84,CHICKEN JOES LTD T/A LOVE JOES,375810,Commissioning & Investment,Children's & Education Services,103,Supplies and Services,504,Equipment,5023,Revenue,03.GROCERIES & PROVISIONS
28-Apr-2017,7003355,27.46,CHICKEN JOES LTD T/A LOVE JOES,375810,Commissioning & Investment,Children's & Education Services,103,Supplies and Services,504,Equipment,5023,Revenue,03.GROCERIES & PROVISIONS
28-Apr-2017,7003355,14.74,CHICKEN JOES LTD T/A LOVE JOES,375810,Commissioning & Investment,Children's & Education Services,103,Supplies and Services,504,Equipment,5023,Revenue,03.GROCERIES & PROVISIONS
28-Apr-2017,7003355,3.75,CHICKEN JOES LTD T/A LOVE JOES,375810,Commissioning & Investment,Children's & Education Services,103,Supplies and Services,504,Equipment,5023,Revenue,03.GROCERIES & PROVISIONS
28-Apr-2017,7003355,17.00,CHICKEN JOES LTD T/A LOVE JOES,375810,Commissioning & Investment,Children's & Education Services,103,Supplies and Services,504,Equipment,5023,Revenue,03.GROCERIES & PROVISIONS
28-Apr-2017,7003355,94.72,CHICKEN JOES LTD T/A LOVE JOES,375810,Commissioning & Investment,Children's & Education Services,103,Supplies and Services,504,Equipment,5023,Revenue,03.GROCERIES & PROVISIONS
28-Apr-2017,7003355,12.42,CHICKEN JOES LTD T/A LOVE JOES,375810,Commissioning & Investment,Children's & Education Services,103,Supplies and Services,504,Equipment,5023,Revenue,03.GROCERIES & PROVISIONS
28-Apr-2017,7003355,12.42,CHICKEN JOES LTD T/A LOVE JOES,375810,Commissioning & Investment,Children's & Education Services,103,Supplies and Services,504,Equipment,5023,Revenue,03.GROCERIES & PROVISIONS
28-Apr-2017,7003355,30.76,CHICKEN JOES LTD T/A LOVE JOES,375810,Commissioning & Investment,Children's & Education Services,103,Supplies and Services,504,Equipment,5023,Revenue,03.GROCERIES & PROVISIONS
28-Apr-2017,7003355,12.42,CHICKEN JOES LTD T/A LOVE JOES,375810,Commissioning & Investment,Children's & Education Services,103,Supplies and Services,504,Equipment,5023,Revenue,03.GROCERIES & PROVISIONS
28-Apr-2017,7003355,2.40,CHICKEN JOES LTD T/A LOVE JOES,375810,Commissioning & Investment,Children's & Education Services,103,Supplies and Services,504,Equipment,5023,Revenue,03.GROCERIES & PROVISIONS
28-Apr-2017,7003355,11.84,CHICKEN JOES LTD T/A LOVE JOES,375810,Commissioning & Investment,Children's & Education Services,103,Supplies and Services,504,Equipment,5023,Revenue,03.GROCERIES & PROVISIONS
28-Apr-2017,7003355,23.68,CHICKEN JOES LTD T/A LOVE JOES,375810,Commissioning & Investment,Children's & Education Services,103,Supplies and Services,504,Equipment,5023,Revenue,03.GROCERIES & PROVISIONS
28-Apr-2017,7003355,11.84,CHICKEN JOES LTD T/A LOVE JOES,375810,Commissioning & Investment,Children's & Education Services,103,Supplies and Services,504,Equipment,5023,Revenue,03.GROCERIES & PROVISIONS
28-Apr-2017,7003355,12.42,CHICKEN JOES LTD T/A LOVE JOES,375810,Commissioning & Investment,Children's & Education Services,103,Supplies and Services,504,Equipment,5023,Revenue,03.GROCERIES & PROVISIONS
28-Apr-2017,7003355,16.89,CHICKEN JOES LTD T/A LOVE JOES,375810,Commissioning & Investment,Children's & Education Services,103,Supplies and Services,504,Equipment,5023,Revenue,03.GROCERIES & PROVISIONS
28-Apr-2017,7003355,25.50,CHICKEN JOES LTD T/A LOVE JOES,375810,Commissioning & Investment,Children's & Education Services,103,Supplies and Services,504,Equipment,5023,Revenue,03.GROCERIES & PROVISIONS
28-Apr-2017,7003355,47.36,CHICKEN JOES LTD T/A LOVE JOES,375810,Commissioning & Investment,Children's & Education Services,103,Supplies and Services,504,Equipment,5023,Revenue,03.GROCERIES & PROVISIONS
28-Apr-2017,7003355,14.95,CHICKEN JOES LTD T/A LOVE JOES,375810,Commissioning & Investment,Children's & Education Services,103,Supplies and Services,504,Equipment,5023,Revenue,03.GROCERIES & PROVISIONS
28-Apr-2017,7003355,7.66,CHICKEN JOES LTD T/A LOVE JOES,375810,Commissioning & Investment,Children's & Education Services,103,Supplies and Services,504,Equipment,5023,Revenue,03.GROCERIES & PROVISIONS
28-Apr-2017,7003355,11.84,CHICKEN JOES LTD T/A LOVE JOES,375810,Commissioning & Investment,Children's & Education Services,103,Supplies and Services,504,Equipment,5023,Revenue,03.GROCERIES & PROVISIONS
28-Apr-2017,7003355,10.40,CHICKEN JOES LTD T/A LOVE JOES,375810,Commissioning & Investment,Children's & Education Services,103,Supplies and Services,504,Equipment,5023,Revenue,03.GROCERIES & PROVISIONS
28-Apr-2017,7003355,31.05,CHICKEN JOES LTD T/A LOVE JOES,375810,Commissioning & Investment,Children's & Education Services,103,Supplies and Services,504,Equipment,5023,Revenue,03.GROCERIES & PROVISIONS
28-Apr-2017,7003355,4.60,CHICKEN JOES LTD T/A LOVE JOES,375810,Commissioning & Investment,Children's & Education Services,103,Supplies and Services,504,Equipment,5023,Revenue,03.GROCERIES & PROVISIONS
28-Apr-2017,7003356,29.50,PASTA KING (UK) LIMITED,366311,Commissioning & Investment,Children's & Education Services,103,Supplies and Services,504,Equipment,5023,Revenue,03.GROCERIES & PROVISIONS
28-Apr-2017,7003356,45.00,PASTA KING (UK) LIMITED,366311,Commissioning & Investment,Children's & Education Services,103,Supplies and Services,504,Equipment,5023,Revenue,03.GROCERIES & PROVISIONS
28-Apr-2017,7003356,54.00,PASTA KING (UK) LIMITED,366311,Commissioning & Investment,Children's & Education Services,103,Supplies and Services,504,Equipment,5023,Revenue,03.GROCERIES & PROVISIONS
28-Apr-2017,7003356,55.00,PASTA KING (UK) LIMITED,366311,Commissioning & Investment,Children's & Education Services,103,Supplies and Services,504,Equipment,5023,Revenue,03.GROCERIES & PROVISIONS
28-Apr-2017,7003356,27.00,PASTA KING (UK) LIMITED,366311,Commissioning & Investment,Children's & Education Services,103,Supplies and Services,504,Equipment,5023,Revenue,03.GROCERIES & PROVISIONS
28-Apr-2017,7003356,88.50,PASTA KING (UK) LIMITED,366311,Commissioning & Investment,Children's & Education Services,103,Supplies and Services,504,Equipment,5023,Revenue,03.GROCERIES & PROVISIONS
28-Apr-2017,7003356,29.50,PASTA KING (UK) LIMITED,366311,Commissioning & Investment,Children's & Education Services,103,Supplies and Services,504,Equipment,5023,Revenue,03.GROCERIES & PROVISIONS
28-Apr-2017,7003356,42.00,PASTA KING (UK) LIMITED,366311,Commissioning & Investment,Children's & Education Services,103,Supplies and Services,504,Equipment,5023,Revenue,03.GROCERIES & PROVISIONS
28-Apr-2017,7003356,27.00,PASTA KING (UK) LIMITED,366311,Commissioning & Investment,Children's & Education Services,103,Supplies and Services,504,Equipment,5023,Revenue,03.GROCERIES & PROVISIONS
28-Apr-2017,7003356,29.50,PASTA KING (UK) LIMITED,366311,Commissioning & Investment,Children's & Education Services,103,Supplies and Services,504,Equipment,5023,Revenue,03.GROCERIES & PROVISIONS
28-Apr-2017,7003356,88.50,PASTA KING (UK) LIMITED,366311,Commissioning & Investment,Children's & Education Services,103,Supplies and Services,504,Equipment,5023,Revenue,03.GROCERIES & PROVISIONS
28-Apr-2017,7003356,29.50,PASTA KING (UK) LIMITED,366311,Commissioning & Investment,Children's & Education Services,103,Supplies and Services,504,Equipment,5023,Revenue,03.GROCERIES & PROVISIONS
28-Apr-2017,7003356,29.50,PASTA KING (UK) LIMITED,366311,Commissioning & Investment,Children's & Education Services,103,Supplies and Services,504,Equipment,5023,Revenue,03.GROCERIES & PROVISIONS
28-Apr-2017,7003356,29.50,PASTA KING (UK) LIMITED,366311,Commissioning & Investment,Children's & Education Services,103,Supplies and Services,504,Equipment,5023,Revenue,03.GROCERIES & PROVISIONS
28-Apr-2017,7003356,110.00,PASTA KING (UK) LIMITED,366311,Commissioning & Investment,Children's & Education Services,103,Supplies and Services,504,Equipment,5023,Revenue,03.GROCERIES & PROVISIONS
28-Apr-2017,7003356,54.00,PASTA KING (UK) LIMITED,366311,Commissioning & Investment,Children's & Education Services,103,Supplies and Services,504,Equipment,5023,Revenue,03.GROCERIES & PROVISIONS
28-Apr-2017,7003356,29.50,PASTA KING (UK) LIMITED,366311,Commissioning & Investment,Children's & Education Services,103,Supplies and Services,504,Equipment,5023,Revenue,03.GROCERIES & PROVISIONS
28-Apr-2017,7003356,30.00,PASTA KING (UK) LIMITED,366311,Commissioning & Investment,Children's & Education Services,103,Supplies and Services,504,Equipment,5023,Revenue,03.GROCERIES & PROVISIONS
28-Apr-2017,7003356,29.50,PASTA KING (UK) LIMITED,366311,Commissioning & Investment,Children's & Education Services,103,Supplies and Services,504,Equipment,5023,Revenue,03.GROCERIES & PROVISIONS
28-Apr-2017,7003356,29.50,PASTA KING (UK) LIMITED,366311,Commissioning & Investment,Children's & Education Services,103,Supplies and Services,504,Equipment,5023,Revenue,03.GROCERIES & PROVISIONS
28-Apr-2017,7003356,29.50,PASTA KING (UK) LIMITED,366311,Commissioning & Investment,Children's & Education Services,103,Supplies and Services,504,Equipment,5023,Revenue,03.GROCERIES & PROVISIONS
28-Apr-2017,7003356,45.00,PASTA KING (UK) LIMITED,366311,Commissioning & Investment,Children's & Education Services,103,Supplies and Services,504,Equipment,5023,Revenue,03.GROCERIES & PROVISIONS
28-Apr-2017,7003356,29.50,PASTA KING (UK) LIMITED,366311,Commissioning & Investment,Children's & Education Services,103,Supplies and Services,504,Equipment,5023,Revenue,03.GROCERIES & PROVISIONS
28-Apr-2017,7003356,29.50,PASTA KING (UK) LIMITED,366311,Commissioning & Investment,Children's & Education Services,103,Supplies and Services,504,Equipment,5023,Revenue,03.GROCERIES & PROVISIONS
28-Apr-2017,7003356,29.50,PASTA KING (UK) LIMITED,366311,Commissioning & Investment,Children's & Education Services,103,Supplies and Services,504,Equipment,5023,Revenue,03.GROCERIES & PROVISIONS
28-Apr-2017,7003356,29.50,PASTA KING (UK) LIMITED,366311,Commissioning & Investment,Children's & Education Services,103,Supplies and Services,504,Equipment,5023,Revenue,03.GROCERIES & PROVISIONS
28-Apr-2017,7003356,165.00,PASTA KING (UK) LIMITED,366311,Commissioning & Investment,Children's & Education Services,103,Supplies and Services,504,Equipment,5023,Revenue,03.GROCERIES & PROVISIONS
28-Apr-2017,7003356,45.00,PASTA KING (UK) LIMITED,366311,Commissioning & Investment,Children's & Education Services,103,Supplies and Services,504,Equipment,5023,Revenue,03.GROCERIES & PROVISIONS
28-Apr-2017,7003356,75.00,PASTA KING (UK) LIMITED,366311,Commissioning & Investment,Children's & Education Services,103,Supplies and Services,504,Equipment,5023,Revenue,03.GROCERIES & PROVISIONS
28-Apr-2017,7003356,45.00,PASTA KING (UK) LIMITED,366311,Commissioning & Investment,Children's & Education Services,103,Supplies and Services,504,Equipment,5023,Revenue,03.GROCERIES & PROVISIONS
28-Apr-2017,7003356,29.50,PASTA KING (UK) LIMITED,366311,Commissioning & Investment,Children's & Education Services,103,Supplies and Services,504,Equipment,5023,Revenue,03.GROCERIES & PROVISIONS
28-Apr-2017,7003356,29.50,PASTA KING (UK) LIMITED,366311,Commissioning & Investment,Children's & Education Services,103,Supplies and Services,504,Equipment,5023,Revenue,03.GROCERIES & PROVISIONS
28-Apr-2017,7003356,21.00,PASTA KING (UK) LIMITED,366311,Commissioning & Investment,Children's & Education Services,103,Supplies and Services,504,Equipment,5023,Revenue,03.GROCERIES & PROVISIONS
28-Apr-2017,7003356,29.50,PASTA KING (UK) LIMITED,366311,Commissioning & Investment,Children's & Education Services,103,Supplies and Services,504,Equipment,5023,Revenue,03.GROCERIES & PROVISIONS
28-Apr-2017,7003356,28.00,PASTA KING (UK) LIMITED,366311,Commissioning & Investment,Children's & Education Services,103,Supplies and Services,504,Equipment,5023,Revenue,03.GROCERIES & PROVISIONS
28-Apr-2017,7003356,45.00,PASTA KING (UK) LIMITED,366311,Commissioning & Investment,Children's & Education Services,103,Supplies and Services,504,Equipment,5023,Revenue,03.GROCERIES & PROVISIONS
28-Apr-2017,7003356,29.50,PASTA KING (UK) LIMITED,366311,Commissioning & Investment,Children's & Education Services,103,Supplies and Services,504,Equipment,5023,Revenue,03.GROCERIES & PROVISIONS
28-Apr-2017,7003356,29.50,PASTA KING (UK) LIMITED,366311,Commissioning & Investment,Children's & Education Services,103,Supplies and Services,504,Equipment,5023,Revenue,03.GROCERIES & PROVISIONS
28-Apr-2017,7003356,29.50,PASTA KING (UK) LIMITED,366311,Commissioning & Investment,Children's & Education Services,103,Supplies and Services,504,Equipment,5023,Revenue,03.GROCERIES & PROVISIONS
28-Apr-2017,7003356,29.50,PASTA KING (UK) LIMITED,366311,Commissioning & Investment,Children's & Education Services,103,Supplies and Services,504,Equipment,5023,Revenue,03.GROCERIES & PROVISIONS
28-Apr-2017,7003356,48.00,PASTA KING (UK) LIMITED,366311,Commissioning & Investment,Children's & Education Services,103,Supplies and Services,504,Equipment,5023,Revenue,03.GROCERIES & PROVISIONS
28-Apr-2017,7003356,29.52,PASTA KING (UK) LIMITED,366311,Commissioning & Investment,Children's & Education Services,103,Supplies and Services,504,Equipment,5023,Revenue,03.GROCERIES & PROVISIONS
28-Apr-2017,7003356,29.50,PASTA KING (UK) LIMITED,366311,Commissioning & Investment,Children's & Education Services,103,Supplies and Services,504,Equipment,5023,Revenue,03.GROCERIES & PROVISIONS
28-Apr-2017,7003356,28.00,PASTA KING (UK) LIMITED,366311,Commissioning & Investment,Children's & Education Services,103,Supplies and Services,504,Equipment,5023,Revenue,03.GROCERIES & PROVISIONS
28-Apr-2017,7003356,45.00,PASTA KING (UK) LIMITED,366311,Commissioning & Investment,Children's & Education Services,103,Supplies and Services,504,Equipment,5023,Revenue,03.GROCERIES & PROVISIONS
28-Apr-2017,7003356,27.00,PASTA KING (UK) LIMITED,366311,Commissioning & Investment,Children's & Education Services,103,Supplies and Services,504,Equipment,5023,Revenue,03.GROCERIES & PROVISIONS
28-Apr-2017,7003356,81.00,PASTA KING (UK) LIMITED,366311,Commissioning & Investment,Children's & Education Services,103,Supplies and Services,504,Equipment,5023,Revenue,03.GROCERIES & PROVISIONS
28-Apr-2017,7003356,45.00,PASTA KING (UK) LIMITED,366311,Commissioning & Investment,Children's & Education Services,103,Supplies and Services,504,Equipment,5023,Revenue,03.GROCERIES & PROVISIONS
28-Apr-2017,7003356,59.00,PASTA KING (UK) LIMITED,366311,Commissioning & Investment,Children's & Education Services,103,Supplies and Services,504,Equipment,5023,Revenue,03.GROCERIES & PROVISIONS
28-Apr-2017,7003356,29.50,PASTA KING (UK) LIMITED,366311,Commissioning & Investment,Children's & Education Services,103,Supplies and Services,504,Equipment,5023,Revenue,03.GROCERIES & PROVISIONS
28-Apr-2017,7003356,59.00,PASTA KING (UK) LIMITED,366311,Commissioning & Investment,Children's & Education Services,103,Supplies and Services,504,Equipment,5023,Revenue,03.GROCERIES & PROVISIONS
28-Apr-2017,7003356,29.50,PASTA KING (UK) LIMITED,366311,Commissioning & Investment,Children's & Education Services,103,Supplies and Services,504,Equipment,5023,Revenue,03.GROCERIES & PROVISIONS
28-Apr-2017,7003356,29.50,PASTA KING (UK) LIMITED,366311,Commissioning & Investment,Children's & Education Services,103,Supplies and Services,504,Equipment,5023,Revenue,03.GROCERIES & PROVISIONS
28-Apr-2017,7003356,29.50,PASTA KING (UK) LIMITED,366311,Commissioning & Investment,Children's & Education Services,103,Supplies and Services,504,Equipment,5023,Revenue,03.GROCERIES & PROVISIONS
28-Apr-2017,7003356,27.00,PASTA KING (UK) LIMITED,366311,Commissioning & Investment,Children's & Education Services,103,Supplies and Services,504,Equipment,5023,Revenue,03.GROCERIES & PROVISIONS
28-Apr-2017,7003356,29.50,PASTA KING (UK) LIMITED,366311,Commissioning & Investment,Children's & Education Services,103,Supplies and Services,504,Equipment,5023,Revenue,03.GROCERIES & PROVISIONS
28-Apr-2017,7003356,59.00,PASTA KING (UK) LIMITED,366311,Commissioning & Investment,Children's & Education Services,103,Supplies and Services,504,Equipment,5023,Revenue,03.GROCERIES & PROVISIONS
28-Apr-2017,7003356,29.50,PASTA KING (UK) LIMITED,366311,Commissioning & Investment,Children's & Education Services,103,Supplies and Services,504,Equipment,5023,Revenue,03.GROCERIES & PROVISIONS
28-Apr-2017,7003356,27.00,PASTA KING (UK) LIMITED,366311,Commissioning & Investment,Children's & Education Services,103,Supplies and Services,504,Equipment,5023,Revenue,03.GROCERIES & PROVISIONS
28-Apr-2017,7003356,29.50,PASTA KING (UK) LIMITED,366311,Commissioning & Investment,Children's & Education Services,103,Supplies and Services,504,Equipment,5023,Revenue,03.GROCERIES & PROVISIONS
28-Apr-2017,7003356,28.00,PASTA KING (UK) LIMITED,366311,Commissioning & Investment,Children's & Education Services,103,Supplies and Services,504,Equipment,5023,Revenue,03.GROCERIES & PROVISIONS
28-Apr-2017,7003356,30.00,PASTA KING (UK) LIMITED,366311,Commissioning & Investment,Children's & Education Services,103,Supplies and Services,504,Equipment,5023,Revenue,03.GROCERIES & PROVISIONS
28-Apr-2017,7003356,29.50,PASTA KING (UK) LIMITED,366311,Commissioning & Investment,Children's & Education Services,103,Supplies and Services,504,Equipment,5023,Revenue,03.GROCERIES & PROVISIONS
28-Apr-2017,7003356,29.50,PASTA KING (UK) LIMITED,366311,Commissioning & Investment,Children's & Education Services,103,Supplies and Services,504,Equipment,5023,Revenue,03.GROCERIES & PROVISIONS
28-Apr-2017,7003356,29.50,PASTA KING (UK) LIMITED,366311,Commissioning & Investment,Children's & Education Services,103,Supplies and Services,504,Equipment,5023,Revenue,03.GROCERIES & PROVISIONS
28-Apr-2017,7003356,118.00,PASTA KING (UK) LIMITED,366311,Commissioning & Investment,Children's & Education Services,103,Supplies and Services,504,Equipment,5023,Revenue,03.GROCERIES & PROVISIONS
28-Apr-2017,7003356,30.00,PASTA KING (UK) LIMITED,366311,Commissioning & Investment,Children's & Education Services,103,Supplies and Services,504,Equipment,5023,Revenue,03.GROCERIES & PROVISIONS
28-Apr-2017,7003356,27.00,PASTA KING (UK) LIMITED,366311,Commissioning & Investment,Children's & Education Services,103,Supplies and Services,504,Equipment,5023,Revenue,03.GROCERIES & PROVISIONS
28-Apr-2017,7003356,29.50,PASTA KING (UK) LIMITED,366311,Commissioning & Investment,Children's & Education Services,103,Supplies and Services,504,Equipment,5023,Revenue,03.GROCERIES & PROVISIONS
28-Apr-2017,7003356,195.00,PASTA KING (UK) LIMITED,366311,Commissioning & Investment,Children's & Education Services,103,Supplies and Services,504,Equipment,5023,Revenue,03.GROCERIES & PROVISIONS
28-Apr-2017,7003356,29.50,PASTA KING (UK) LIMITED,366311,Commissioning & Investment,Children's & Education Services,103,Supplies and Services,504,Equipment,5023,Revenue,03.GROCERIES & PROVISIONS
28-Apr-2017,7003356,29.50,PASTA KING (UK) LIMITED,366311,Commissioning & Investment,Children's & Education Services,103,Supplies and Services,504,Equipment,5023,Revenue,03.GROCERIES & PROVISIONS
28-Apr-2017,7003356,30.00,PASTA KING (UK) LIMITED,366311,Commissioning & Investment,Children's & Education Services,103,Supplies and Services,504,Equipment,5023,Revenue,03.GROCERIES & PROVISIONS
28-Apr-2017,7003356,29.50,PASTA KING (UK) LIMITED,366311,Commissioning & Investment,Children's & Education Services,103,Supplies and Services,504,Equipment,5023,Revenue,03.GROCERIES & PROVISIONS
28-Apr-2017,7003356,19.80,PASTA KING (UK) LIMITED,366311,Commissioning & Investment,Children's & Education Services,103,Supplies and Services,504,Equipment,5023,Revenue,03.GROCERIES & PROVISIONS
28-Apr-2017,7003356,27.00,PASTA KING (UK) LIMITED,366311,Commissioning & Investment,Children's & Education Services,103,Supplies and Services,504,Equipment,5023,Revenue,03.GROCERIES & PROVISIONS
28-Apr-2017,7003356,60.00,PASTA KING (UK) LIMITED,366311,Commissioning & Investment,Children's & Education Services,103,Supplies and Services,504,Equipment,5023,Revenue,03.GROCERIES & PROVISIONS
28-Apr-2017,7003356,27.00,PASTA KING (UK) LIMITED,366311,Commissioning & Investment,Children's & Education Services,103,Supplies and Services,504,Equipment,5023,Revenue,03.GROCERIES & PROVISIONS
28-Apr-2017,7003356,29.50,PASTA KING (UK) LIMITED,366311,Commissioning & Investment,Children's & Education Services,103,Supplies and Services,504,Equipment,5023,Revenue,03.GROCERIES & PROVISIONS
28-Apr-2017,7003356,59.00,PASTA KING (UK) LIMITED,366311,Commissioning & Investment,Children's & Education Services,103,Supplies and Services,504,Equipment,5023,Revenue,03.GROCERIES & PROVISIONS
28-Apr-2017,7003356,59.00,PASTA KING (UK) LIMITED,366311,Commissioning & Investment,Children's & Education Services,103,Supplies and Services,504,Equipment,5023,Revenue,03.GROCERIES & PROVISIONS
28-Apr-2017,7003356,27.00,PASTA KING (UK) LIMITED,366311,Commissioning & Investment,Children's & Education Services,103,Supplies and Services,504,Equipment,5023,Revenue,03.GROCERIES & PROVISIONS
28-Apr-2017,7003356,30.00,PASTA KING (UK) LIMITED,366311,Commissioning & Investment,Children's & Education Services,103,Supplies and Services,504,Equipment,5023,Revenue,03.GROCERIES & PROVISIONS
28-Apr-2017,7003356,27.00,PASTA KING (UK) LIMITED,366311,Commissioning & Investment,Children's & Education Services,103,Supplies and Services,504,Equipment,5023,Revenue,03.GROCERIES & PROVISIONS
28-Apr-2017,7003356,29.52,PASTA KING (UK) LIMITED,366311,Commissioning & Investment,Children's & Education Services,103,Supplies and Services,504,Equipment,5023,Revenue,03.GROCERIES & PROVISIONS
28-Apr-2017,7003356,29.52,PASTA KING (UK) LIMITED,366311,Commissioning & Investment,Children's & Education Services,103,Supplies and Services,504,Equipment,5023,Revenue,03.GROCERIES & PROVISIONS
28-Apr-2017,7003356,45.00,PASTA KING (UK) LIMITED,366311,Commissioning & Investment,Children's & Education Services,103,Supplies and Services,504,Equipment,5023,Revenue,03.GROCERIES & PROVISIONS
28-Apr-2017,7003356,29.50,PASTA KING (UK) LIMITED,366311,Commissioning & Investment,Children's & Education Services,103,Supplies and Services,504,Equipment,5023,Revenue,03.GROCERIES & PROVISIONS
28-Apr-2017,7003356,45.00,PASTA KING (UK) LIMITED,366311,Commissioning & Investment,Children's & Education Services,103,Supplies and Services,504,Equipment,5023,Revenue,03.GROCERIES & PROVISIONS
28-Apr-2017,7003356,29.50,PASTA KING (UK) LIMITED,366311,Commissioning & Investment,Children's & Education Services,103,Supplies and Services,504,Equipment,5023,Revenue,03.GROCERIES & PROVISIONS
28-Apr-2017,7003356,29.50,PASTA KING (UK) LIMITED,366311,Commissioning & Investment,Children's & Education Services,103,Supplies and Services,504,Equipment,5023,Revenue,03.GROCERIES & PROVISIONS
28-Apr-2017,7003356,29.50,PASTA KING (UK) LIMITED,366311,Commissioning & Investment,Children's & Education Services,103,Supplies and Services,504,Equipment,5023,Revenue,03.GROCERIES & PROVISIONS
28-Apr-2017,7003356,29.50,PASTA KING (UK) LIMITED,366311,Commissioning & Investment,Children's & Education Services,103,Supplies and Services,504,Equipment,5023,Revenue,03.GROCERIES & PROVISIONS
28-Apr-2017,7003356,27.00,PASTA KING (UK) LIMITED,366311,Commissioning & Investment,Children's & Education Services,103,Supplies and Services,504,Equipment,5023,Revenue,03.GROCERIES & PROVISIONS
28-Apr-2017,7003356,28.00,PASTA KING (UK) LIMITED,366311,Commissioning & Investment,Children's & Education Services,103,Supplies and Services,504,Equipment,5023,Revenue,03.GROCERIES & PROVISIONS
28-Apr-2017,7003356,29.50,PASTA KING (UK) LIMITED,366311,Commissioning & Investment,Children's & Education Services,103,Supplies and Services,504,Equipment,5023,Revenue,03.GROCERIES & PROVISIONS
28-Apr-2017,7003356,39.98,PASTA KING (UK) LIMITED,366311,Commissioning & Investment,Children's & Education Services,103,Supplies and Services,504,Equipment,5023,Revenue,03.GROCERIES & PROVISIONS
28-Apr-2017,7003356,45.00,PASTA KING (UK) LIMITED,366311,Commissioning & Investment,Children's & Education Services,103,Supplies and Services,504,Equipment,5023,Revenue,03.GROCERIES & PROVISIONS
28-Apr-2017,7003356,30.00,PASTA KING (UK) LIMITED,366311,Commissioning & Investment,Children's & Education Services,103,Supplies and Services,504,Equipment,5023,Revenue,03.GROCERIES & PROVISIONS
28-Apr-2017,7003356,29.50,PASTA KING (UK) LIMITED,366311,Commissioning & Investment,Children's & Education Services,103,Supplies and Services,504,Equipment,5023,Revenue,03.GROCERIES & PROVISIONS
28-Apr-2017,7003356,29.50,PASTA KING (UK) LIMITED,366311,Commissioning & Investment,Children's & Education Services,103,Supplies and Services,504,Equipment,5023,Revenue,03.GROCERIES & PROVISIONS
28-Apr-2017,7003356,75.00,PASTA KING (UK) LIMITED,366311,Commissioning & Investment,Children's & Education Services,103,Supplies and Services,504,Equipment,5023,Revenue,03.GROCERIES & PROVISIONS
28-Apr-2017,7003356,29.50,PASTA KING (UK) LIMITED,366311,Commissioning & Investment,Children's & Education Services,103,Supplies and Services,504,Equipment,5023,Revenue,03.GROCERIES & PROVISIONS
28-Apr-2017,7003356,29.50,PASTA KING (UK) LIMITED,366311,Commissioning & Investment,Children's & Education Services,103,Supplies and Services,504,Equipment,5023,Revenue,03.GROCERIES & PROVISIONS
28-Apr-2017,7003356,87.50,PASTA KING (UK) LIMITED,366311,Commissioning & Investment,Children's & Education Services,103,Supplies and Services,504,Equipment,5023,Revenue,03.GROCERIES & PROVISIONS
28-Apr-2017,7003356,60.00,PASTA KING (UK) LIMITED,366311,Commissioning & Investment,Children's & Education Services,103,Supplies and Services,504,Equipment,5023,Revenue,03.GROCERIES & PROVISIONS
28-Apr-2017,7003356,28.00,PASTA KING (UK) LIMITED,366311,Commissioning & Investment,Children's & Education Services,103,Supplies and Services,504,Equipment,5023,Revenue,03.GROCERIES & PROVISIONS
28-Apr-2017,7003356,29.50,PASTA KING (UK) LIMITED,366311,Commissioning & Investment,Children's & Education Services,103,Supplies and Services,504,Equipment,5023,Revenue,03.GROCERIES & PROVISIONS
28-Apr-2017,7003356,29.50,PASTA KING (UK) LIMITED,366311,Commissioning & Investment,Children's & Education Services,103,Supplies and Services,504,Equipment,5023,Revenue,03.GROCERIES & PROVISIONS
28-Apr-2017,7003356,29.50,PASTA KING (UK) LIMITED,366311,Commissioning & Investment,Children's & Education Services,103,Supplies and Services,504,Equipment,5023,Revenue,03.GROCERIES & PROVISIONS
28-Apr-2017,7003356,88.50,PASTA KING (UK) LIMITED,366311,Commissioning & Investment,Children's & Education Services,103,Supplies and Services,504,Equipment,5023,Revenue,03.GROCERIES & PROVISIONS
28-Apr-2017,7003356,29.50,PASTA KING (UK) LIMITED,366311,Commissioning & Investment,Children's & Education Services,103,Supplies and Services,504,Equipment,5023,Revenue,03.GROCERIES & PROVISIONS
28-Apr-2017,7003356,28.00,PASTA KING (UK) LIMITED,366311,Commissioning & Investment,Children's & Education Services,103,Supplies and Services,504,Equipment,5023,Revenue,03.GROCERIES & PROVISIONS
28-Apr-2017,7003356,45.00,PASTA KING (UK) LIMITED,366311,Commissioning & Investment,Children's & Education Services,103,Supplies and Services,504,Equipment,5023,Revenue,03.GROCERIES & PROVISIONS
28-Apr-2017,7003356,60.00,PASTA KING (UK) LIMITED,366311,Commissioning & Investment,Children's & Education Services,103,Supplies and Services,504,Equipment,5023,Revenue,03.GROCERIES & PROVISIONS
28-Apr-2017,7003356,28.00,PASTA KING (UK) LIMITED,366311,Commissioning & Investment,Children's & Education Services,103,Supplies and Services,504,Equipment,5023,Revenue,03.GROCERIES & PROVISIONS
28-Apr-2017,7003356,45.00,PASTA KING (UK) LIMITED,366311,Commissioning & Investment,Children's & Education Services,103,Supplies and Services,504,Equipment,5023,Revenue,03.GROCERIES & PROVISIONS
28-Apr-2017,7003356,50.00,PASTA KING (UK) LIMITED,366311,Commissioning & Investment,Children's & Education Services,103,Supplies and Services,504,Equipment,5023,Revenue,03.GROCERIES & PROVISIONS
28-Apr-2017,7003356,29.50,PASTA KING (UK) LIMITED,366311,Commissioning & Investment,Children's & Education Services,103,Supplies and Services,504,Equipment,5023,Revenue,03.GROCERIES & PROVISIONS
28-Apr-2017,7003356,29.50,PASTA KING (UK) LIMITED,366311,Commissioning & Investment,Children's & Education Services,103,Supplies and Services,504,Equipment,5023,Revenue,03.GROCERIES & PROVISIONS
28-Apr-2017,7003356,60.00,PASTA KING (UK) LIMITED,366311,Commissioning & Investment,Children's & Education Services,103,Supplies and Services,504,Equipment,5023,Revenue,03.GROCERIES & PROVISIONS
28-Apr-2017,7003356,59.97,PASTA KING (UK) LIMITED,366311,Commissioning & Investment,Children's & Education Services,103,Supplies and Services,504,Equipment,5023,Revenue,03.GROCERIES & PROVISIONS
28-Apr-2017,7003356,29.50,PASTA KING (UK) LIMITED,366311,Commissioning & Investment,Children's & Education Services,103,Supplies and Services,504,Equipment,5023,Revenue,03.GROCERIES & PROVISIONS
28-Apr-2017,7003356,29.50,PASTA KING (UK) LIMITED,366311,Commissioning & Investment,Children's & Education Services,103,Supplies and Services,504,Equipment,5023,Revenue,03.GROCERIES & PROVISIONS
28-Apr-2017,7003356,27.00,PASTA KING (UK) LIMITED,366311,Commissioning & Investment,Children's & Education Services,103,Supplies and Services,504,Equipment,5023,Revenue,03.GROCERIES & PROVISIONS
28-Apr-2017,7003356,81.00,PASTA KING (UK) LIMITED,366311,Commissioning & Investment,Children's & Education Services,103,Supplies and Services,504,Equipment,5023,Revenue,03.GROCERIES & PROVISIONS
28-Apr-2017,7003356,29.50,PASTA KING (UK) LIMITED,366311,Commissioning & Investment,Children's & Education Services,103,Supplies and Services,504,Equipment,5023,Revenue,03.GROCERIES & PROVISIONS
28-Apr-2017,7003356,29.50,PASTA KING (UK) LIMITED,366311,Commissioning & Investment,Children's & Education Services,103,Supplies and Services,504,Equipment,5023,Revenue,03.GROCERIES & PROVISIONS
28-Apr-2017,7003356,45.00,PASTA KING (UK) LIMITED,366311,Commissioning & Investment,Children's & Education Services,103,Supplies and Services,504,Equipment,5023,Revenue,03.GROCERIES & PROVISIONS
28-Apr-2017,7003356,29.50,PASTA KING (UK) LIMITED,366311,Commissioning & Investment,Children's & Education Services,103,Supplies and Services,504,Equipment,5023,Revenue,03.GROCERIES & PROVISIONS
28-Apr-2017,7003356,60.00,PASTA KING (UK) LIMITED,366311,Commissioning & Investment,Children's & Education Services,103,Supplies and Services,504,Equipment,5023,Revenue,03.GROCERIES & PROVISIONS
28-Apr-2017,7003356,30.00,PASTA KING (UK) LIMITED,366311,Commissioning & Investment,Children's & Education Services,103,Supplies and Services,504,Equipment,5023,Revenue,03.GROCERIES & PROVISIONS
28-Apr-2017,7003356,29.50,PASTA KING (UK) LIMITED,366311,Commissioning & Investment,Children's & Education Services,103,Supplies and Services,504,Equipment,5023,Revenue,03.GROCERIES & PROVISIONS
28-Apr-2017,7003356,29.50,PASTA KING (UK) LIMITED,366311,Commissioning & Investment,Children's & Education Services,103,Supplies and Services,504,Equipment,5023,Revenue,03.GROCERIES & PROVISIONS
28-Apr-2017,7003356,45.00,PASTA KING (UK) LIMITED,366311,Commissioning & Investment,Children's & Education Services,103,Supplies and Services,504,Equipment,5023,Revenue,03.GROCERIES & PROVISIONS
28-Apr-2017,7003356,29.50,PASTA KING (UK) LIMITED,366311,Commissioning & Investment,Children's & Education Services,103,Supplies and Services,504,Equipment,5023,Revenue,03.GROCERIES & PROVISIONS
28-Apr-2017,7003356,45.00,PASTA KING (UK) LIMITED,366311,Commissioning & Investment,Children's & Education Services,103,Supplies and Services,504,Equipment,5023,Revenue,03.GROCERIES & PROVISIONS
28-Apr-2017,7003356,21.00,PASTA KING (UK) LIMITED,366311,Commissioning & Investment,Children's & Education Services,103,Supplies and Services,504,Equipment,5023,Revenue,03.GROCERIES & PROVISIONS
28-Apr-2017,7003356,29.50,PASTA KING (UK) LIMITED,366311,Commissioning & Investment,Children's & Education Services,103,Supplies and Services,504,Equipment,5023,Revenue,03.GROCERIES & PROVISIONS
28-Apr-2017,7003356,27.00,PASTA KING (UK) LIMITED,366311,Commissioning & Investment,Children's & Education Services,103,Supplies and Services,504,Equipment,5023,Revenue,03.GROCERIES & PROVISIONS
28-Apr-2017,7003356,29.50,PASTA KING (UK) LIMITED,366311,Commissioning & Investment,Children's & Education Services,103,Supplies and Services,504,Equipment,5023,Revenue,03.GROCERIES & PROVISIONS
28-Apr-2017,7003356,29.50,PASTA KING (UK) LIMITED,366311,Commissioning & Investment,Children's & Education Services,103,Supplies and Services,504,Equipment,5023,Revenue,03.GROCERIES & PROVISIONS
28-Apr-2017,7003356,29.50,PASTA KING (UK) LIMITED,366311,Commissioning & Investment,Children's & Education Services,103,Supplies and Services,504,Equipment,5023,Revenue,03.GROCERIES & PROVISIONS
28-Apr-2017,7003356,29.50,PASTA KING (UK) LIMITED,366311,Commissioning & Investment,Children's & Education Services,103,Supplies and Services,504,Equipment,5023,Revenue,03.GROCERIES & PROVISIONS
28-Apr-2017,7003356,29.50,PASTA KING (UK) LIMITED,366311,Commissioning & Investment,Children's & Education Services,103,Supplies and Services,504,Equipment,5023,Revenue,03.GROCERIES & PROVISIONS
28-Apr-2017,7003356,29.50,PASTA KING (UK) LIMITED,366311,Commissioning & Investment,Children's & Education Services,103,Supplies and Services,504,Equipment,5023,Revenue,03.GROCERIES & PROVISIONS
28-Apr-2017,7003356,29.50,PASTA KING (UK) LIMITED,366311,Commissioning & Investment,Children's & Education Services,103,Supplies and Services,504,Equipment,5023,Revenue,03.GROCERIES & PROVISIONS
28-Apr-2017,7003356,30.00,PASTA KING (UK) LIMITED,366311,Commissioning & Investment,Children's & Education Services,103,Supplies and Services,504,Equipment,5023,Revenue,03.GROCERIES & PROVISIONS
28-Apr-2017,7003356,29.50,PASTA KING (UK) LIMITED,366311,Commissioning & Investment,Children's & Education Services,103,Supplies and Services,504,Equipment,5023,Revenue,03.GROCERIES & PROVISIONS
28-Apr-2017,7003356,30.00,PASTA KING (UK) LIMITED,366311,Commissioning & Investment,Children's & Education Services,103,Supplies and Services,504,Equipment,5023,Revenue,03.GROCERIES & PROVISIONS
28-Apr-2017,7003356,27.00,PASTA KING (UK) LIMITED,366311,Commissioning & Investment,Children's & Education Services,103,Supplies and Services,504,Equipment,5023,Revenue,03.GROCERIES & PROVISIONS
28-Apr-2017,7003356,29.50,PASTA KING (UK) LIMITED,366311,Commissioning & Investment,Children's & Education Services,103,Supplies and Services,504,Equipment,5023,Revenue,03.GROCERIES & PROVISIONS
28-Apr-2017,7003356,27.00,PASTA KING (UK) LIMITED,366311,Commissioning & Investment,Children's & Education Services,103,Supplies and Services,504,Equipment,5023,Revenue,03.GROCERIES & PROVISIONS
28-Apr-2017,7003356,27.00,PASTA KING (UK) LIMITED,366311,Commissioning & Investment,Children's & Education Services,103,Supplies and Services,504,Equipment,5023,Revenue,03.GROCERIES & PROVISIONS
28-Apr-2017,7003356,29.50,PASTA KING (UK) LIMITED,366311,Commissioning & Investment,Children's & Education Services,103,Supplies and Services,504,Equipment,5023,Revenue,03.GROCERIES & PROVISIONS
28-Apr-2017,7003356,29.50,PASTA KING (UK) LIMITED,366311,Commissioning & Investment,Children's & Education Services,103,Supplies and Services,504,Equipment,5023,Revenue,03.GROCERIES & PROVISIONS
28-Apr-2017,7003356,30.00,PASTA KING (UK) LIMITED,366311,Commissioning & Investment,Children's & Education Services,103,Supplies and Services,504,Equipment,5023,Revenue,03.GROCERIES & PROVISIONS
28-Apr-2017,7003356,21.00,PASTA KING (UK) LIMITED,366311,Commissioning & Investment,Children's & Education Services,103,Supplies and Services,504,Equipment,5023,Revenue,03.GROCERIES & PROVISIONS
28-Apr-2017,7003356,28.00,PASTA KING (UK) LIMITED,366311,Commissioning & Investment,Children's & Education Services,103,Supplies and Services,504,Equipment,5023,Revenue,03.GROCERIES & PROVISIONS
28-Apr-2017,7003356,29.50,PASTA KING (UK) LIMITED,366311,Commissioning & Investment,Children's & Education Services,103,Supplies and Services,504,Equipment,5023,Revenue,03.GROCERIES & PROVISIONS
28-Apr-2017,7003356,29.50,PASTA KING (UK) LIMITED,366311,Commissioning & Investment,Children's & Education Services,103,Supplies and Services,504,Equipment,5023,Revenue,03.GROCERIES & PROVISIONS
28-Apr-2017,7003356,29.50,PASTA KING (UK) LIMITED,366311,Commissioning & Investment,Children's & Education Services,103,Supplies and Services,504,Equipment,5023,Revenue,03.GROCERIES & PROVISIONS
28-Apr-2017,7003356,27.00,PASTA KING (UK) LIMITED,366311,Commissioning & Investment,Children's & Education Services,103,Supplies and Services,504,Equipment,5023,Revenue,03.GROCERIES & PROVISIONS
28-Apr-2017,7003356,29.50,PASTA KING (UK) LIMITED,366311,Commissioning & Investment,Children's & Education Services,103,Supplies and Services,504,Equipment,5023,Revenue,03.GROCERIES & PROVISIONS
28-Apr-2017,7003356,29.50,PASTA KING (UK) LIMITED,366311,Commissioning & Investment,Children's & Education Services,103,Supplies and Services,504,Equipment,5023,Revenue,03.GROCERIES & PROVISIONS
28-Apr-2017,7003356,29.50,PASTA KING (UK) LIMITED,366311,Commissioning & Investment,Children's & Education Services,103,Supplies and Services,504,Equipment,5023,Revenue,03.GROCERIES & PROVISIONS
28-Apr-2017,7003356,59.00,PASTA KING (UK) LIMITED,366311,Commissioning & Investment,Children's & Education Services,103,Supplies and Services,504,Equipment,5023,Revenue,03.GROCERIES & PROVISIONS
28-Apr-2017,7003356,29.50,PASTA KING (UK) LIMITED,366311,Commissioning & Investment,Children's & Education Services,103,Supplies and Services,504,Equipment,5023,Revenue,03.GROCERIES & PROVISIONS
28-Apr-2017,7003356,29.50,PASTA KING (UK) LIMITED,366311,Commissioning & Investment,Children's & Education Services,103,Supplies and Services,504,Equipment,5023,Revenue,03.GROCERIES & PROVISIONS
28-Apr-2017,7003356,29.50,PASTA KING (UK) LIMITED,366311,Commissioning & Investment,Children's & Education Services,103,Supplies and Services,504,Equipment,5023,Revenue,03.GROCERIES & PROVISIONS
28-Apr-2017,7003356,29.50,PASTA KING (UK) LIMITED,366311,Commissioning & Investment,Children's & Education Services,103,Supplies and Services,504,Equipment,5023,Revenue,03.GROCERIES & PROVISIONS
28-Apr-2017,7003356,29.50,PASTA KING (UK) LIMITED,366311,Commissioning & Investment,Children's & Education Services,103,Supplies and Services,504,Equipment,5023,Revenue,03.GROCERIES & PROVISIONS
28-Apr-2017,7003356,29.50,PASTA KING (UK) LIMITED,366311,Commissioning & Investment,Children's & Education Services,103,Supplies and Services,504,Equipment,5023,Revenue,03.GROCERIES & PROVISIONS
28-Apr-2017,7003356,29.50,PASTA KING (UK) LIMITED,366311,Commissioning & Investment,Children's & Education Services,103,Supplies and Services,504,Equipment,5023,Revenue,03.GROCERIES & PROVISIONS
28-Apr-2017,7003356,59.00,PASTA KING (UK) LIMITED,366311,Commissioning & Investment,Children's & Education Services,103,Supplies and Services,504,Equipment,5023,Revenue,03.GROCERIES & PROVISIONS
28-Apr-2017,7003356,48.00,PASTA KING (UK) LIMITED,366311,Commissioning & Investment,Children's & Education Services,103,Supplies and Services,504,Equipment,5023,Revenue,03.GROCERIES & PROVISIONS
28-Apr-2017,7003356,15.00,PASTA KING (UK) LIMITED,366311,Commissioning & Investment,Children's & Education Services,103,Supplies and Services,504,Equipment,5023,Revenue,03.GROCERIES & PROVISIONS
28-Apr-2017,7003356,100.00,PASTA KING (UK) LIMITED,366311,Commissioning & Investment,Children's & Education Services,103,Supplies and Services,504,Equipment,5023,Revenue,03.GROCERIES & PROVISIONS
28-Apr-2017,7003356,27.00,PASTA KING (UK) LIMITED,366311,Commissioning & Investment,Children's & Education Services,103,Supplies and Services,504,Equipment,5023,Revenue,03.GROCERIES & PROVISIONS
28-Apr-2017,7003356,27.00,PASTA KING (UK) LIMITED,366311,Commissioning & Investment,Children's & Education Services,103,Supplies and Services,504,Equipment,5023,Revenue,03.GROCERIES & PROVISIONS
28-Apr-2017,7003356,19.80,PASTA KING (UK) LIMITED,366311,Commissioning & Investment,Children's & Education Services,103,Supplies and Services,504,Equipment,5023,Revenue,03.GROCERIES & PROVISIONS
28-Apr-2017,7003356,30.00,PASTA KING (UK) LIMITED,366311,Commissioning & Investment,Children's & Education Services,103,Supplies and Services,504,Equipment,5023,Revenue,03.GROCERIES & PROVISIONS
28-Apr-2017,7003356,27.00,PASTA KING (UK) LIMITED,366311,Commissioning & Investment,Children's & Education Services,103,Supplies and Services,504,Equipment,5023,Revenue,03.GROCERIES & PROVISIONS
28-Apr-2017,7003356,29.50,PASTA KING (UK) LIMITED,366311,Commissioning & Investment,Children's & Education Services,103,Supplies and Services,504,Equipment,5023,Revenue,03.GROCERIES & PROVISIONS
28-Apr-2017,7003356,30.00,PASTA KING (UK) LIMITED,366311,Commissioning & Investment,Children's & Education Services,103,Supplies and Services,504,Equipment,5023,Revenue,03.GROCERIES & PROVISIONS
28-Apr-2017,7003356,54.00,PASTA KING (UK) LIMITED,366311,Commissioning & Investment,Children's & Education Services,103,Supplies and Services,504,Equipment,5023,Revenue,03.GROCERIES & PROVISIONS
28-Apr-2017,7003356,9.90,PASTA KING (UK) LIMITED,366311,Commissioning & Investment,Children's & Education Services,103,Supplies and Services,504,Equipment,5023,Revenue,03.GROCERIES & PROVISIONS
28-Apr-2017,7003356,29.50,PASTA KING (UK) LIMITED,366311,Commissioning & Investment,Children's & Education Services,103,Supplies and Services,504,Equipment,5023,Revenue,03.GROCERIES & PROVISIONS
28-Apr-2017,7003356,29.50,PASTA KING (UK) LIMITED,366311,Commissioning & Investment,Children's & Education Services,103,Supplies and Services,504,Equipment,5023,Revenue,03.GROCERIES & PROVISIONS
28-Apr-2017,7003356,29.50,PASTA KING (UK) LIMITED,366311,Commissioning & Investment,Children's & Education Services,103,Supplies and Services,504,Equipment,5023,Revenue,03.GROCERIES & PROVISIONS
28-Apr-2017,7003356,29.50,PASTA KING (UK) LIMITED,366311,Commissioning & Investment,Children's & Education Services,103,Supplies and Services,504,Equipment,5023,Revenue,03.GROCERIES & PROVISIONS
28-Apr-2017,7003356,59.00,PASTA KING (UK) LIMITED,366311,Commissioning & Investment,Children's & Education Services,103,Supplies and Services,504,Equipment,5023,Revenue,03.GROCERIES & PROVISIONS
28-Apr-2017,7003356,29.50,PASTA KING (UK) LIMITED,366311,Commissioning & Investment,Children's & Education Services,103,Supplies and Services,504,Equipment,5023,Revenue,03.GROCERIES & PROVISIONS
28-Apr-2017,7003356,54.00,PASTA KING (UK) LIMITED,366311,Commissioning & Investment,Children's & Education Services,103,Supplies and Services,504,Equipment,5023,Revenue,03.GROCERIES & PROVISIONS
28-Apr-2017,7003356,45.00,PASTA KING (UK) LIMITED,366311,Commissioning & Investment,Children's & Education Services,103,Supplies and Services,504,Equipment,5023,Revenue,03.GROCERIES & PROVISIONS
28-Apr-2017,7003356,59.00,PASTA KING (UK) LIMITED,366311,Commissioning & Investment,Children's & Education Services,103,Supplies and Services,504,Equipment,5023,Revenue,03.GROCERIES & PROVISIONS
28-Apr-2017,7003356,45.00,PASTA KING (UK) LIMITED,366311,Commissioning & Investment,Children's & Education Services,103,Supplies and Services,504,Equipment,5023,Revenue,03.GROCERIES & PROVISIONS
28-Apr-2017,7003356,29.52,PASTA KING (UK) LIMITED,366311,Commissioning & Investment,Children's & Education Services,103,Supplies and Services,504,Equipment,5023,Revenue,03.GROCERIES & PROVISIONS
28-Apr-2017,7003356,60.00,PASTA KING (UK) LIMITED,366311,Commissioning & Investment,Children's & Education Services,103,Supplies and Services,504,Equipment,5023,Revenue,03.GROCERIES & PROVISIONS
28-Apr-2017,7003356,29.50,PASTA KING (UK) LIMITED,366311,Commissioning & Investment,Children's & Education Services,103,Supplies and Services,504,Equipment,5023,Revenue,03.GROCERIES & PROVISIONS
28-Apr-2017,7003356,29.50,PASTA KING (UK) LIMITED,366311,Commissioning & Investment,Children's & Education Services,103,Supplies and Services,504,Equipment,5023,Revenue,03.GROCERIES & PROVISIONS
28-Apr-2017,7003356,29.50,PASTA KING (UK) LIMITED,366311,Commissioning & Investment,Children's & Education Services,103,Supplies and Services,504,Equipment,5023,Revenue,03.GROCERIES & PROVISIONS
28-Apr-2017,7003356,27.00,PASTA KING (UK) LIMITED,366311,Commissioning & Investment,Children's & Education Services,103,Supplies and Services,504,Equipment,5023,Revenue,03.GROCERIES & PROVISIONS
28-Apr-2017,7003356,29.50,PASTA KING (UK) LIMITED,366311,Commissioning & Investment,Children's & Education Services,103,Supplies and Services,504,Equipment,5023,Revenue,03.GROCERIES & PROVISIONS
28-Apr-2017,7003356,29.50,PASTA KING (UK) LIMITED,366311,Commissioning & Investment,Children's & Education Services,103,Supplies and Services,504,Equipment,5023,Revenue,03.GROCERIES & PROVISIONS
28-Apr-2017,7003356,60.00,PASTA KING (UK) LIMITED,366311,Commissioning & Investment,Children's & Education Services,103,Supplies and Services,504,Equipment,5023,Revenue,03.GROCERIES & PROVISIONS
28-Apr-2017,7003356,27.00,PASTA KING (UK) LIMITED,366311,Commissioning & Investment,Children's & Education Services,103,Supplies and Services,504,Equipment,5023,Revenue,03.GROCERIES & PROVISIONS
28-Apr-2017,7003356,45.00,PASTA KING (UK) LIMITED,366311,Commissioning & Investment,Children's & Education Services,103,Supplies and Services,504,Equipment,5023,Revenue,03.GROCERIES & PROVISIONS
28-Apr-2017,7003356,29.50,PASTA KING (UK) LIMITED,366311,Commissioning & Investment,Children's & Education Services,103,Supplies and Services,504,Equipment,5023,Revenue,03.GROCERIES & PROVISIONS
28-Apr-2017,7003356,29.50,PASTA KING (UK) LIMITED,366311,Commissioning & Investment,Children's & Education Services,103,Supplies and Services,504,Equipment,5023,Revenue,03.GROCERIES & PROVISIONS
28-Apr-2017,7003356,90.00,PASTA KING (UK) LIMITED,366311,Commissioning & Investment,Children's & Education Services,103,Supplies and Services,504,Equipment,5023,Revenue,03.GROCERIES & PROVISIONS
28-Apr-2017,7003356,29.50,PASTA KING (UK) LIMITED,366311,Commissioning & Investment,Children's & Education Services,103,Supplies and Services,504,Equipment,5023,Revenue,03.GROCERIES & PROVISIONS
28-Apr-2017,7003356,59.00,PASTA KING (UK) LIMITED,366311,Commissioning & Investment,Children's & Education Services,103,Supplies and Services,504,Equipment,5023,Revenue,03.GROCERIES & PROVISIONS
28-Apr-2017,7003356,45.00,PASTA KING (UK) LIMITED,366311,Commissioning & Investment,Children's & Education Services,103,Supplies and Services,504,Equipment,5023,Revenue,03.GROCERIES & PROVISIONS
28-Apr-2017,7003356,29.50,PASTA KING (UK) LIMITED,366311,Commissioning & Investment,Children's & Education Services,103,Supplies and Services,504,Equipment,5023,Revenue,03.GROCERIES & PROVISIONS
28-Apr-2017,7003356,120.00,PASTA KING (UK) LIMITED,366311,Commissioning & Investment,Children's & Education Services,103,Supplies and Services,504,Equipment,5023,Revenue,03.GROCERIES & PROVISIONS
28-Apr-2017,7003356,27.00,PASTA KING (UK) LIMITED,366311,Commissioning & Investment,Children's & Education Services,103,Supplies and Services,504,Equipment,5023,Revenue,03.GROCERIES & PROVISIONS
28-Apr-2017,7003356,54.00,PASTA KING (UK) LIMITED,366311,Commissioning & Investment,Children's & Education Services,103,Supplies and Services,504,Equipment,5023,Revenue,03.GROCERIES & PROVISIONS
28-Apr-2017,7003356,29.50,PASTA KING (UK) LIMITED,366311,Commissioning & Investment,Children's & Education Services,103,Supplies and Services,504,Equipment,5023,Revenue,03.GROCERIES & PROVISIONS
28-Apr-2017,7003356,29.50,PASTA KING (UK) LIMITED,366311,Commissioning & Investment,Children's & Education Services,103,Supplies and Services,504,Equipment,5023,Revenue,03.GROCERIES & PROVISIONS
28-Apr-2017,7003356,29.50,PASTA KING (UK) LIMITED,366311,Commissioning & Investment,Children's & Education Services,103,Supplies and Services,504,Equipment,5023,Revenue,03.GROCERIES & PROVISIONS
28-Apr-2017,7003356,75.00,PASTA KING (UK) LIMITED,366311,Commissioning & Investment,Children's & Education Services,103,Supplies and Services,504,Equipment,5023,Revenue,03.GROCERIES & PROVISIONS
28-Apr-2017,7003356,29.50,PASTA KING (UK) LIMITED,366311,Commissioning & Investment,Children's & Education Services,103,Supplies and Services,504,Equipment,5023,Revenue,03.GROCERIES & PROVISIONS
28-Apr-2017,7003356,29.50,PASTA KING (UK) LIMITED,366311,Commissioning & Investment,Children's & Education Services,103,Supplies and Services,504,Equipment,5023,Revenue,03.GROCERIES & PROVISIONS
28-Apr-2017,7003356,29.50,PASTA KING (UK) LIMITED,366311,Commissioning & Investment,Children's & Education Services,103,Supplies and Services,504,Equipment,5023,Revenue,03.GROCERIES & PROVISIONS
28-Apr-2017,7003356,15.00,PASTA KING (UK) LIMITED,366311,Commissioning & Investment,Children's & Education Services,103,Supplies and Services,504,Equipment,5023,Revenue,03.GROCERIES & PROVISIONS
28-Apr-2017,7003356,29.50,PASTA KING (UK) LIMITED,366311,Commissioning & Investment,Children's & Education Services,103,Supplies and Services,504,Equipment,5023,Revenue,03.GROCERIES & PROVISIONS
28-Apr-2017,7003356,28.00,PASTA KING (UK) LIMITED,366311,Commissioning & Investment,Children's & Education Services,103,Supplies and Services,504,Equipment,5023,Revenue,03.GROCERIES & PROVISIONS
28-Apr-2017,7003356,28.00,PASTA KING (UK) LIMITED,366311,Commissioning & Investment,Children's & Education Services,103,Supplies and Services,504,Equipment,5023,Revenue,03.GROCERIES & PROVISIONS
28-Apr-2017,7003356,29.52,PASTA KING (UK) LIMITED,366311,Commissioning & Investment,Children's & Education Services,103,Supplies and Services,504,Equipment,5023,Revenue,03.GROCERIES & PROVISIONS
28-Apr-2017,7003356,30.00,PASTA KING (UK) LIMITED,366311,Commissioning & Investment,Children's & Education Services,103,Supplies and Services,504,Equipment,5023,Revenue,03.GROCERIES & PROVISIONS
28-Apr-2017,7003356,29.50,PASTA KING (UK) LIMITED,366311,Commissioning & Investment,Children's & Education Services,103,Supplies and Services,504,Equipment,5023,Revenue,03.GROCERIES & PROVISIONS
28-Apr-2017,7003356,27.00,PASTA KING (UK) LIMITED,366311,Commissioning & Investment,Children's & Education Services,103,Supplies and Services,504,Equipment,5023,Revenue,03.GROCERIES & PROVISIONS
28-Apr-2017,7003356,29.50,PASTA KING (UK) LIMITED,366311,Commissioning & Investment,Children's & Education Services,103,Supplies and Services,504,Equipment,5023,Revenue,03.GROCERIES & PROVISIONS
28-Apr-2017,7003356,29.50,PASTA KING (UK) LIMITED,366311,Commissioning & Investment,Children's & Education Services,103,Supplies and Services,504,Equipment,5023,Revenue,03.GROCERIES & PROVISIONS
28-Apr-2017,7003356,45.00,PASTA KING (UK) LIMITED,366311,Commissioning & Investment,Children's & Education Services,103,Supplies and Services,504,Equipment,5023,Revenue,03.GROCERIES & PROVISIONS
28-Apr-2017,7003356,29.50,PASTA KING (UK) LIMITED,366311,Commissioning & Investment,Children's & Education Services,103,Supplies and Services,504,Equipment,5023,Revenue,03.GROCERIES & PROVISIONS
28-Apr-2017,7003356,29.50,PASTA KING (UK) LIMITED,366311,Commissioning & Investment,Children's & Education Services,103,Supplies and Services,504,Equipment,5023,Revenue,03.GROCERIES & PROVISIONS
28-Apr-2017,7003356,29.50,PASTA KING (UK) LIMITED,366311,Commissioning & Investment,Children's & Education Services,103,Supplies and Services,504,Equipment,5023,Revenue,03.GROCERIES & PROVISIONS
28-Apr-2017,7003356,29.50,PASTA KING (UK) LIMITED,366311,Commissioning & Investment,Children's & Education Services,103,Supplies and Services,504,Equipment,5023,Revenue,03.GROCERIES & PROVISIONS
28-Apr-2017,7003356,29.50,PASTA KING (UK) LIMITED,366311,Commissioning & Investment,Children's & Education Services,103,Supplies and Services,504,Equipment,5023,Revenue,03.GROCERIES & PROVISIONS
28-Apr-2017,7003356,81.00,PASTA KING (UK) LIMITED,366311,Commissioning & Investment,Children's & Education Services,103,Supplies and Services,504,Equipment,5023,Revenue,03.GROCERIES & PROVISIONS
28-Apr-2017,7003356,30.00,PASTA KING (UK) LIMITED,366311,Commissioning & Investment,Children's & Education Services,103,Supplies and Services,504,Equipment,5023,Revenue,03.GROCERIES & PROVISIONS
28-Apr-2017,7003356,29.50,PASTA KING (UK) LIMITED,366311,Commissioning & Investment,Children's & Education Services,103,Supplies and Services,504,Equipment,5023,Revenue,03.GROCERIES & PROVISIONS
28-Apr-2017,7003356,29.52,PASTA KING (UK) LIMITED,366311,Commissioning & Investment,Children's & Education Services,103,Supplies and Services,504,Equipment,5023,Revenue,03.GROCERIES & PROVISIONS
28-Apr-2017,7003356,27.00,PASTA KING (UK) LIMITED,366311,Commissioning & Investment,Children's & Education Services,103,Supplies and Services,504,Equipment,5023,Revenue,03.GROCERIES & PROVISIONS
28-Apr-2017,7003356,30.00,PASTA KING (UK) LIMITED,366311,Commissioning & Investment,Children's & Education Services,103,Supplies and Services,504,Equipment,5023,Revenue,03.GROCERIES & PROVISIONS
28-Apr-2017,7003356,29.50,PASTA KING (UK) LIMITED,366311,Commissioning & Investment,Children's & Education Services,103,Supplies and Services,504,Equipment,5023,Revenue,03.GROCERIES & PROVISIONS
28-Apr-2017,7003356,29.50,PASTA KING (UK) LIMITED,366311,Commissioning & Investment,Children's & Education Services,103,Supplies and Services,504,Equipment,5023,Revenue,03.GROCERIES & PROVISIONS
28-Apr-2017,7003356,29.50,PASTA KING (UK) LIMITED,366311,Commissioning & Investment,Children's & Education Services,103,Supplies and Services,504,Equipment,5023,Revenue,03.GROCERIES & PROVISIONS
28-Apr-2017,7003356,29.50,PASTA KING (UK) LIMITED,366311,Commissioning & Investment,Children's & Education Services,103,Supplies and Services,504,Equipment,5023,Revenue,03.GROCERIES & PROVISIONS
28-Apr-2017,7003356,29.50,PASTA KING (UK) LIMITED,366311,Commissioning & Investment,Children's & Education Services,103,Supplies and Services,504,Equipment,5023,Revenue,03.GROCERIES & PROVISIONS
28-Apr-2017,7003356,29.50,PASTA KING (UK) LIMITED,366311,Commissioning & Investment,Children's & Education Services,103,Supplies and Services,504,Equipment,5023,Revenue,03.GROCERIES & PROVISIONS
28-Apr-2017,7003356,45.00,PASTA KING (UK) LIMITED,366311,Commissioning & Investment,Children's & Education Services,103,Supplies and Services,504,Equipment,5023,Revenue,03.GROCERIES & PROVISIONS
28-Apr-2017,7003356,29.50,PASTA KING (UK) LIMITED,366311,Commissioning & Investment,Children's & Education Services,103,Supplies and Services,504,Equipment,5023,Revenue,03.GROCERIES & PROVISIONS
28-Apr-2017,7003356,29.50,PASTA KING (UK) LIMITED,366311,Commissioning & Investment,Children's & Education Services,103,Supplies and Services,504,Equipment,5023,Revenue,03.GROCERIES & PROVISIONS
28-Apr-2017,7003356,29.50,PASTA KING (UK) LIMITED,366311,Commissioning & Investment,Children's & Education Services,103,Supplies and Services,504,Equipment,5023,Revenue,03.GROCERIES & PROVISIONS
28-Apr-2017,7003356,45.00,PASTA KING (UK) LIMITED,366311,Commissioning & Investment,Children's & Education Services,103,Supplies and Services,504,Equipment,5023,Revenue,03.GROCERIES & PROVISIONS
28-Apr-2017,7003356,29.50,PASTA KING (UK) LIMITED,366311,Commissioning & Investment,Children's & Education Services,103,Supplies and Services,504,Equipment,5023,Revenue,03.GROCERIES & PROVISIONS
28-Apr-2017,7003356,29.50,PASTA KING (UK) LIMITED,366311,Commissioning & Investment,Children's & Education Services,103,Supplies and Services,504,Equipment,5023,Revenue,03.GROCERIES & PROVISIONS
28-Apr-2017,7003356,21.00,PASTA KING (UK) LIMITED,366311,Commissioning & Investment,Children's & Education Services,103,Supplies and Services,504,Equipment,5023,Revenue,03.GROCERIES & PROVISIONS
28-Apr-2017,7003356,9.90,PASTA KING (UK) LIMITED,366311,Commissioning & Investment,Children's & Education Services,103,Supplies and Services,504,Equipment,5023,Revenue,03.GROCERIES & PROVISIONS
28-Apr-2017,7003356,29.50,PASTA KING (UK) LIMITED,366311,Commissioning & Investment,Children's & Education Services,103,Supplies and Services,504,Equipment,5023,Revenue,03.GROCERIES & PROVISIONS
28-Apr-2017,7003356,29.50,PASTA KING (UK) LIMITED,366311,Commissioning & Investment,Children's & Education Services,103,Supplies and Services,504,Equipment,5023,Revenue,03.GROCERIES & PROVISIONS
28-Apr-2017,7003356,29.50,PASTA KING (UK) LIMITED,366311,Commissioning & Investment,Children's & Education Services,103,Supplies and Services,504,Equipment,5023,Revenue,03.GROCERIES & PROVISIONS
28-Apr-2017,7003356,29.50,PASTA KING (UK) LIMITED,366311,Commissioning & Investment,Children's & Education Services,103,Supplies and Services,504,Equipment,5023,Revenue,03.GROCERIES & PROVISIONS
28-Apr-2017,7003356,29.50,PASTA KING (UK) LIMITED,366311,Commissioning & Investment,Children's & Education Services,103,Supplies and Services,504,Equipment,5023,Revenue,03.GROCERIES & PROVISIONS
28-Apr-2017,7003356,30.00,PASTA KING (UK) LIMITED,366311,Commissioning & Investment,Children's & Education Services,103,Supplies and Services,504,Equipment,5023,Revenue,03.GROCERIES & PROVISIONS
28-Apr-2017,7003356,28.00,PASTA KING (UK) LIMITED,366311,Commissioning & Investment,Children's & Education Services,103,Supplies and Services,504,Equipment,5023,Revenue,03.GROCERIES & PROVISIONS
28-Apr-2017,7003356,14.85,PASTA KING (UK) LIMITED,366311,Commissioning & Investment,Children's & Education Services,103,Supplies and Services,504,Equipment,5023,Revenue,03.GROCERIES & PROVISIONS
28-Apr-2017,7003356,29.50,PASTA KING (UK) LIMITED,366311,Commissioning & Investment,Children's & Education Services,103,Supplies and Services,504,Equipment,5023,Revenue,03.GROCERIES & PROVISIONS
28-Apr-2017,7003356,29.50,PASTA KING (UK) LIMITED,366311,Commissioning & Investment,Children's & Education Services,103,Supplies and Services,504,Equipment,5023,Revenue,03.GROCERIES & PROVISIONS
28-Apr-2017,7003356,29.50,PASTA KING (UK) LIMITED,366311,Commissioning & Investment,Children's & Education Services,103,Supplies and Services,504,Equipment,5023,Revenue,03.GROCERIES & PROVISIONS
28-Apr-2017,7003356,29.50,PASTA KING (UK) LIMITED,366311,Commissioning & Investment,Children's & Education Services,103,Supplies and Services,504,Equipment,5023,Revenue,03.GROCERIES & PROVISIONS
28-Apr-2017,7003356,29.50,PASTA KING (UK) LIMITED,366311,Commissioning & Investment,Children's & Education Services,103,Supplies and Services,504,Equipment,5023,Revenue,03.GROCERIES & PROVISIONS
28-Apr-2017,7003356,29.50,PASTA KING (UK) LIMITED,366311,Commissioning & Investment,Children's & Education Services,103,Supplies and Services,504,Equipment,5023,Revenue,03.GROCERIES & PROVISIONS
28-Apr-2017,7003356,45.00,PASTA KING (UK) LIMITED,366311,Commissioning & Investment,Children's & Education Services,103,Supplies and Services,504,Equipment,5023,Revenue,03.GROCERIES & PROVISIONS
28-Apr-2017,7003356,29.50,PASTA KING (UK) LIMITED,366311,Commissioning & Investment,Children's & Education Services,103,Supplies and Services,504,Equipment,5023,Revenue,03.GROCERIES & PROVISIONS
28-Apr-2017,7003356,29.50,PASTA KING (UK) LIMITED,366311,Commissioning & Investment,Children's & Education Services,103,Supplies and Services,504,Equipment,5023,Revenue,03.GROCERIES & PROVISIONS
28-Apr-2017,7003356,27.00,PASTA KING (UK) LIMITED,366311,Commissioning & Investment,Children's & Education Services,103,Supplies and Services,504,Equipment,5023,Revenue,03.GROCERIES & PROVISIONS
28-Apr-2017,7003356,29.50,PASTA KING (UK) LIMITED,366311,Commissioning & Investment,Children's & Education Services,103,Supplies and Services,504,Equipment,5023,Revenue,03.GROCERIES & PROVISIONS
28-Apr-2017,7003357,853.24,DELICE DE FRANCE PLC,374547,"Environment, Housing & Leisure",Adult Social Care,101,Supplies and Services,504,Equipment,5023,Revenue,03.GROCERIES & PROVISIONS
28-Apr-2017,7003357,518.28,DELICE DE FRANCE PLC,374547,"Environment, Housing & Leisure",Cultural & Related Services,104,Supplies and Services,504,Equipment,5023,Revenue,03.GROCERIES & PROVISIONS
28-Apr-2017,7003357,137.79,DELICE DE FRANCE PLC,374547,"Environment, Housing & Leisure",Cultural & Related Services,104,Supplies and Services,504,Equipment,5023,Revenue,03.GROCERIES & PROVISIONS
28-Apr-2017,7003358,60.42,HER MAJESTY'S PASSPORT OFFICE,342302,"Health, Education, Care and Safeguarding",Children's & Education Services,103,Supplies and Services,504,Miscellaneous Expenses,5034,Revenue,00.NON INFLUENCIBLE
28-Apr-2017,7003358,51.15,HER MAJESTY'S PASSPORT OFFICE,342302,"Health, Education, Care and Safeguarding",Children's & Education Services,103,Supplies and Services,504,Miscellaneous Expenses,5034,Revenue,00.NON INFLUENCIBLE
28-Apr-2017,7003358,38.33,HER MAJESTY'S PASSPORT OFFICE,342302,"Health, Education, Care and Safeguarding",Children's & Education Services,103,Supplies and Services,504,Miscellaneous Expenses,5034,Revenue,00.NON INFLUENCIBLE
28-Apr-2017,7003358,153.45,HER MAJESTY'S PASSPORT OFFICE,342302,"Health, Education, Care and Safeguarding",Children's & Education Services,103,Supplies and Services,504,Miscellaneous Expenses,5034,Revenue,00.NON INFLUENCIBLE
28-Apr-2017,7003358,92.50,HER MAJESTY'S PASSPORT OFFICE,342302,"Health, Education, Care and Safeguarding",Children's & Education Services,103,Supplies and Services,504,Miscellaneous Expenses,5034,Revenue,00.NON INFLUENCIBLE
28-Apr-2017,7003358,23.40,HER MAJESTY'S PASSPORT OFFICE,342302,"Health, Education, Care and Safeguarding",Children's & Education Services,103,Supplies and Services,504,Miscellaneous Expenses,5034,Revenue,00.NON INFLUENCIBLE
28-Apr-2017,7003358,75.50,HER MAJESTY'S PASSPORT OFFICE,342302,"Health, Education, Care and Safeguarding",Children's & Education Services,103,Third Party Payments,505,Other Establishments,5041,Revenue,00.NON INFLUENCIBLE
28-Apr-2017,7003358,72.50,HER MAJESTY'S PASSPORT OFFICE,342302,"Health, Education, Care and Safeguarding",Children's & Education Services,103,Third Party Payments,505,Other Establishments,5041,Revenue,00.NON INFLUENCIBLE
28-Apr-2017,7003358,70.20,HER MAJESTY'S PASSPORT OFFICE,342302,"Health, Education, Care and Safeguarding",Children's & Education Services,103,Supplies and Services,504,Miscellaneous Expenses,5034,Revenue,00.NON INFLUENCIBLE
28-Apr-2017,7003358,55.50,HER MAJESTY'S PASSPORT OFFICE,342302,"Health, Education, Care and Safeguarding",Children's & Education Services,103,Supplies and Services,504,Miscellaneous Expenses,5034,Revenue,00.NON INFLUENCIBLE
28-Apr-2017,7003359,202.50,DVLA,322925,"Environment, Housing & Leisure",Unallocated,N/A,Transport,503,Direct Transport Costs,5016,Revenue,00.NON INFLUENCIBLE
28-Apr-2017,7003359,232.50,DVLA,322925,"Environment, Housing & Leisure",Unallocated,N/A,Transport,503,Direct Transport Costs,5016,Revenue,00.NON INFLUENCIBLE
28-Apr-2017,7003359,232.50,DVLA,322925,"Environment, Housing & Leisure",Unallocated,N/A,Transport,503,Direct Transport Costs,5016,Revenue,00.NON INFLUENCIBLE
28-Apr-2017,7003359,232.50,DVLA,322925,"Environment, Housing & Leisure",Unallocated,N/A,Transport,503,Direct Transport Costs,5016,Revenue,00.NON INFLUENCIBLE
28-Apr-2017,7003359,232.50,DVLA,322925,"Environment, Housing & Leisure",Unallocated,N/A,Transport,503,Direct Transport Costs,5016,Revenue,00.NON INFLUENCIBLE
28-Apr-2017,7003359,232.50,DVLA,322925,"Environment, Housing & Leisure",Unallocated,N/A,Transport,503,Direct Transport Costs,5016,Revenue,00.NON INFLUENCIBLE
28-Apr-2017,7003359,237.50,DVLA,322925,"Environment, Housing & Leisure",Unallocated,N/A,Transport,503,Direct Transport Costs,5016,Revenue,00.NON INFLUENCIBLE
28-Apr-2017,7003359,232.50,DVLA,322925,"Environment, Housing & Leisure",Unallocated,N/A,Transport,503,Direct Transport Costs,5016,Revenue,00.NON INFLUENCIBLE
28-Apr-2017,7003359,232.50,DVLA,322925,"Environment, Housing & Leisure",Unallocated,N/A,Transport,503,Direct Transport Costs,5016,Revenue,00.NON INFLUENCIBLE
28-Apr-2017,7003359,652.50,DVLA,322925,"Environment, Housing & Leisure",Unallocated,N/A,Transport,503,Direct Transport Costs,5016,Revenue,00.NON INFLUENCIBLE
28-Apr-2017,7003359,232.50,DVLA,322925,"Environment, Housing & Leisure",Unallocated,N/A,Transport,503,Direct Transport Costs,5016,Revenue,00.NON INFLUENCIBLE
28-Apr-2017,7003359,232.50,DVLA,322925,"Environment, Housing & Leisure",Unallocated,N/A,Transport,503,Direct Transport Costs,5016,Revenue,00.NON INFLUENCIBLE
28-Apr-2017,7003359,232.50,DVLA,322925,"Environment, Housing & Leisure",Unallocated,N/A,Transport,503,Direct Transport Costs,5016,Revenue,00.NON INFLUENCIBLE
28-Apr-2017,7003359,167.50,DVLA,322925,"Environment, Housing & Leisure",Unallocated,N/A,Transport,503,Direct Transport Costs,5016,Revenue,00.NON INFLUENCIBLE
28-Apr-2017,7003359,232.50,DVLA,322925,"Environment, Housing & Leisure",Unallocated,N/A,Transport,503,Direct Transport Costs,5016,Revenue,00.NON INFLUENCIBLE
28-Apr-2017,7003359,232.50,DVLA,322925,"Environment, Housing & Leisure",Unallocated,N/A,Transport,503,Direct Transport Costs,5016,Revenue,00.NON INFLUENCIBLE
28-Apr-2017,7003359,232.50,DVLA,322925,"Environment, Housing & Leisure",Unallocated,N/A,Transport,503,Direct Transport Costs,5016,Revenue,00.NON INFLUENCIBLE
28-Apr-2017,7003359,232.50,DVLA,322925,"Environment, Housing & Leisure",Unallocated,N/A,Transport,503,Direct Transport Costs,5016,Revenue,00.NON INFLUENCIBLE
28-Apr-2017,7003359,232.50,DVLA,322925,"Environment, Housing & Leisure",Unallocated,N/A,Transport,503,Direct Transport Costs,5016,Revenue,00.NON INFLUENCIBLE
28-Apr-2017,7003359,202.50,DVLA,322925,"Environment, Housing & Leisure",Unallocated,N/A,Transport,503,Direct Transport Costs,5016,Revenue,00.NON INFLUENCIBLE
28-Apr-2017,7003359,232.50,DVLA,322925,"Environment, Housing & Leisure",Unallocated,N/A,Transport,503,Direct Transport Costs,5016,Revenue,00.NON INFLUENCIBLE
28-Apr-2017,7003360,14.20,SPORTS DIRECT,373833,"Health, Education, Care and Safeguarding",Children's & Education Services,103,Supplies and Services,504,"Clothing, Uniforms and Laundry",5025,Revenue,CLOTH ADULT
28-Apr-2017,7003361,169.80,PEROS LTD,374301,"Environment, Housing & Leisure",Adult Social Care,101,Supplies and Services,504,Equipment,5023,Revenue,03.GROCERIES & PROVISIONS
28-Apr-2017,7003361,69.71,PEROS LTD,374301,"Environment, Housing & Leisure",Adult Social Care,101,Supplies and Services,504,Equipment,5023,Revenue,03.GROCERIES & PROVISIONS
28-Apr-2017,7003362,51.80,JTF WHOLESALE,368725,"Health, Education, Care and Safeguarding",Children's & Education Services,103,Supplies and Services,504,Equipment,5023,Revenue,03.GROCERIES & PROVISIONS
28-Apr-2017,7003362,79.99,JTF WHOLESALE,368725,"Health, Education, Care and Safeguarding",Children's & Education Services,103,Supplies and Services,504,Equipment,5023,Revenue,03.GROCERIES & PROVISIONS
28-Apr-2017,7003362,17.88,JTF WHOLESALE,368725,"Health, Education, Care and Safeguarding",Children's & Education Services,103,Supplies and Services,504,Equipment,5023,Revenue,03.GROCERIES & PROVISIONS
28-Apr-2017,7003363,156.09,GM PACKAGING (UK) LTD,312623,Commissioning & Investment,Children's & Education Services,103,Supplies and Services,504,Equipment,5023,Revenue,03.DISPOSABLES
28-Apr-2017,7003363,63.63,GM PACKAGING (UK) LTD,312623,Commissioning & Investment,Children's & Education Services,103,Supplies and Services,504,Equipment,5023,Revenue,03.DISPOSABLES
28-Apr-2017,7003363,215.02,GM PACKAGING (UK) LTD,312623,Commissioning & Investment,Children's & Education Services,103,Supplies and Services,504,Equipment,5023,Revenue,03.DISPOSABLES
28-Apr-2017,7003363,41.20,GM PACKAGING (UK) LTD,312623,Commissioning & Investment,Children's & Education Services,103,Supplies and Services,504,Equipment,5023,Revenue,03.DISPOSABLES
28-Apr-2017,7003363,50.60,GM PACKAGING (UK) LTD,312623,Commissioning & Investment,Children's & Education Services,103,Supplies and Services,504,Equipment,5023,Revenue,03.DISPOSABLES
28-Apr-2017,7003363,-21.62,GM PACKAGING (UK) LTD,312623,Commissioning & Investment,Children's & Education Services,103,Supplies and Services,504,Equipment,5023,Revenue,03.DISPOSABLES
28-Apr-2017,7003363,35.52,GM PACKAGING (UK) LTD,312623,Commissioning & Investment,Children's & Education Services,103,Supplies and Services,504,Equipment,5023,Revenue,03.DISPOSABLES
28-Apr-2017,7003363,20.46,GM PACKAGING (UK) LTD,312623,Commissioning & Investment,Children's & Education Services,103,Supplies and Services,504,Equipment,5023,Revenue,03.DISPOSABLES
28-Apr-2017,7003363,71.04,GM PACKAGING (UK) LTD,312623,Commissioning & Investment,Children's & Education Services,103,Supplies and Services,504,Equipment,5023,Revenue,03.DISPOSABLES
28-Apr-2017,7003363,18.78,GM PACKAGING (UK) LTD,312623,Commissioning & Investment,Children's & Education Services,103,Supplies and Services,504,Equipment,5023,Revenue,03.DISPOSABLES
28-Apr-2017,7003363,57.85,GM PACKAGING (UK) LTD,312623,Commissioning & Investment,Children's & Education Services,103,Supplies and Services,504,Equipment,5023,Revenue,03.DISPOSABLES
28-Apr-2017,7003363,48.87,GM PACKAGING (UK) LTD,312623,Commissioning & Investment,Children's & Education Services,103,Supplies and Services,504,Equipment,5023,Revenue,03.DISPOSABLES
28-Apr-2017,7003363,215.02,GM PACKAGING (UK) LTD,312623,Commissioning & Investment,Children's & Education Services,103,Supplies and Services,504,Equipment,5023,Revenue,03.DISPOSABLES
28-Apr-2017,7003363,41.58,GM PACKAGING (UK) LTD,312623,Commissioning & Investment,Children's & Education Services,103,Supplies and Services,504,Equipment,5023,Revenue,03.DISPOSABLES
28-Apr-2017,7003363,169.47,GM PACKAGING (UK) LTD,312623,Commissioning & Investment,Children's & Education Services,103,Supplies and Services,504,Equipment,5023,Revenue,03.DISPOSABLES
28-Apr-2017,7003363,18.96,GM PACKAGING (UK) LTD,312623,Commissioning & Investment,Children's & Education Services,103,Supplies and Services,504,Equipment,5023,Revenue,03.DISPOSABLES
28-Apr-2017,7003363,7.95,GM PACKAGING (UK) LTD,312623,Commissioning & Investment,Children's & Education Services,103,Supplies and Services,504,Equipment,5023,Revenue,03.DISPOSABLES
28-Apr-2017,7003363,71.05,GM PACKAGING (UK) LTD,312623,Commissioning & Investment,Children's & Education Services,103,Supplies and Services,504,Equipment,5023,Revenue,03.DISPOSABLES
28-Apr-2017,7003363,-42.72,GM PACKAGING (UK) LTD,312623,Commissioning & Investment,Children's & Education Services,103,Supplies and Services,504,Equipment,5023,Revenue,03.DISPOSABLES
28-Apr-2017,7003363,158.62,GM PACKAGING (UK) LTD,312623,Commissioning & Investment,Children's & Education Services,103,Supplies and Services,504,Equipment,5023,Revenue,03.DISPOSABLES
28-Apr-2017,7003363,95.31,GM PACKAGING (UK) LTD,312623,Commissioning & Investment,Children's & Education Services,103,Supplies and Services,504,Equipment,5023,Revenue,03.DISPOSABLES
28-Apr-2017,7003363,73.23,GM PACKAGING (UK) LTD,312623,Commissioning & Investment,Children's & Education Services,103,Supplies and Services,504,Equipment,5023,Revenue,03.DISPOSABLES
28-Apr-2017,7003363,51.88,GM PACKAGING (UK) LTD,312623,"Environment, Housing & Leisure",Adult Social Care,101,Supplies and Services,504,Equipment,5023,Revenue,03.DISPOSABLES
28-Apr-2017,7003363,60.91,GM PACKAGING (UK) LTD,312623,Commissioning & Investment,Children's & Education Services,103,Supplies and Services,504,Equipment,5023,Revenue,03.DISPOSABLES
28-Apr-2017,7003363,25.96,GM PACKAGING (UK) LTD,312623,Commissioning & Investment,Children's & Education Services,103,Supplies and Services,504,Equipment,5023,Revenue,03.DISPOSABLES
28-Apr-2017,7003363,93.78,GM PACKAGING (UK) LTD,312623,Commissioning & Investment,Children's & Education Services,103,Supplies and Services,504,Equipment,5023,Revenue,03.DISPOSABLES
28-Apr-2017,7003363,192.03,GM PACKAGING (UK) LTD,312623,Commissioning & Investment,Children's & Education Services,103,Supplies and Services,504,Equipment,5023,Revenue,03.DISPOSABLES
28-Apr-2017,7003363,-0.01,GM PACKAGING (UK) LTD,312623,"Environment, Housing & Leisure",Adult Social Care,101,Supplies and Services,504,Equipment,5023,Revenue,03.DISPOSABLES
28-Apr-2017,7003363,57.60,GM PACKAGING (UK) LTD,312623,Commissioning & Investment,Children's & Education Services,103,Supplies and Services,504,Equipment,5023,Revenue,03.DISPOSABLES
28-Apr-2017,7003363,20.46,GM PACKAGING (UK) LTD,312623,Commissioning & Investment,Children's & Education Services,103,Supplies and Services,504,Equipment,5023,Revenue,03.DISPOSABLES
28-Apr-2017,7003363,61.88,GM PACKAGING (UK) LTD,312623,Commissioning & Investment,Children's & Education Services,103,Supplies and Services,504,Equipment,5023,Revenue,03.DISPOSABLES
28-Apr-2017,7003363,29.68,GM PACKAGING (UK) LTD,312623,Commissioning & Investment,Children's & Education Services,103,Supplies and Services,504,Equipment,5023,Revenue,03.DISPOSABLES
28-Apr-2017,7003363,-157.86,GM PACKAGING (UK) LTD,312623,"Environment, Housing & Leisure",Adult Social Care,101,Supplies and Services,504,Equipment,5023,Revenue,03.DISPOSABLES
28-Apr-2017,7003363,238.18,GM PACKAGING (UK) LTD,312623,Commissioning & Investment,Children's & Education Services,103,Supplies and Services,504,Equipment,5023,Revenue,03.DISPOSABLES
28-Apr-2017,7003363,18.30,GM PACKAGING (UK) LTD,312623,Commissioning & Investment,Children's & Education Services,103,Supplies and Services,504,Equipment,5023,Revenue,03.DISPOSABLES
28-Apr-2017,7003363,98.57,GM PACKAGING (UK) LTD,312623,Commissioning & Investment,Children's & Education Services,103,Supplies and Services,504,Equipment,5023,Revenue,03.DISPOSABLES
28-Apr-2017,7003363,12.97,GM PACKAGING (UK) LTD,312623,"Environment, Housing & Leisure",Cultural & Related Services,104,Supplies and Services,504,Equipment,5023,Revenue,03.DISPOSABLES
28-Apr-2017,7003363,32.10,GM PACKAGING (UK) LTD,312623,Commissioning & Investment,Children's & Education Services,103,Supplies and Services,504,Equipment,5023,Revenue,03.DISPOSABLES
28-Apr-2017,7003363,80.30,GM PACKAGING (UK) LTD,312623,Commissioning & Investment,Children's & Education Services,103,Supplies and Services,504,Equipment,5023,Revenue,03.DISPOSABLES
28-Apr-2017,7003363,93.87,GM PACKAGING (UK) LTD,312623,Commissioning & Investment,Children's & Education Services,103,Supplies and Services,504,Equipment,5023,Revenue,03.DISPOSABLES
28-Apr-2017,7003363,14.50,GM PACKAGING (UK) LTD,312623,Commissioning & Investment,Children's & Education Services,103,Supplies and Services,504,Equipment,5023,Revenue,03.DISPOSABLES
28-Apr-2017,7003363,111.44,GM PACKAGING (UK) LTD,312623,Commissioning & Investment,Children's & Education Services,103,Supplies and Services,504,Equipment,5023,Revenue,03.DISPOSABLES
28-Apr-2017,7003363,89.73,GM PACKAGING (UK) LTD,312623,Commissioning & Investment,Children's & Education Services,103,Supplies and Services,504,Equipment,5023,Revenue,03.DISPOSABLES
28-Apr-2017,7003363,30.22,GM PACKAGING (UK) LTD,312623,Commissioning & Investment,Children's & Education Services,103,Supplies and Services,504,Equipment,5023,Revenue,03.DISPOSABLES
28-Apr-2017,7003363,23.28,GM PACKAGING (UK) LTD,312623,Commissioning & Investment,Children's & Education Services,103,Supplies and Services,504,Equipment,5023,Revenue,03.DISPOSABLES
28-Apr-2017,7003363,126.99,GM PACKAGING (UK) LTD,312623,Commissioning & Investment,Children's & Education Services,103,Supplies and Services,504,Equipment,5023,Revenue,03.DISPOSABLES
28-Apr-2017,7003363,159.18,GM PACKAGING (UK) LTD,312623,Commissioning & Investment,Children's & Education Services,103,Supplies and Services,504,Equipment,5023,Revenue,03.DISPOSABLES
28-Apr-2017,7003363,51.82,GM PACKAGING (UK) LTD,312623,Commissioning & Investment,Children's & Education Services,103,Supplies and Services,504,Equipment,5023,Revenue,03.DISPOSABLES
28-Apr-2017,7003363,420.43,GM PACKAGING (UK) LTD,312623,Commissioning & Investment,Children's & Education Services,103,Supplies and Services,504,Equipment,5023,Revenue,03.DISPOSABLES
28-Apr-2017,7003363,89.04,GM PACKAGING (UK) LTD,312623,Commissioning & Investment,Children's & Education Services,103,Supplies and Services,504,Equipment,5023,Revenue,03.DISPOSABLES
28-Apr-2017,7003363,129.24,GM PACKAGING (UK) LTD,312623,Commissioning & Investment,Children's & Education Services,103,Supplies and Services,504,Equipment,5023,Revenue,03.DISPOSABLES
28-Apr-2017,7003363,0.01,GM PACKAGING (UK) LTD,312623,Commissioning & Investment,Children's & Education Services,103,Supplies and Services,504,Equipment,5023,Revenue,03.DISPOSABLES
28-Apr-2017,7003363,123.40,GM PACKAGING (UK) LTD,312623,Commissioning & Investment,Children's & Education Services,103,Supplies and Services,504,Equipment,5023,Revenue,03.DISPOSABLES
28-Apr-2017,7003363,26.49,GM PACKAGING (UK) LTD,312623,Commissioning & Investment,Children's & Education Services,103,Supplies and Services,504,Equipment,5023,Revenue,03.DISPOSABLES
28-Apr-2017,7003363,123.32,GM PACKAGING (UK) LTD,312623,Commissioning & Investment,Children's & Education Services,103,Supplies and Services,504,Equipment,5023,Revenue,03.DISPOSABLES
28-Apr-2017,7003363,58.51,GM PACKAGING (UK) LTD,312623,Commissioning & Investment,Children's & Education Services,103,Supplies and Services,504,Equipment,5023,Revenue,03.DISPOSABLES
28-Apr-2017,7003363,131.79,GM PACKAGING (UK) LTD,312623,Commissioning & Investment,Children's & Education Services,103,Supplies and Services,504,Equipment,5023,Revenue,03.DISPOSABLES
28-Apr-2017,7003363,70.00,GM PACKAGING (UK) LTD,312623,Commissioning & Investment,Children's & Education Services,103,Supplies and Services,504,Equipment,5023,Revenue,03.DISPOSABLES
28-Apr-2017,7003363,28.22,GM PACKAGING (UK) LTD,312623,Commissioning & Investment,Children's & Education Services,103,Supplies and Services,504,Equipment,5023,Revenue,03.DISPOSABLES
28-Apr-2017,7003363,59.80,GM PACKAGING (UK) LTD,312623,Commissioning & Investment,Children's & Education Services,103,Supplies and Services,504,Equipment,5023,Revenue,03.DISPOSABLES
28-Apr-2017,7003363,10.81,GM PACKAGING (UK) LTD,312623,Commissioning & Investment,Children's & Education Services,103,Supplies and Services,504,Equipment,5023,Revenue,03.DISPOSABLES
28-Apr-2017,7003363,4.05,GM PACKAGING (UK) LTD,312623,Commissioning & Investment,Children's & Education Services,103,Supplies and Services,504,Equipment,5023,Revenue,03.DISPOSABLES
28-Apr-2017,7003363,97.34,GM PACKAGING (UK) LTD,312623,Commissioning & Investment,Children's & Education Services,103,Supplies and Services,504,Equipment,5023,Revenue,03.DISPOSABLES
28-Apr-2017,7003363,233.86,GM PACKAGING (UK) LTD,312623,"Environment, Housing & Leisure",Adult Social Care,101,Supplies and Services,504,Equipment,5023,Revenue,03.DISPOSABLES
28-Apr-2017,7003363,137.82,GM PACKAGING (UK) LTD,312623,Commissioning & Investment,Children's & Education Services,103,Supplies and Services,504,Equipment,5023,Revenue,03.DISPOSABLES
28-Apr-2017,7003363,35.98,GM PACKAGING (UK) LTD,312623,Commissioning & Investment,Children's & Education Services,103,Supplies and Services,504,Equipment,5023,Revenue,03.DISPOSABLES
28-Apr-2017,7003363,-32.88,GM PACKAGING (UK) LTD,312623,Commissioning & Investment,Children's & Education Services,103,Supplies and Services,504,Equipment,5023,Revenue,03.DISPOSABLES
28-Apr-2017,7003363,95.11,GM PACKAGING (UK) LTD,312623,Commissioning & Investment,Children's & Education Services,103,Supplies and Services,504,Equipment,5023,Revenue,03.DISPOSABLES
28-Apr-2017,7003363,73.42,GM PACKAGING (UK) LTD,312623,"Environment, Housing & Leisure",Cultural & Related Services,104,Supplies and Services,504,Equipment,5023,Revenue,03.DISPOSABLES
28-Apr-2017,7003363,21.25,GM PACKAGING (UK) LTD,312623,Commissioning & Investment,Children's & Education Services,103,Supplies and Services,504,Equipment,5023,Revenue,03.DISPOSABLES
28-Apr-2017,7003363,48.68,GM PACKAGING (UK) LTD,312623,Commissioning & Investment,Children's & Education Services,103,Supplies and Services,504,Equipment,5023,Revenue,03.DISPOSABLES
28-Apr-2017,7003363,87.84,GM PACKAGING (UK) LTD,312623,Commissioning & Investment,Children's & Education Services,103,Supplies and Services,504,Equipment,5023,Revenue,03.DISPOSABLES
28-Apr-2017,7003363,0.01,GM PACKAGING (UK) LTD,312623,Commissioning & Investment,Children's & Education Services,103,Supplies and Services,504,Equipment,5023,Revenue,03.DISPOSABLES
28-Apr-2017,7003363,80.32,GM PACKAGING (UK) LTD,312623,Commissioning & Investment,Children's & Education Services,103,Supplies and Services,504,Equipment,5023,Revenue,03.DISPOSABLES
28-Apr-2017,7003363,91.62,GM PACKAGING (UK) LTD,312623,Commissioning & Investment,Children's & Education Services,103,Supplies and Services,504,Equipment,5023,Revenue,03.DISPOSABLES
28-Apr-2017,7003363,47.77,GM PACKAGING (UK) LTD,312623,Commissioning & Investment,Children's & Education Services,103,Supplies and Services,504,Equipment,5023,Revenue,03.DISPOSABLES
28-Apr-2017,7003364,14.67,WILKO RETAIL LIMITED,280813,Housing Revenue Account,Housing Revenue Account,N/A,Supplies and Services,504,Equipment,5023,Revenue,00.REDECORATION GRANTS
28-Apr-2017,7003364,11.70,WILKO RETAIL LIMITED,280813,Housing Revenue Account,Housing Revenue Account,N/A,Supplies and Services,504,Equipment,5023,Revenue,00.REDECORATION GRANTS
28-Apr-2017,7003364,45.83,WILKO RETAIL LIMITED,280813,Housing Revenue Account,Housing Revenue Account,N/A,Supplies and Services,504,Equipment,5023,Revenue,00.REDECORATION GRANTS
28-Apr-2017,7003364,12.42,WILKO RETAIL LIMITED,280813,Housing Revenue Account,Housing Revenue Account,N/A,Supplies and Services,504,Equipment,5023,Revenue,00.REDECORATION GRANTS
28-Apr-2017,7003364,25.42,WILKO RETAIL LIMITED,280813,Housing Revenue Account,Housing Revenue Account,N/A,Supplies and Services,504,Equipment,5023,Revenue,00.REDECORATION GRANTS
28-Apr-2017,7003365,1.49,FASTHOSTS INTERNET LIMITED,367002,"Health, Education, Care and Safeguarding",Children's & Education Services,103,Supplies and Services,504,Communications & Computing,5028,Revenue,15.SOFTWARE
28-Apr-2017,7003365,13.98,FASTHOSTS INTERNET LIMITED,367002,"Health, Education, Care and Safeguarding",Children's & Education Services,103,Supplies and Services,504,Communications & Computing,5028,Revenue,15.SOFTWARE
28-Apr-2017,7003365,1.49,FASTHOSTS INTERNET LIMITED,367002,"Health, Education, Care and Safeguarding",Children's & Education Services,103,Supplies and Services,504,Communications & Computing,5028,Revenue,15.SOFTWARE
28-Apr-2017,7003365,1.49,FASTHOSTS INTERNET LIMITED,367002,"Health, Education, Care and Safeguarding",Children's & Education Services,103,Supplies and Services,504,Communications & Computing,5028,Revenue,15.SOFTWARE
28-Apr-2017,7003365,1.99,FASTHOSTS INTERNET LIMITED,367002,"Health, Education, Care and Safeguarding",Children's & Education Services,103,Supplies and Services,504,Communications & Computing,5028,Revenue,15.SOFTWARE
28-Apr-2017,7003366,54.00,NORTH TYNESIDE COUNCIL,102767,"Health, Education, Care and Safeguarding",Children's & Education Services,103,Third Party Payments,505,Other Establishments,5041,Revenue,00.PUBLIC SECTOR
28-Apr-2017,7003366,22.00,NORTH TYNESIDE COUNCIL,102767,"Health, Education, Care and Safeguarding",Children's & Education Services,103,Third Party Payments,505,Other Establishments,5041,Revenue,00.PUBLIC SECTOR
28-Apr-2017,7003366,24.00,NORTH TYNESIDE COUNCIL,102767,"Health, Education, Care and Safeguarding",Children's & Education Services,103,Third Party Payments,505,Other Establishments,5041,Revenue,00.PUBLIC SECTOR
28-Apr-2017,7003366,20.00,NORTH TYNESIDE COUNCIL,102767,"Health, Education, Care and Safeguarding",Children's & Education Services,103,Third Party Payments,505,Other Establishments,5041,Revenue,00.PUBLIC SECTOR
28-Apr-2017,7003366,20.00,NORTH TYNESIDE COUNCIL,102767,Housing Revenue Account,Housing Revenue Account,N/A,Supplies and Services,504,Equipment,5023,Revenue,00.PUBLIC SECTOR
28-Apr-2017,7003366,10.00,NORTH TYNESIDE COUNCIL,102767,"Health, Education, Care and Safeguarding",Children's & Education Services,103,Third Party Payments,505,Other Establishments,5041,Revenue,00.PUBLIC SECTOR
28-Apr-2017,7003367,40.00,H M COURT SERVICES,379509,Housing Revenue Account,Housing Revenue Account,N/A,Supplies and Services,504,Expenses,5030,Revenue,00.NON INFLUENCIBLE
28-Apr-2017,7003367,60.00,H M COURT SERVICES,379509,Housing Revenue Account,Housing Revenue Account,N/A,Supplies and Services,504,Expenses,5030,Revenue,00.NON INFLUENCIBLE
28-Apr-2017,7003367,40.00,H M COURT SERVICES,379509,Housing Revenue Account,Housing Revenue Account,N/A,Supplies and Services,504,Expenses,5030,Revenue,00.NON INFLUENCIBLE
28-Apr-2017,7003367,20.00,H M COURT SERVICES,379509,Housing Revenue Account,Housing Revenue Account,N/A,Supplies and Services,504,Expenses,5030,Revenue,00.NON INFLUENCIBLE
28-Apr-2017,7003368,182.40,CAPITA GAS,381640,"Health, Education, Care and Safeguarding",Adult Social Care,101,Third Party Payments,505,Private Contractors,5042,Revenue,27.GAS
28-Apr-2017,7003369,83.33,FOXHUNTERS CARPET & BED WAREHOUSE LTD,314417,"Health, Education, Care and Safeguarding",Children's & Education Services,103,Supplies and Services,504,Equipment,5023,Revenue,10.HOUSEHOLD
28-Apr-2017,7003370,19.99,HALFORDS,347854,Commissioning & Investment,Children's & Education Services,103,Supplies and Services,504,Equipment,5023,Revenue,09.FINANCIAL SERVICES
28-Apr-2017,7003371,56.28,WM MORRISON SUPERMARKETS PLC,013562,"Health, Education, Care and Safeguarding",Children's & Education Services,103,Supplies and Services,504,Equipment,5023,Revenue,03.GROCERIES & PROVISIONS
28-Apr-2017,7003371,6.67,WM MORRISON SUPERMARKETS PLC,013562,"Health, Education, Care and Safeguarding",Children's & Education Services,103,Supplies and Services,504,Equipment,5023,Revenue,03.GROCERIES & PROVISIONS
28-Apr-2017,7003372,28.79,TESCO STORES LTD,336585,"Health, Education, Care and Safeguarding",Children's & Education Services,103,Supplies and Services,504,Equipment,5023,Revenue,03.GROCERIES & PROVISIONS
28-Apr-2017,7003372,10.00,TESCO STORES LTD,336585,"Health, Education, Care and Safeguarding",Children's & Education Services,103,Third Party Payments,505,Other Establishments,5041,Revenue,03.GROCERIES & PROVISIONS
28-Apr-2017,7003372,28.37,TESCO STORES LTD,336585,"Health, Education, Care and Safeguarding",Children's & Education Services,103,Supplies and Services,504,Equipment,5023,Revenue,03.GROCERIES & PROVISIONS
28-Apr-2017,7003372,21.97,TESCO STORES LTD,336585,"Health, Education, Care and Safeguarding",Children's & Education Services,103,Supplies and Services,504,Equipment,5023,Revenue,03.GROCERIES & PROVISIONS
28-Apr-2017,7003373,0.66,AF BLAKEMORE & SON LIMITED T/A LOWRIES CASH & CARRY,332872,Commissioning & Investment,Children's & Education Services,103,Supplies and Services,504,Equipment,5023,Revenue,03.GROCERIES & PROVISIONS
28-Apr-2017,7003373,17.12,AF BLAKEMORE & SON LIMITED T/A LOWRIES CASH & CARRY,332872,Commissioning & Investment,Children's & Education Services,103,Supplies and Services,504,Equipment,5023,Revenue,03.GROCERIES & PROVISIONS
28-Apr-2017,7003373,7.38,AF BLAKEMORE & SON LIMITED T/A LOWRIES CASH & CARRY,332872,Commissioning & Investment,Children's & Education Services,103,Supplies and Services,504,Equipment,5023,Revenue,03.GROCERIES & PROVISIONS
28-Apr-2017,7003373,14.82,AF BLAKEMORE & SON LIMITED T/A LOWRIES CASH & CARRY,332872,Commissioning & Investment,Children's & Education Services,103,Supplies and Services,504,Equipment,5023,Revenue,03.GROCERIES & PROVISIONS
28-Apr-2017,7003373,11.95,AF BLAKEMORE & SON LIMITED T/A LOWRIES CASH & CARRY,332872,Commissioning & Investment,Children's & Education Services,103,Supplies and Services,504,Equipment,5023,Revenue,03.GROCERIES & PROVISIONS
28-Apr-2017,7003373,69.84,AF BLAKEMORE & SON LIMITED T/A LOWRIES CASH & CARRY,332872,Commissioning & Investment,Children's & Education Services,103,Supplies and Services,504,Equipment,5023,Revenue,03.GROCERIES & PROVISIONS
28-Apr-2017,7003373,99.00,AF BLAKEMORE & SON LIMITED T/A LOWRIES CASH & CARRY,332872,Commissioning & Investment,Children's & Education Services,103,Supplies and Services,504,Equipment,5023,Revenue,03.GROCERIES & PROVISIONS
28-Apr-2017,7003373,9.35,AF BLAKEMORE & SON LIMITED T/A LOWRIES CASH & CARRY,332872,Commissioning & Investment,Children's & Education Services,103,Supplies and Services,504,Equipment,5023,Revenue,03.GROCERIES & PROVISIONS
28-Apr-2017,7003373,66.82,AF BLAKEMORE & SON LIMITED T/A LOWRIES CASH & CARRY,332872,Commissioning & Investment,Children's & Education Services,103,Supplies and Services,504,Equipment,5023,Revenue,03.GROCERIES & PROVISIONS
28-Apr-2017,7003373,10.52,AF BLAKEMORE & SON LIMITED T/A LOWRIES CASH & CARRY,332872,Commissioning & Investment,Children's & Education Services,103,Supplies and Services,504,Equipment,5023,Revenue,03.GROCERIES & PROVISIONS
28-Apr-2017,7003373,6.77,AF BLAKEMORE & SON LIMITED T/A LOWRIES CASH & CARRY,332872,Commissioning & Investment,Children's & Education Services,103,Supplies and Services,504,Equipment,5023,Revenue,03.GROCERIES & PROVISIONS
28-Apr-2017,7003373,6.35,AF BLAKEMORE & SON LIMITED T/A LOWRIES CASH & CARRY,332872,Commissioning & Investment,Children's & Education Services,103,Supplies and Services,504,Equipment,5023,Revenue,03.GROCERIES & PROVISIONS
28-Apr-2017,7003373,5.50,AF BLAKEMORE & SON LIMITED T/A LOWRIES CASH & CARRY,332872,Commissioning & Investment,Children's & Education Services,103,Supplies and Services,504,Equipment,5023,Revenue,03.GROCERIES & PROVISIONS
28-Apr-2017,7003373,0.90,AF BLAKEMORE & SON LIMITED T/A LOWRIES CASH & CARRY,332872,Commissioning & Investment,Children's & Education Services,103,Supplies and Services,504,Equipment,5023,Revenue,03.GROCERIES & PROVISIONS
28-Apr-2017,7003373,1.51,AF BLAKEMORE & SON LIMITED T/A LOWRIES CASH & CARRY,332872,Commissioning & Investment,Children's & Education Services,103,Supplies and Services,504,Equipment,5023,Revenue,03.GROCERIES & PROVISIONS
28-Apr-2017,7003373,8.56,AF BLAKEMORE & SON LIMITED T/A LOWRIES CASH & CARRY,332872,Commissioning & Investment,Children's & Education Services,103,Supplies and Services,504,Equipment,5023,Revenue,03.GROCERIES & PROVISIONS
28-Apr-2017,7003373,8.93,AF BLAKEMORE & SON LIMITED T/A LOWRIES CASH & CARRY,332872,Commissioning & Investment,Children's & Education Services,103,Supplies and Services,504,Equipment,5023,Revenue,03.GROCERIES & PROVISIONS
28-Apr-2017,7003373,22.50,AF BLAKEMORE & SON LIMITED T/A LOWRIES CASH & CARRY,332872,Commissioning & Investment,Children's & Education Services,103,Supplies and Services,504,Equipment,5023,Revenue,03.GROCERIES & PROVISIONS
28-Apr-2017,7003373,26.11,AF BLAKEMORE & SON LIMITED T/A LOWRIES CASH & CARRY,332872,Commissioning & Investment,Children's & Education Services,103,Supplies and Services,504,Equipment,5023,Revenue,03.GROCERIES & PROVISIONS
28-Apr-2017,7003373,5.16,AF BLAKEMORE & SON LIMITED T/A LOWRIES CASH & CARRY,332872,Commissioning & Investment,Children's & Education Services,103,Supplies and Services,504,Equipment,5023,Revenue,03.GROCERIES & PROVISIONS
28-Apr-2017,7003373,1.80,AF BLAKEMORE & SON LIMITED T/A LOWRIES CASH & CARRY,332872,Commissioning & Investment,Children's & Education Services,103,Supplies and Services,504,Equipment,5023,Revenue,03.GROCERIES & PROVISIONS
28-Apr-2017,7003373,7.43,AF BLAKEMORE & SON LIMITED T/A LOWRIES CASH & CARRY,332872,Commissioning & Investment,Children's & Education Services,103,Supplies and Services,504,Equipment,5023,Revenue,03.GROCERIES & PROVISIONS
28-Apr-2017,7003373,5.50,AF BLAKEMORE & SON LIMITED T/A LOWRIES CASH & CARRY,332872,Commissioning & Investment,Children's & Education Services,103,Supplies and Services,504,Equipment,5023,Revenue,03.GROCERIES & PROVISIONS
28-Apr-2017,7003373,13.11,AF BLAKEMORE & SON LIMITED T/A LOWRIES CASH & CARRY,332872,Commissioning & Investment,Children's & Education Services,103,Supplies and Services,504,Equipment,5023,Revenue,03.GROCERIES & PROVISIONS
28-Apr-2017,7003373,1.66,AF BLAKEMORE & SON LIMITED T/A LOWRIES CASH & CARRY,332872,Commissioning & Investment,Children's & Education Services,103,Supplies and Services,504,Equipment,5023,Revenue,03.GROCERIES & PROVISIONS
28-Apr-2017,7003373,73.29,AF BLAKEMORE & SON LIMITED T/A LOWRIES CASH & CARRY,332872,Commissioning & Investment,Children's & Education Services,103,Supplies and Services,504,Equipment,5023,Revenue,03.GROCERIES & PROVISIONS
28-Apr-2017,7003373,4.56,AF BLAKEMORE & SON LIMITED T/A LOWRIES CASH & CARRY,332872,Commissioning & Investment,Children's & Education Services,103,Supplies and Services,504,Equipment,5023,Revenue,03.GROCERIES & PROVISIONS
28-Apr-2017,7003373,4.33,AF BLAKEMORE & SON LIMITED T/A LOWRIES CASH & CARRY,332872,Commissioning & Investment,Children's & Education Services,103,Supplies and Services,504,Equipment,5023,Revenue,03.GROCERIES & PROVISIONS
28-Apr-2017,7003373,2.23,AF BLAKEMORE & SON LIMITED T/A LOWRIES CASH & CARRY,332872,Commissioning & Investment,Children's & Education Services,103,Supplies and Services,504,Equipment,5023,Revenue,03.GROCERIES & PROVISIONS
28-Apr-2017,7003373,22.78,AF BLAKEMORE & SON LIMITED T/A LOWRIES CASH & CARRY,332872,Commissioning & Investment,Children's & Education Services,103,Supplies and Services,504,Equipment,5023,Revenue,03.GROCERIES & PROVISIONS
28-Apr-2017,7003373,8.16,AF BLAKEMORE & SON LIMITED T/A LOWRIES CASH & CARRY,332872,Commissioning & Investment,Children's & Education Services,103,Supplies and Services,504,Equipment,5023,Revenue,03.GROCERIES & PROVISIONS
28-Apr-2017,7003373,5.89,AF BLAKEMORE & SON LIMITED T/A LOWRIES CASH & CARRY,332872,Commissioning & Investment,Children's & Education Services,103,Supplies and Services,504,Equipment,5023,Revenue,03.GROCERIES & PROVISIONS
28-Apr-2017,7003373,21.80,AF BLAKEMORE & SON LIMITED T/A LOWRIES CASH & CARRY,332872,Commissioning & Investment,Children's & Education Services,103,Supplies and Services,504,Equipment,5023,Revenue,03.GROCERIES & PROVISIONS
28-Apr-2017,7003373,3.03,AF BLAKEMORE & SON LIMITED T/A LOWRIES CASH & CARRY,332872,Commissioning & Investment,Children's & Education Services,103,Supplies and Services,504,Equipment,5023,Revenue,03.GROCERIES & PROVISIONS
28-Apr-2017,7003373,2.48,AF BLAKEMORE & SON LIMITED T/A LOWRIES CASH & CARRY,332872,Commissioning & Investment,Children's & Education Services,103,Supplies and Services,504,Equipment,5023,Revenue,03.GROCERIES & PROVISIONS
28-Apr-2017,7003373,52.44,AF BLAKEMORE & SON LIMITED T/A LOWRIES CASH & CARRY,332872,Commissioning & Investment,Children's & Education Services,103,Supplies and Services,504,Equipment,5023,Revenue,03.GROCERIES & PROVISIONS
28-Apr-2017,7003373,5.20,AF BLAKEMORE & SON LIMITED T/A LOWRIES CASH & CARRY,332872,"Health, Education, Care and Safeguarding",Children's & Education Services,103,Supplies and Services,504,Equipment,5023,Revenue,03.GROCERIES & PROVISIONS
28-Apr-2017,7003373,54.90,AF BLAKEMORE & SON LIMITED T/A LOWRIES CASH & CARRY,332872,Commissioning & Investment,Children's & Education Services,103,Supplies and Services,504,Equipment,5023,Revenue,03.GROCERIES & PROVISIONS
28-Apr-2017,7003373,3.77,AF BLAKEMORE & SON LIMITED T/A LOWRIES CASH & CARRY,332872,Commissioning & Investment,Children's & Education Services,103,Supplies and Services,504,Equipment,5023,Revenue,03.GROCERIES & PROVISIONS
28-Apr-2017,7003373,5.16,AF BLAKEMORE & SON LIMITED T/A LOWRIES CASH & CARRY,332872,Commissioning & Investment,Children's & Education Services,103,Supplies and Services,504,Equipment,5023,Revenue,03.GROCERIES & PROVISIONS
28-Apr-2017,7003373,3.74,AF BLAKEMORE & SON LIMITED T/A LOWRIES CASH & CARRY,332872,Commissioning & Investment,Children's & Education Services,103,Supplies and Services,504,Equipment,5023,Revenue,03.GROCERIES & PROVISIONS
28-Apr-2017,7003373,8.00,AF BLAKEMORE & SON LIMITED T/A LOWRIES CASH & CARRY,332872,Commissioning & Investment,Children's & Education Services,103,Supplies and Services,504,Equipment,5023,Revenue,03.GROCERIES & PROVISIONS
28-Apr-2017,7003373,12.04,AF BLAKEMORE & SON LIMITED T/A LOWRIES CASH & CARRY,332872,Commissioning & Investment,Children's & Education Services,103,Supplies and Services,504,Equipment,5023,Revenue,03.GROCERIES & PROVISIONS
28-Apr-2017,7003373,2.46,AF BLAKEMORE & SON LIMITED T/A LOWRIES CASH & CARRY,332872,Commissioning & Investment,Children's & Education Services,103,Supplies and Services,504,Equipment,5023,Revenue,03.GROCERIES & PROVISIONS
28-Apr-2017,7003373,6.55,AF BLAKEMORE & SON LIMITED T/A LOWRIES CASH & CARRY,332872,Commissioning & Investment,Children's & Education Services,103,Supplies and Services,504,Equipment,5023,Revenue,03.GROCERIES & PROVISIONS
28-Apr-2017,7003373,2.62,AF BLAKEMORE & SON LIMITED T/A LOWRIES CASH & CARRY,332872,Commissioning & Investment,Children's & Education Services,103,Supplies and Services,504,Equipment,5023,Revenue,03.GROCERIES & PROVISIONS
28-Apr-2017,7003373,5.50,AF BLAKEMORE & SON LIMITED T/A LOWRIES CASH & CARRY,332872,Commissioning & Investment,Children's & Education Services,103,Supplies and Services,504,Equipment,5023,Revenue,03.GROCERIES & PROVISIONS
28-Apr-2017,7003373,8.44,AF BLAKEMORE & SON LIMITED T/A LOWRIES CASH & CARRY,332872,Commissioning & Investment,Children's & Education Services,103,Supplies and Services,504,Equipment,5023,Revenue,03.GROCERIES & PROVISIONS
28-Apr-2017,7003373,3.02,AF BLAKEMORE & SON LIMITED T/A LOWRIES CASH & CARRY,332872,Commissioning & Investment,Children's & Education Services,103,Supplies and Services,504,Equipment,5023,Revenue,03.GROCERIES & PROVISIONS
28-Apr-2017,7003373,7.20,AF BLAKEMORE & SON LIMITED T/A LOWRIES CASH & CARRY,332872,Commissioning & Investment,Children's & Education Services,103,Supplies and Services,504,Equipment,5023,Revenue,03.GROCERIES & PROVISIONS
28-Apr-2017,7003373,-11.78,AF BLAKEMORE & SON LIMITED T/A LOWRIES CASH & CARRY,332872,Commissioning & Investment,Children's & Education Services,103,Supplies and Services,504,Equipment,5023,Revenue,03.GROCERIES & PROVISIONS
28-Apr-2017,7003373,10.50,AF BLAKEMORE & SON LIMITED T/A LOWRIES CASH & CARRY,332872,Commissioning & Investment,Children's & Education Services,103,Supplies and Services,504,Equipment,5023,Revenue,03.GROCERIES & PROVISIONS
28-Apr-2017,7003373,3.69,AF BLAKEMORE & SON LIMITED T/A LOWRIES CASH & CARRY,332872,Commissioning & Investment,Children's & Education Services,103,Supplies and Services,504,Equipment,5023,Revenue,03.GROCERIES & PROVISIONS
28-Apr-2017,7003373,114.24,AF BLAKEMORE & SON LIMITED T/A LOWRIES CASH & CARRY,332872,Commissioning & Investment,Children's & Education Services,103,Supplies and Services,504,Equipment,5023,Revenue,03.GROCERIES & PROVISIONS
28-Apr-2017,7003373,10.35,AF BLAKEMORE & SON LIMITED T/A LOWRIES CASH & CARRY,332872,Commissioning & Investment,Children's & Education Services,103,Supplies and Services,504,Equipment,5023,Revenue,03.GROCERIES & PROVISIONS
28-Apr-2017,7003373,15.74,AF BLAKEMORE & SON LIMITED T/A LOWRIES CASH & CARRY,332872,Commissioning & Investment,Children's & Education Services,103,Supplies and Services,504,Equipment,5023,Revenue,03.GROCERIES & PROVISIONS
28-Apr-2017,7003373,2.23,AF BLAKEMORE & SON LIMITED T/A LOWRIES CASH & CARRY,332872,Commissioning & Investment,Children's & Education Services,103,Supplies and Services,504,Equipment,5023,Revenue,03.GROCERIES & PROVISIONS
28-Apr-2017,7003373,5.90,AF BLAKEMORE & SON LIMITED T/A LOWRIES CASH & CARRY,332872,Commissioning & Investment,Children's & Education Services,103,Supplies and Services,504,Equipment,5023,Revenue,03.GROCERIES & PROVISIONS
28-Apr-2017,7003373,13.11,AF BLAKEMORE & SON LIMITED T/A LOWRIES CASH & CARRY,332872,Commissioning & Investment,Children's & Education Services,103,Supplies and Services,504,Equipment,5023,Revenue,03.GROCERIES & PROVISIONS
28-Apr-2017,7003373,33.60,AF BLAKEMORE & SON LIMITED T/A LOWRIES CASH & CARRY,332872,Commissioning & Investment,Children's & Education Services,103,Supplies and Services,504,Equipment,5023,Revenue,03.GROCERIES & PROVISIONS
28-Apr-2017,7003373,7.94,AF BLAKEMORE & SON LIMITED T/A LOWRIES CASH & CARRY,332872,Commissioning & Investment,Children's & Education Services,103,Supplies and Services,504,Equipment,5023,Revenue,03.GROCERIES & PROVISIONS
28-Apr-2017,7003373,8.12,AF BLAKEMORE & SON LIMITED T/A LOWRIES CASH & CARRY,332872,Commissioning & Investment,Children's & Education Services,103,Supplies and Services,504,Equipment,5023,Revenue,03.GROCERIES & PROVISIONS
28-Apr-2017,7003373,3.42,AF BLAKEMORE & SON LIMITED T/A LOWRIES CASH & CARRY,332872,Commissioning & Investment,Children's & Education Services,103,Supplies and Services,504,Equipment,5023,Revenue,03.GROCERIES & PROVISIONS
28-Apr-2017,7003373,15.81,AF BLAKEMORE & SON LIMITED T/A LOWRIES CASH & CARRY,332872,"Environment, Housing & Leisure",Cultural & Related Services,104,Supplies and Services,504,Equipment,5023,Revenue,03.GROCERIES & PROVISIONS
28-Apr-2017,7003373,21.08,AF BLAKEMORE & SON LIMITED T/A LOWRIES CASH & CARRY,332872,"Environment, Housing & Leisure",Cultural & Related Services,104,Supplies and Services,504,Equipment,5023,Revenue,03.GROCERIES & PROVISIONS
28-Apr-2017,7003373,11.80,AF BLAKEMORE & SON LIMITED T/A LOWRIES CASH & CARRY,332872,Commissioning & Investment,Children's & Education Services,103,Supplies and Services,504,Equipment,5023,Revenue,03.GROCERIES & PROVISIONS
28-Apr-2017,7003373,3.59,AF BLAKEMORE & SON LIMITED T/A LOWRIES CASH & CARRY,332872,Commissioning & Investment,Children's & Education Services,103,Supplies and Services,504,Equipment,5023,Revenue,03.GROCERIES & PROVISIONS
28-Apr-2017,7003373,24.60,AF BLAKEMORE & SON LIMITED T/A LOWRIES CASH & CARRY,332872,Commissioning & Investment,Children's & Education Services,103,Supplies and Services,504,Equipment,5023,Revenue,03.GROCERIES & PROVISIONS
28-Apr-2017,7003373,3.40,AF BLAKEMORE & SON LIMITED T/A LOWRIES CASH & CARRY,332872,Commissioning & Investment,Children's & Education Services,103,Supplies and Services,504,Equipment,5023,Revenue,03.GROCERIES & PROVISIONS
28-Apr-2017,7003373,31.48,AF BLAKEMORE & SON LIMITED T/A LOWRIES CASH & CARRY,332872,Commissioning & Investment,Children's & Education Services,103,Supplies and Services,504,Equipment,5023,Revenue,03.GROCERIES & PROVISIONS
28-Apr-2017,7003373,3.20,AF BLAKEMORE & SON LIMITED T/A LOWRIES CASH & CARRY,332872,Commissioning & Investment,Children's & Education Services,103,Supplies and Services,504,Equipment,5023,Revenue,03.GROCERIES & PROVISIONS
28-Apr-2017,7003373,4.78,AF BLAKEMORE & SON LIMITED T/A LOWRIES CASH & CARRY,332872,Commissioning & Investment,Children's & Education Services,103,Supplies and Services,504,Equipment,5023,Revenue,03.GROCERIES & PROVISIONS
28-Apr-2017,7003373,7.43,AF BLAKEMORE & SON LIMITED T/A LOWRIES CASH & CARRY,332872,Commissioning & Investment,Children's & Education Services,103,Supplies and Services,504,Equipment,5023,Revenue,03.GROCERIES & PROVISIONS
28-Apr-2017,7003373,6.95,AF BLAKEMORE & SON LIMITED T/A LOWRIES CASH & CARRY,332872,Commissioning & Investment,Children's & Education Services,103,Supplies and Services,504,Equipment,5023,Revenue,03.GROCERIES & PROVISIONS
28-Apr-2017,7003373,17.50,AF BLAKEMORE & SON LIMITED T/A LOWRIES CASH & CARRY,332872,Commissioning & Investment,Children's & Education Services,103,Supplies and Services,504,Equipment,5023,Revenue,03.GROCERIES & PROVISIONS
28-Apr-2017,7003373,6.95,AF BLAKEMORE & SON LIMITED T/A LOWRIES CASH & CARRY,332872,Commissioning & Investment,Children's & Education Services,103,Supplies and Services,504,Equipment,5023,Revenue,03.GROCERIES & PROVISIONS
28-Apr-2017,7003373,8.37,AF BLAKEMORE & SON LIMITED T/A LOWRIES CASH & CARRY,332872,Commissioning & Investment,Children's & Education Services,103,Supplies and Services,504,Equipment,5023,Revenue,03.GROCERIES & PROVISIONS
28-Apr-2017,7003373,7.44,AF BLAKEMORE & SON LIMITED T/A LOWRIES CASH & CARRY,332872,Commissioning & Investment,Children's & Education Services,103,Supplies and Services,504,Equipment,5023,Revenue,03.GROCERIES & PROVISIONS
28-Apr-2017,7003373,7.00,AF BLAKEMORE & SON LIMITED T/A LOWRIES CASH & CARRY,332872,Commissioning & Investment,Children's & Education Services,103,Supplies and Services,504,Equipment,5023,Revenue,03.GROCERIES & PROVISIONS
28-Apr-2017,7003373,9.00,AF BLAKEMORE & SON LIMITED T/A LOWRIES CASH & CARRY,332872,Commissioning & Investment,Children's & Education Services,103,Supplies and Services,504,Equipment,5023,Revenue,03.GROCERIES & PROVISIONS
28-Apr-2017,7003373,7.08,AF BLAKEMORE & SON LIMITED T/A LOWRIES CASH & CARRY,332872,Commissioning & Investment,Children's & Education Services,103,Supplies and Services,504,Equipment,5023,Revenue,03.GROCERIES & PROVISIONS
28-Apr-2017,7003373,2.23,AF BLAKEMORE & SON LIMITED T/A LOWRIES CASH & CARRY,332872,Commissioning & Investment,Children's & Education Services,103,Supplies and Services,504,Equipment,5023,Revenue,03.GROCERIES & PROVISIONS
28-Apr-2017,7003373,19.35,AF BLAKEMORE & SON LIMITED T/A LOWRIES CASH & CARRY,332872,Commissioning & Investment,Children's & Education Services,103,Supplies and Services,504,Equipment,5023,Revenue,03.GROCERIES & PROVISIONS
28-Apr-2017,7003373,6.32,AF BLAKEMORE & SON LIMITED T/A LOWRIES CASH & CARRY,332872,Commissioning & Investment,Children's & Education Services,103,Supplies and Services,504,Equipment,5023,Revenue,03.GROCERIES & PROVISIONS
28-Apr-2017,7003373,2.63,AF BLAKEMORE & SON LIMITED T/A LOWRIES CASH & CARRY,332872,Commissioning & Investment,Children's & Education Services,103,Supplies and Services,504,Equipment,5023,Revenue,03.GROCERIES & PROVISIONS
28-Apr-2017,7003373,2.96,AF BLAKEMORE & SON LIMITED T/A LOWRIES CASH & CARRY,332872,Commissioning & Investment,Children's & Education Services,103,Supplies and Services,504,Equipment,5023,Revenue,03.GROCERIES & PROVISIONS
28-Apr-2017,7003373,9.84,AF BLAKEMORE & SON LIMITED T/A LOWRIES CASH & CARRY,332872,Commissioning & Investment,Children's & Education Services,103,Supplies and Services,504,Equipment,5023,Revenue,03.GROCERIES & PROVISIONS
28-Apr-2017,7003373,9.36,AF BLAKEMORE & SON LIMITED T/A LOWRIES CASH & CARRY,332872,Commissioning & Investment,Children's & Education Services,103,Supplies and Services,504,Equipment,5023,Revenue,03.GROCERIES & PROVISIONS
28-Apr-2017,7003373,27.12,AF BLAKEMORE & SON LIMITED T/A LOWRIES CASH & CARRY,332872,Commissioning & Investment,Children's & Education Services,103,Supplies and Services,504,Equipment,5023,Revenue,03.GROCERIES & PROVISIONS
28-Apr-2017,7003373,2.94,AF BLAKEMORE & SON LIMITED T/A LOWRIES CASH & CARRY,332872,Commissioning & Investment,Children's & Education Services,103,Supplies and Services,504,Equipment,5023,Revenue,03.GROCERIES & PROVISIONS
28-Apr-2017,7003373,0.76,AF BLAKEMORE & SON LIMITED T/A LOWRIES CASH & CARRY,332872,Commissioning & Investment,Children's & Education Services,103,Supplies and Services,504,Equipment,5023,Revenue,03.GROCERIES & PROVISIONS
28-Apr-2017,7003373,23.54,AF BLAKEMORE & SON LIMITED T/A LOWRIES CASH & CARRY,332872,Commissioning & Investment,Children's & Education Services,103,Supplies and Services,504,Equipment,5023,Revenue,03.GROCERIES & PROVISIONS
28-Apr-2017,7003373,6.02,AF BLAKEMORE & SON LIMITED T/A LOWRIES CASH & CARRY,332872,Commissioning & Investment,Children's & Education Services,103,Supplies and Services,504,Equipment,5023,Revenue,03.GROCERIES & PROVISIONS
28-Apr-2017,7003373,7.14,AF BLAKEMORE & SON LIMITED T/A LOWRIES CASH & CARRY,332872,Commissioning & Investment,Children's & Education Services,103,Supplies and Services,504,Equipment,5023,Revenue,03.GROCERIES & PROVISIONS
28-Apr-2017,7003373,13.20,AF BLAKEMORE & SON LIMITED T/A LOWRIES CASH & CARRY,332872,Commissioning & Investment,Children's & Education Services,103,Supplies and Services,504,Equipment,5023,Revenue,03.GROCERIES & PROVISIONS
28-Apr-2017,7003373,8.40,AF BLAKEMORE & SON LIMITED T/A LOWRIES CASH & CARRY,332872,Commissioning & Investment,Children's & Education Services,103,Supplies and Services,504,Equipment,5023,Revenue,03.GROCERIES & PROVISIONS
28-Apr-2017,7003373,35.34,AF BLAKEMORE & SON LIMITED T/A LOWRIES CASH & CARRY,332872,Commissioning & Investment,Children's & Education Services,103,Supplies and Services,504,Equipment,5023,Revenue,03.GROCERIES & PROVISIONS
28-Apr-2017,7003373,4.96,AF BLAKEMORE & SON LIMITED T/A LOWRIES CASH & CARRY,332872,Commissioning & Investment,Children's & Education Services,103,Supplies and Services,504,Equipment,5023,Revenue,03.GROCERIES & PROVISIONS
28-Apr-2017,7003373,2.30,AF BLAKEMORE & SON LIMITED T/A LOWRIES CASH & CARRY,332872,Commissioning & Investment,Children's & Education Services,103,Supplies and Services,504,Equipment,5023,Revenue,03.GROCERIES & PROVISIONS
28-Apr-2017,7003373,9.56,AF BLAKEMORE & SON LIMITED T/A LOWRIES CASH & CARRY,332872,Commissioning & Investment,Children's & Education Services,103,Supplies and Services,504,Equipment,5023,Revenue,03.GROCERIES & PROVISIONS
28-Apr-2017,7003373,1.98,AF BLAKEMORE & SON LIMITED T/A LOWRIES CASH & CARRY,332872,Commissioning & Investment,Children's & Education Services,103,Supplies and Services,504,Equipment,5023,Revenue,03.GROCERIES & PROVISIONS
28-Apr-2017,7003373,14.24,AF BLAKEMORE & SON LIMITED T/A LOWRIES CASH & CARRY,332872,"Environment, Housing & Leisure",Adult Social Care,101,Supplies and Services,504,Equipment,5023,Revenue,03.GROCERIES & PROVISIONS
28-Apr-2017,7003373,42.87,AF BLAKEMORE & SON LIMITED T/A LOWRIES CASH & CARRY,332872,"Environment, Housing & Leisure",Adult Social Care,101,Supplies and Services,504,Equipment,5023,Revenue,03.GROCERIES & PROVISIONS
28-Apr-2017,7003373,-6.39,AF BLAKEMORE & SON LIMITED T/A LOWRIES CASH & CARRY,332872,Commissioning & Investment,Children's & Education Services,103,Supplies and Services,504,Equipment,5023,Revenue,03.GROCERIES & PROVISIONS
28-Apr-2017,7003373,21.40,AF BLAKEMORE & SON LIMITED T/A LOWRIES CASH & CARRY,332872,Commissioning & Investment,Children's & Education Services,103,Supplies and Services,504,Equipment,5023,Revenue,03.GROCERIES & PROVISIONS
28-Apr-2017,7003373,8.42,AF BLAKEMORE & SON LIMITED T/A LOWRIES CASH & CARRY,332872,Commissioning & Investment,Children's & Education Services,103,Supplies and Services,504,Equipment,5023,Revenue,03.GROCERIES & PROVISIONS
28-Apr-2017,7003373,5.04,AF BLAKEMORE & SON LIMITED T/A LOWRIES CASH & CARRY,332872,Commissioning & Investment,Children's & Education Services,103,Supplies and Services,504,Equipment,5023,Revenue,03.GROCERIES & PROVISIONS
28-Apr-2017,7003373,6.72,AF BLAKEMORE & SON LIMITED T/A LOWRIES CASH & CARRY,332872,Commissioning & Investment,Children's & Education Services,103,Supplies and Services,504,Equipment,5023,Revenue,03.GROCERIES & PROVISIONS
28-Apr-2017,7003373,24.92,AF BLAKEMORE & SON LIMITED T/A LOWRIES CASH & CARRY,332872,Commissioning & Investment,Children's & Education Services,103,Supplies and Services,504,Equipment,5023,Revenue,03.GROCERIES & PROVISIONS
28-Apr-2017,7003373,4.56,AF BLAKEMORE & SON LIMITED T/A LOWRIES CASH & CARRY,332872,Commissioning & Investment,Children's & Education Services,103,Supplies and Services,504,Equipment,5023,Revenue,03.GROCERIES & PROVISIONS
28-Apr-2017,7003373,6.55,AF BLAKEMORE & SON LIMITED T/A LOWRIES CASH & CARRY,332872,Commissioning & Investment,Children's & Education Services,103,Supplies and Services,504,Equipment,5023,Revenue,03.GROCERIES & PROVISIONS
28-Apr-2017,7003373,-5.80,AF BLAKEMORE & SON LIMITED T/A LOWRIES CASH & CARRY,332872,Commissioning & Investment,Children's & Education Services,103,Supplies and Services,504,Equipment,5023,Revenue,03.GROCERIES & PROVISIONS
28-Apr-2017,7003373,4.33,AF BLAKEMORE & SON LIMITED T/A LOWRIES CASH & CARRY,332872,Commissioning & Investment,Children's & Education Services,103,Supplies and Services,504,Equipment,5023,Revenue,03.GROCERIES & PROVISIONS
28-Apr-2017,7003373,1.52,AF BLAKEMORE & SON LIMITED T/A LOWRIES CASH & CARRY,332872,Commissioning & Investment,Children's & Education Services,103,Supplies and Services,504,Equipment,5023,Revenue,03.GROCERIES & PROVISIONS
28-Apr-2017,7003373,12.04,AF BLAKEMORE & SON LIMITED T/A LOWRIES CASH & CARRY,332872,Commissioning & Investment,Children's & Education Services,103,Supplies and Services,504,Equipment,5023,Revenue,03.GROCERIES & PROVISIONS
28-Apr-2017,7003373,8.82,AF BLAKEMORE & SON LIMITED T/A LOWRIES CASH & CARRY,332872,Commissioning & Investment,Children's & Education Services,103,Supplies and Services,504,Equipment,5023,Revenue,03.GROCERIES & PROVISIONS
28-Apr-2017,7003373,6.02,AF BLAKEMORE & SON LIMITED T/A LOWRIES CASH & CARRY,332872,Commissioning & Investment,Children's & Education Services,103,Supplies and Services,504,Equipment,5023,Revenue,03.GROCERIES & PROVISIONS
28-Apr-2017,7003373,7.74,AF BLAKEMORE & SON LIMITED T/A LOWRIES CASH & CARRY,332872,Commissioning & Investment,Children's & Education Services,103,Supplies and Services,504,Equipment,5023,Revenue,03.GROCERIES & PROVISIONS
28-Apr-2017,7003373,14.00,AF BLAKEMORE & SON LIMITED T/A LOWRIES CASH & CARRY,332872,Commissioning & Investment,Children's & Education Services,103,Supplies and Services,504,Equipment,5023,Revenue,03.GROCERIES & PROVISIONS
28-Apr-2017,7003373,5.50,AF BLAKEMORE & SON LIMITED T/A LOWRIES CASH & CARRY,332872,Commissioning & Investment,Children's & Education Services,103,Supplies and Services,504,Equipment,5023,Revenue,03.GROCERIES & PROVISIONS
28-Apr-2017,7003373,2.70,AF BLAKEMORE & SON LIMITED T/A LOWRIES CASH & CARRY,332872,Commissioning & Investment,Children's & Education Services,103,Supplies and Services,504,Equipment,5023,Revenue,03.GROCERIES & PROVISIONS
28-Apr-2017,7003373,6.77,AF BLAKEMORE & SON LIMITED T/A LOWRIES CASH & CARRY,332872,Commissioning & Investment,Children's & Education Services,103,Supplies and Services,504,Equipment,5023,Revenue,03.GROCERIES & PROVISIONS
28-Apr-2017,7003373,24.64,AF BLAKEMORE & SON LIMITED T/A LOWRIES CASH & CARRY,332872,Commissioning & Investment,Children's & Education Services,103,Supplies and Services,504,Equipment,5023,Revenue,03.GROCERIES & PROVISIONS
28-Apr-2017,7003373,1.56,AF BLAKEMORE & SON LIMITED T/A LOWRIES CASH & CARRY,332872,Commissioning & Investment,Children's & Education Services,103,Supplies and Services,504,Equipment,5023,Revenue,03.GROCERIES & PROVISIONS
28-Apr-2017,7003373,6.77,AF BLAKEMORE & SON LIMITED T/A LOWRIES CASH & CARRY,332872,Commissioning & Investment,Children's & Education Services,103,Supplies and Services,504,Equipment,5023,Revenue,03.GROCERIES & PROVISIONS
28-Apr-2017,7003373,8.42,AF BLAKEMORE & SON LIMITED T/A LOWRIES CASH & CARRY,332872,"Environment, Housing & Leisure",Cultural & Related Services,104,Supplies and Services,504,Equipment,5023,Revenue,03.GROCERIES & PROVISIONS
28-Apr-2017,7003373,13.13,AF BLAKEMORE & SON LIMITED T/A LOWRIES CASH & CARRY,332872,"Environment, Housing & Leisure",Cultural & Related Services,104,Supplies and Services,504,Equipment,5023,Revenue,03.GROCERIES & PROVISIONS
28-Apr-2017,7003373,14.86,AF BLAKEMORE & SON LIMITED T/A LOWRIES CASH & CARRY,332872,Commissioning & Investment,Children's & Education Services,103,Supplies and Services,504,Equipment,5023,Revenue,03.GROCERIES & PROVISIONS
28-Apr-2017,7003373,13.11,AF BLAKEMORE & SON LIMITED T/A LOWRIES CASH & CARRY,332872,Commissioning & Investment,Children's & Education Services,103,Supplies and Services,504,Equipment,5023,Revenue,03.GROCERIES & PROVISIONS
28-Apr-2017,7003373,8.56,AF BLAKEMORE & SON LIMITED T/A LOWRIES CASH & CARRY,332872,Commissioning & Investment,Children's & Education Services,103,Supplies and Services,504,Equipment,5023,Revenue,03.GROCERIES & PROVISIONS
28-Apr-2017,7003373,5.88,AF BLAKEMORE & SON LIMITED T/A LOWRIES CASH & CARRY,332872,Commissioning & Investment,Children's & Education Services,103,Supplies and Services,504,Equipment,5023,Revenue,03.GROCERIES & PROVISIONS
28-Apr-2017,7003373,35.72,AF BLAKEMORE & SON LIMITED T/A LOWRIES CASH & CARRY,332872,Commissioning & Investment,Children's & Education Services,103,Supplies and Services,504,Equipment,5023,Revenue,03.GROCERIES & PROVISIONS
28-Apr-2017,7003373,1.48,AF BLAKEMORE & SON LIMITED T/A LOWRIES CASH & CARRY,332872,Commissioning & Investment,Children's & Education Services,103,Supplies and Services,504,Equipment,5023,Revenue,03.GROCERIES & PROVISIONS
28-Apr-2017,7003373,39.60,AF BLAKEMORE & SON LIMITED T/A LOWRIES CASH & CARRY,332872,Commissioning & Investment,Children's & Education Services,103,Supplies and Services,504,Equipment,5023,Revenue,03.GROCERIES & PROVISIONS
28-Apr-2017,7003373,4.41,AF BLAKEMORE & SON LIMITED T/A LOWRIES CASH & CARRY,332872,Commissioning & Investment,Children's & Education Services,103,Supplies and Services,504,Equipment,5023,Revenue,03.GROCERIES & PROVISIONS
28-Apr-2017,7003373,28.05,AF BLAKEMORE & SON LIMITED T/A LOWRIES CASH & CARRY,332872,Commissioning & Investment,Children's & Education Services,103,Supplies and Services,504,Equipment,5023,Revenue,03.GROCERIES & PROVISIONS
28-Apr-2017,7003373,18.59,AF BLAKEMORE & SON LIMITED T/A LOWRIES CASH & CARRY,332872,Commissioning & Investment,Children's & Education Services,103,Supplies and Services,504,Equipment,5023,Revenue,03.GROCERIES & PROVISIONS
28-Apr-2017,7003373,2.30,AF BLAKEMORE & SON LIMITED T/A LOWRIES CASH & CARRY,332872,Commissioning & Investment,Children's & Education Services,103,Supplies and Services,504,Equipment,5023,Revenue,03.GROCERIES & PROVISIONS
28-Apr-2017,7003373,-1.66,AF BLAKEMORE & SON LIMITED T/A LOWRIES CASH & CARRY,332872,Commissioning & Investment,Children's & Education Services,103,Supplies and Services,504,Equipment,5023,Revenue,03.GROCERIES & PROVISIONS
28-Apr-2017,7003373,29.72,AF BLAKEMORE & SON LIMITED T/A LOWRIES CASH & CARRY,332872,Commissioning & Investment,Children's & Education Services,103,Supplies and Services,504,Equipment,5023,Revenue,03.GROCERIES & PROVISIONS
28-Apr-2017,7003373,10.26,AF BLAKEMORE & SON LIMITED T/A LOWRIES CASH & CARRY,332872,Commissioning & Investment,Children's & Education Services,103,Supplies and Services,504,Equipment,5023,Revenue,03.GROCERIES & PROVISIONS
28-Apr-2017,7003373,3.88,AF BLAKEMORE & SON LIMITED T/A LOWRIES CASH & CARRY,332872,Commissioning & Investment,Children's & Education Services,103,Supplies and Services,504,Equipment,5023,Revenue,03.GROCERIES & PROVISIONS
28-Apr-2017,7003373,7.20,AF BLAKEMORE & SON LIMITED T/A LOWRIES CASH & CARRY,332872,Commissioning & Investment,Children's & Education Services,103,Supplies and Services,504,Equipment,5023,Revenue,03.GROCERIES & PROVISIONS
28-Apr-2017,7003373,6.55,AF BLAKEMORE & SON LIMITED T/A LOWRIES CASH & CARRY,332872,Commissioning & Investment,Children's & Education Services,103,Supplies and Services,504,Equipment,5023,Revenue,03.GROCERIES & PROVISIONS
28-Apr-2017,7003373,2.48,AF BLAKEMORE & SON LIMITED T/A LOWRIES CASH & CARRY,332872,Commissioning & Investment,Children's & Education Services,103,Supplies and Services,504,Equipment,5023,Revenue,03.GROCERIES & PROVISIONS
28-Apr-2017,7003373,3.43,AF BLAKEMORE & SON LIMITED T/A LOWRIES CASH & CARRY,332872,Commissioning & Investment,Children's & Education Services,103,Supplies and Services,504,Equipment,5023,Revenue,03.GROCERIES & PROVISIONS
28-Apr-2017,7003373,6.58,AF BLAKEMORE & SON LIMITED T/A LOWRIES CASH & CARRY,332872,Commissioning & Investment,Children's & Education Services,103,Supplies and Services,504,Equipment,5023,Revenue,03.GROCERIES & PROVISIONS
28-Apr-2017,7003373,6.60,AF BLAKEMORE & SON LIMITED T/A LOWRIES CASH & CARRY,332872,Commissioning & Investment,Children's & Education Services,103,Supplies and Services,504,Equipment,5023,Revenue,03.GROCERIES & PROVISIONS
28-Apr-2017,7003373,1.79,AF BLAKEMORE & SON LIMITED T/A LOWRIES CASH & CARRY,332872,Commissioning & Investment,Children's & Education Services,103,Supplies and Services,504,Equipment,5023,Revenue,03.GROCERIES & PROVISIONS
28-Apr-2017,7003373,14.00,AF BLAKEMORE & SON LIMITED T/A LOWRIES CASH & CARRY,332872,Commissioning & Investment,Children's & Education Services,103,Supplies and Services,504,Equipment,5023,Revenue,03.GROCERIES & PROVISIONS
28-Apr-2017,7003373,8.56,AF BLAKEMORE & SON LIMITED T/A LOWRIES CASH & CARRY,332872,Commissioning & Investment,Children's & Education Services,103,Supplies and Services,504,Equipment,5023,Revenue,03.GROCERIES & PROVISIONS
28-Apr-2017,7003373,9.00,AF BLAKEMORE & SON LIMITED T/A LOWRIES CASH & CARRY,332872,Commissioning & Investment,Children's & Education Services,103,Supplies and Services,504,Equipment,5023,Revenue,03.GROCERIES & PROVISIONS
28-Apr-2017,7003373,19.38,AF BLAKEMORE & SON LIMITED T/A LOWRIES CASH & CARRY,332872,Commissioning & Investment,Children's & Education Services,103,Supplies and Services,504,Equipment,5023,Revenue,03.GROCERIES & PROVISIONS
28-Apr-2017,7003373,7.43,AF BLAKEMORE & SON LIMITED T/A LOWRIES CASH & CARRY,332872,Commissioning & Investment,Children's & Education Services,103,Supplies and Services,504,Equipment,5023,Revenue,03.GROCERIES & PROVISIONS
28-Apr-2017,7003373,5.68,AF BLAKEMORE & SON LIMITED T/A LOWRIES CASH & CARRY,332872,Commissioning & Investment,Children's & Education Services,103,Supplies and Services,504,Equipment,5023,Revenue,03.GROCERIES & PROVISIONS
28-Apr-2017,7003373,9.00,AF BLAKEMORE & SON LIMITED T/A LOWRIES CASH & CARRY,332872,Commissioning & Investment,Children's & Education Services,103,Supplies and Services,504,Equipment,5023,Revenue,03.GROCERIES & PROVISIONS
28-Apr-2017,7003373,4.89,AF BLAKEMORE & SON LIMITED T/A LOWRIES CASH & CARRY,332872,Commissioning & Investment,Children's & Education Services,103,Supplies and Services,504,Equipment,5023,Revenue,03.GROCERIES & PROVISIONS
28-Apr-2017,7003373,14.98,AF BLAKEMORE & SON LIMITED T/A LOWRIES CASH & CARRY,332872,Commissioning & Investment,Children's & Education Services,103,Supplies and Services,504,Equipment,5023,Revenue,03.GROCERIES & PROVISIONS
28-Apr-2017,7003373,13.44,AF BLAKEMORE & SON LIMITED T/A LOWRIES CASH & CARRY,332872,Commissioning & Investment,Children's & Education Services,103,Supplies and Services,504,Equipment,5023,Revenue,03.GROCERIES & PROVISIONS
28-Apr-2017,7003373,10.52,AF BLAKEMORE & SON LIMITED T/A LOWRIES CASH & CARRY,332872,Commissioning & Investment,Children's & Education Services,103,Supplies and Services,504,Equipment,5023,Revenue,03.GROCERIES & PROVISIONS
28-Apr-2017,7003373,5.38,AF BLAKEMORE & SON LIMITED T/A LOWRIES CASH & CARRY,332872,Commissioning & Investment,Children's & Education Services,103,Supplies and Services,504,Equipment,5023,Revenue,03.GROCERIES & PROVISIONS
28-Apr-2017,7003373,4.46,AF BLAKEMORE & SON LIMITED T/A LOWRIES CASH & CARRY,332872,Commissioning & Investment,Children's & Education Services,103,Supplies and Services,504,Equipment,5023,Revenue,03.GROCERIES & PROVISIONS
28-Apr-2017,7003373,5.86,AF BLAKEMORE & SON LIMITED T/A LOWRIES CASH & CARRY,332872,Commissioning & Investment,Children's & Education Services,103,Supplies and Services,504,Equipment,5023,Revenue,03.GROCERIES & PROVISIONS
28-Apr-2017,7003373,9.12,AF BLAKEMORE & SON LIMITED T/A LOWRIES CASH & CARRY,332872,Commissioning & Investment,Children's & Education Services,103,Supplies and Services,504,Equipment,5023,Revenue,03.GROCERIES & PROVISIONS
28-Apr-2017,7003373,14.86,AF BLAKEMORE & SON LIMITED T/A LOWRIES CASH & CARRY,332872,Commissioning & Investment,Children's & Education Services,103,Supplies and Services,504,Equipment,5023,Revenue,03.GROCERIES & PROVISIONS
28-Apr-2017,7003373,10.26,AF BLAKEMORE & SON LIMITED T/A LOWRIES CASH & CARRY,332872,Commissioning & Investment,Children's & Education Services,103,Supplies and Services,504,Equipment,5023,Revenue,03.GROCERIES & PROVISIONS
28-Apr-2017,7003373,5.86,AF BLAKEMORE & SON LIMITED T/A LOWRIES CASH & CARRY,332872,Commissioning & Investment,Children's & Education Services,103,Supplies and Services,504,Equipment,5023,Revenue,03.GROCERIES & PROVISIONS
28-Apr-2017,7003373,13.20,AF BLAKEMORE & SON LIMITED T/A LOWRIES CASH & CARRY,332872,Commissioning & Investment,Children's & Education Services,103,Supplies and Services,504,Equipment,5023,Revenue,03.GROCERIES & PROVISIONS
28-Apr-2017,7003373,1.51,AF BLAKEMORE & SON LIMITED T/A LOWRIES CASH & CARRY,332872,Commissioning & Investment,Children's & Education Services,103,Supplies and Services,504,Equipment,5023,Revenue,03.GROCERIES & PROVISIONS
28-Apr-2017,7003373,9.18,AF BLAKEMORE & SON LIMITED T/A LOWRIES CASH & CARRY,332872,Commissioning & Investment,Children's & Education Services,103,Supplies and Services,504,Equipment,5023,Revenue,03.GROCERIES & PROVISIONS
28-Apr-2017,7003373,53.76,AF BLAKEMORE & SON LIMITED T/A LOWRIES CASH & CARRY,332872,Commissioning & Investment,Children's & Education Services,103,Supplies and Services,504,Equipment,5023,Revenue,03.GROCERIES & PROVISIONS
28-Apr-2017,7003373,2.80,AF BLAKEMORE & SON LIMITED T/A LOWRIES CASH & CARRY,332872,Commissioning & Investment,Children's & Education Services,103,Supplies and Services,504,Equipment,5023,Revenue,03.GROCERIES & PROVISIONS
28-Apr-2017,7003373,7.54,AF BLAKEMORE & SON LIMITED T/A LOWRIES CASH & CARRY,332872,Commissioning & Investment,Children's & Education Services,103,Supplies and Services,504,Equipment,5023,Revenue,03.GROCERIES & PROVISIONS
28-Apr-2017,7003373,33.60,AF BLAKEMORE & SON LIMITED T/A LOWRIES CASH & CARRY,332872,Commissioning & Investment,Children's & Education Services,103,Supplies and Services,504,Equipment,5023,Revenue,03.GROCERIES & PROVISIONS
28-Apr-2017,7003373,3.78,AF BLAKEMORE & SON LIMITED T/A LOWRIES CASH & CARRY,332872,Commissioning & Investment,Children's & Education Services,103,Supplies and Services,504,Equipment,5023,Revenue,03.GROCERIES & PROVISIONS
28-Apr-2017,7003373,5.50,AF BLAKEMORE & SON LIMITED T/A LOWRIES CASH & CARRY,332872,Commissioning & Investment,Children's & Education Services,103,Supplies and Services,504,Equipment,5023,Revenue,03.GROCERIES & PROVISIONS
28-Apr-2017,7003373,12.46,AF BLAKEMORE & SON LIMITED T/A LOWRIES CASH & CARRY,332872,Commissioning & Investment,Children's & Education Services,103,Supplies and Services,504,Equipment,5023,Revenue,03.GROCERIES & PROVISIONS
28-Apr-2017,7003373,2.09,AF BLAKEMORE & SON LIMITED T/A LOWRIES CASH & CARRY,332872,Commissioning & Investment,Children's & Education Services,103,Supplies and Services,504,Equipment,5023,Revenue,03.GROCERIES & PROVISIONS
28-Apr-2017,7003373,4.41,AF BLAKEMORE & SON LIMITED T/A LOWRIES CASH & CARRY,332872,Commissioning & Investment,Children's & Education Services,103,Supplies and Services,504,Equipment,5023,Revenue,03.GROCERIES & PROVISIONS
28-Apr-2017,7003373,15.74,AF BLAKEMORE & SON LIMITED T/A LOWRIES CASH & CARRY,332872,Commissioning & Investment,Children's & Education Services,103,Supplies and Services,504,Equipment,5023,Revenue,03.GROCERIES & PROVISIONS
28-Apr-2017,7003373,19.38,AF BLAKEMORE & SON LIMITED T/A LOWRIES CASH & CARRY,332872,Commissioning & Investment,Children's & Education Services,103,Supplies and Services,504,Equipment,5023,Revenue,03.GROCERIES & PROVISIONS
28-Apr-2017,7003373,8.16,AF BLAKEMORE & SON LIMITED T/A LOWRIES CASH & CARRY,332872,Commissioning & Investment,Children's & Education Services,103,Supplies and Services,504,Equipment,5023,Revenue,03.GROCERIES & PROVISIONS
28-Apr-2017,7003373,1.79,AF BLAKEMORE & SON LIMITED T/A LOWRIES CASH & CARRY,332872,Commissioning & Investment,Children's & Education Services,103,Supplies and Services,504,Equipment,5023,Revenue,03.GROCERIES & PROVISIONS
28-Apr-2017,7003373,49.64,AF BLAKEMORE & SON LIMITED T/A LOWRIES CASH & CARRY,332872,Commissioning & Investment,Children's & Education Services,103,Supplies and Services,504,Equipment,5023,Revenue,03.GROCERIES & PROVISIONS
28-Apr-2017,7003373,6.00,AF BLAKEMORE & SON LIMITED T/A LOWRIES CASH & CARRY,332872,Commissioning & Investment,Children's & Education Services,103,Supplies and Services,504,Equipment,5023,Revenue,03.GROCERIES & PROVISIONS
28-Apr-2017,7003373,21.40,AF BLAKEMORE & SON LIMITED T/A LOWRIES CASH & CARRY,332872,Commissioning & Investment,Children's & Education Services,103,Supplies and Services,504,Equipment,5023,Revenue,03.GROCERIES & PROVISIONS
28-Apr-2017,7003373,12.10,AF BLAKEMORE & SON LIMITED T/A LOWRIES CASH & CARRY,332872,Commissioning & Investment,Children's & Education Services,103,Supplies and Services,504,Equipment,5023,Revenue,03.GROCERIES & PROVISIONS
28-Apr-2017,7003373,2.62,AF BLAKEMORE & SON LIMITED T/A LOWRIES CASH & CARRY,332872,Commissioning & Investment,Children's & Education Services,103,Supplies and Services,504,Equipment,5023,Revenue,03.GROCERIES & PROVISIONS
28-Apr-2017,7003373,28.00,AF BLAKEMORE & SON LIMITED T/A LOWRIES CASH & CARRY,332872,Commissioning & Investment,Children's & Education Services,103,Supplies and Services,504,Equipment,5023,Revenue,03.GROCERIES & PROVISIONS
28-Apr-2017,7003373,8.41,AF BLAKEMORE & SON LIMITED T/A LOWRIES CASH & CARRY,332872,Commissioning & Investment,Children's & Education Services,103,Supplies and Services,504,Equipment,5023,Revenue,03.GROCERIES & PROVISIONS
28-Apr-2017,7003373,11.90,AF BLAKEMORE & SON LIMITED T/A LOWRIES CASH & CARRY,332872,Commissioning & Investment,Children's & Education Services,103,Supplies and Services,504,Equipment,5023,Revenue,03.GROCERIES & PROVISIONS
28-Apr-2017,7003373,8.15,AF BLAKEMORE & SON LIMITED T/A LOWRIES CASH & CARRY,332872,Commissioning & Investment,Children's & Education Services,103,Supplies and Services,504,Equipment,5023,Revenue,03.GROCERIES & PROVISIONS
28-Apr-2017,7003373,5.86,AF BLAKEMORE & SON LIMITED T/A LOWRIES CASH & CARRY,332872,Commissioning & Investment,Children's & Education Services,103,Supplies and Services,504,Equipment,5023,Revenue,03.GROCERIES & PROVISIONS
28-Apr-2017,7003373,2.80,AF BLAKEMORE & SON LIMITED T/A LOWRIES CASH & CARRY,332872,Commissioning & Investment,Children's & Education Services,103,Supplies and Services,504,Equipment,5023,Revenue,03.GROCERIES & PROVISIONS
28-Apr-2017,7003373,6.00,AF BLAKEMORE & SON LIMITED T/A LOWRIES CASH & CARRY,332872,Commissioning & Investment,Children's & Education Services,103,Supplies and Services,504,Equipment,5023,Revenue,03.GROCERIES & PROVISIONS
28-Apr-2017,7003373,4.46,AF BLAKEMORE & SON LIMITED T/A LOWRIES CASH & CARRY,332872,Commissioning & Investment,Children's & Education Services,103,Supplies and Services,504,Equipment,5023,Revenue,03.GROCERIES & PROVISIONS
28-Apr-2017,7003373,1.40,AF BLAKEMORE & SON LIMITED T/A LOWRIES CASH & CARRY,332872,Commissioning & Investment,Children's & Education Services,103,Supplies and Services,504,Equipment,5023,Revenue,03.GROCERIES & PROVISIONS
28-Apr-2017,7003373,5.50,AF BLAKEMORE & SON LIMITED T/A LOWRIES CASH & CARRY,332872,Commissioning & Investment,Children's & Education Services,103,Supplies and Services,504,Equipment,5023,Revenue,03.GROCERIES & PROVISIONS
28-Apr-2017,7003373,7.26,AF BLAKEMORE & SON LIMITED T/A LOWRIES CASH & CARRY,332872,"Environment, Housing & Leisure",Cultural & Related Services,104,Supplies and Services,504,Equipment,5023,Revenue,03.GROCERIES & PROVISIONS
28-Apr-2017,7003373,9.35,AF BLAKEMORE & SON LIMITED T/A LOWRIES CASH & CARRY,332872,Commissioning & Investment,Children's & Education Services,103,Supplies and Services,504,Equipment,5023,Revenue,03.GROCERIES & PROVISIONS
28-Apr-2017,7003373,13.44,AF BLAKEMORE & SON LIMITED T/A LOWRIES CASH & CARRY,332872,Commissioning & Investment,Children's & Education Services,103,Supplies and Services,504,Equipment,5023,Revenue,03.GROCERIES & PROVISIONS
28-Apr-2017,7003373,20.16,AF BLAKEMORE & SON LIMITED T/A LOWRIES CASH & CARRY,332872,Commissioning & Investment,Children's & Education Services,103,Supplies and Services,504,Equipment,5023,Revenue,03.GROCERIES & PROVISIONS
28-Apr-2017,7003373,16.00,AF BLAKEMORE & SON LIMITED T/A LOWRIES CASH & CARRY,332872,Commissioning & Investment,Children's & Education Services,103,Supplies and Services,504,Equipment,5023,Revenue,03.GROCERIES & PROVISIONS
28-Apr-2017,7003373,5.90,AF BLAKEMORE & SON LIMITED T/A LOWRIES CASH & CARRY,332872,Commissioning & Investment,Children's & Education Services,103,Supplies and Services,504,Equipment,5023,Revenue,03.GROCERIES & PROVISIONS
28-Apr-2017,7003373,28.00,AF BLAKEMORE & SON LIMITED T/A LOWRIES CASH & CARRY,332872,Commissioning & Investment,Children's & Education Services,103,Supplies and Services,504,Equipment,5023,Revenue,03.GROCERIES & PROVISIONS
28-Apr-2017,7003373,7.18,AF BLAKEMORE & SON LIMITED T/A LOWRIES CASH & CARRY,332872,Commissioning & Investment,Children's & Education Services,103,Supplies and Services,504,Equipment,5023,Revenue,03.GROCERIES & PROVISIONS
28-Apr-2017,7003373,17.12,AF BLAKEMORE & SON LIMITED T/A LOWRIES CASH & CARRY,332872,Commissioning & Investment,Children's & Education Services,103,Supplies and Services,504,Equipment,5023,Revenue,03.GROCERIES & PROVISIONS
28-Apr-2017,7003373,7.89,AF BLAKEMORE & SON LIMITED T/A LOWRIES CASH & CARRY,332872,Commissioning & Investment,Children's & Education Services,103,Supplies and Services,504,Equipment,5023,Revenue,03.GROCERIES & PROVISIONS
28-Apr-2017,7003373,5.70,AF BLAKEMORE & SON LIMITED T/A LOWRIES CASH & CARRY,332872,Commissioning & Investment,Children's & Education Services,103,Supplies and Services,504,Equipment,5023,Revenue,03.GROCERIES & PROVISIONS
28-Apr-2017,7003373,2.63,AF BLAKEMORE & SON LIMITED T/A LOWRIES CASH & CARRY,332872,Commissioning & Investment,Children's & Education Services,103,Supplies and Services,504,Equipment,5023,Revenue,03.GROCERIES & PROVISIONS
28-Apr-2017,7003373,11.40,AF BLAKEMORE & SON LIMITED T/A LOWRIES CASH & CARRY,332872,Commissioning & Investment,Children's & Education Services,103,Supplies and Services,504,Equipment,5023,Revenue,03.GROCERIES & PROVISIONS
28-Apr-2017,7003373,42.80,AF BLAKEMORE & SON LIMITED T/A LOWRIES CASH & CARRY,332872,Commissioning & Investment,Children's & Education Services,103,Supplies and Services,504,Equipment,5023,Revenue,03.GROCERIES & PROVISIONS
28-Apr-2017,7003373,16.00,AF BLAKEMORE & SON LIMITED T/A LOWRIES CASH & CARRY,332872,Commissioning & Investment,Children's & Education Services,103,Supplies and Services,504,Equipment,5023,Revenue,03.GROCERIES & PROVISIONS
28-Apr-2017,7003373,4.18,AF BLAKEMORE & SON LIMITED T/A LOWRIES CASH & CARRY,332872,Commissioning & Investment,Children's & Education Services,103,Supplies and Services,504,Equipment,5023,Revenue,03.GROCERIES & PROVISIONS
28-Apr-2017,7003373,44.58,AF BLAKEMORE & SON LIMITED T/A LOWRIES CASH & CARRY,332872,Commissioning & Investment,Children's & Education Services,103,Supplies and Services,504,Equipment,5023,Revenue,03.GROCERIES & PROVISIONS
28-Apr-2017,7003373,1.47,AF BLAKEMORE & SON LIMITED T/A LOWRIES CASH & CARRY,332872,Commissioning & Investment,Children's & Education Services,103,Supplies and Services,504,Equipment,5023,Revenue,03.GROCERIES & PROVISIONS
28-Apr-2017,7003373,5.86,AF BLAKEMORE & SON LIMITED T/A LOWRIES CASH & CARRY,332872,Commissioning & Investment,Children's & Education Services,103,Supplies and Services,504,Equipment,5023,Revenue,03.GROCERIES & PROVISIONS
